Service Area,Service Division,Expense Type,Expense Code,Detailed Expense Type,Payment Date,Transaction Number,Amount Exc Vat,Supplier Name
Assistant Chief Executive,Partnerships & Community Engagement Div.,Construction Work,908105,Construction work,01-Apr-2015,2881953-SINV/00003606,"1,264.70",EAST DURHAM HOMES.
Assistant Chief Executive,Partnerships & Community Engagement Div.,Transfer Payments,525030,Other,01-Apr-2015,2882427-VOUCHER14CCG,"30,000.00",SOUTH DURHAM ENTERPRISE AGENCY LTD.
Children and Adult Services,Central Charges (CYPS),Cap Exp on Grants & Other Financial Assistance (REFCUS),918401,Capital grants,01-Apr-2015,2882494-CAS-03-2015-164,"3,156.58",TM NURSERY ENTERPRISES LTD T/A JACK IN THE BOX DAYCARE.
Children and Adult Services,Central/Other,Debtors,930050,Debtor-appointeeship accounts,01-Apr-2015,239035-JOB001/17715,"2,274.00",COLIN JOBLING T/A RAINBOW INTERNATIONAL.
Children and Adult Services,Childrens Services,Third Party Payments,486023,Service Level Agreements,01-Apr-2015,2882186,500.00,MID DURHAM PROJECTS CLUB.
Children and Adult Services,Childrens Services,Third Party Payments,425040,Rendered by Voluntary Organisations,01-Apr-2015,2882453-160877,"1,069.00",SWIIS FOSTER CARE LTD.
Children and Adult Services,Childrens Services,Third Party Payments,425040,Rendered by Voluntary Organisations,01-Apr-2015,2882453-160875,"1,075.00",SWIIS FOSTER CARE LTD.
Children and Adult Services,Childrens Services,Third Party Payments,425040,Rendered by Voluntary Organisations,01-Apr-2015,2882453-160876,891.90,SWIIS FOSTER CARE LTD.
Children and Adult Services,Childrens Services,Transport,230007,Contract Hire,01-Apr-2015,2881745-5/15,883.00,ADVANCE TRAVEL.
Children and Adult Services,Childrens Services,Third Party Payments,440031,Other Third Party Payments,01-Apr-2015,2882534-CAS-03-2015-168,604.50,REDACTED - PAYMENT TO INDIVIDUAL
Children and Adult Services,Childrens Services,Third Party Payments,486023,Service Level Agreements,01-Apr-2015,2881924-FEBHALFTERM2015,"1,000.00",DERIC YOUTH BUS PROJECT.
Children and Adult Services,Childrens Services,Third Party Payments,486023,Service Level Agreements,01-Apr-2015,2881924-PAWORKWITHDERIC,"1,680.00",DERIC YOUTH BUS PROJECT.
Children and Adult Services,Childrens Services,Supplies and Services,364999,Grants to Voluntary Organisations,01-Apr-2015,2882198-CAS-03-2015-157,"3,500.00",MOORSIDE COMMUNITY ASSOCIATION.
Children and Adult Services,Childrens Services,Supplies and Services,384871,Miscellaneous Expenses,01-Apr-2015,2881952-004,"4,519.03",EAST DURHAM COMMUNITY EDUCATION COMMITTEE.
Children and Adult Services,Childrens Services,Supplies and Services,304252,Equipment and Materials,01-Apr-2015,2881741-24897,550.00,ACCORDIAL MANUFACTURING LTD.
Children and Adult Services,Childrens Services,Supplies and Services,364999,Grants to Voluntary Organisations,01-Apr-2015,2881984-CAS-03-2015-156,"3,000.00",FERRYHILL LAKES & DISTRICT DEVELOPMENT EDUCATION RESOURCE CENTRE.
Children and Adult Services,Childrens Services,Third Party Payments,479101,Purchase of Care,01-Apr-2015,2881874-3980009632,571.65,CO DURHAM & DARLINGTON NHS FOUNDATION TRUST.
Children and Adult Services,Childrens Services,Third Party Payments,425040,Rendered by Voluntary Organisations,01-Apr-2015,2882453-160873,910.00,SWIIS FOSTER CARE LTD.
Children and Adult Services,Commissioning inc Supporting People,Supplies and Services,342051,Computers and Communications,01-Apr-2015,239121-10930,"6,118.20",OXFORD COMPUTER CONSULTANTS.
Children and Adult Services,Commissioning inc Supporting People,Third Party Payments,479111,Purchase of Care,01-Apr-2015,2882052-1005,"70,000.00",HEALTHWATCH COUNTY DURHAM CIC.
Dedicated Schools Grant,Dedicated Schools Grant,Transport,230005,Contract Hire,01-Apr-2015,2882182-INV-71,"1,128.00",MICHAEL COBB (T/A HAIL TAXIS).
Dedicated Schools Grant,Dedicated Schools Grant,Transport,230005,Contract Hire,01-Apr-2015,2881937-DCT07-15,"1,000.00",DUNCAN G CUMMINGS T/A DC TAXIS.
Dedicated Schools Grant,Dedicated Schools Grant,Transport,230010,Contract Hire,01-Apr-2015,2882027-GT017,"1,430.00",GORDON`S TAXIS.
Dedicated Schools Grant,Dedicated Schools Grant,Supplies and Services,342013,Computers and Communications,01-Apr-2015,2882074-124296,634.50,INCLUSIVE TECHNOLOGY LTD.
Dedicated Schools Grant,Dedicated Schools Grant,Transport,230005,Contract Hire,01-Apr-2015,2882512-67,"4,306.00",TRIDENT TAXIS.
Dedicated Schools Grant,Dedicated Schools Grant,Third Party Payments,440080,Other Third Party Payments,01-Apr-2015,2882458-210,"12,307.70",TALBOT HOUSE SCHOOL.
Dedicated Schools Grant,Dedicated Schools Grant,Transfer Payments,510032,School Children,01-Apr-2015,239140-CAS-03-2015-129,600.00,REDACTED - PAYMENT TO INDIVIDUAL
Dedicated Schools Grant,Dedicated Schools Grant,Supplies and Services,338081,Services,01-Apr-2015,2882364-1234,576.00,RIGHT TRAX LTD.
Children and Adult Services,Education,Transport,230008,Contract Hire,01-Apr-2015,239036-1/15198,590.00,COLLINS TAXIS.
Children and Adult Services,Education,Transport,230007,Contract Hire,01-Apr-2015,2882202-7,800.00,MR BW YOUNG T/A ESH TAXIS.
Children and Adult Services,Education,Supplies and Services,338027,Services,01-Apr-2015,2882254-597,900.00,NORTH EAST ENVIRONMENT NETWORK LTD.
Children and Adult Services,Education,Transfer Payments,510028,School Children,01-Apr-2015,2882494-CAS-03-2015-163,"21,843.42",TM NURSERY ENTERPRISES LTD T/A JACK IN THE BOX DAYCARE.
Children and Adult Services,Education,Transport,230007,Contract Hire,01-Apr-2015,2882228-165,720.00,N FORBES.
Children and Adult Services,Education,Transport,230008,Contract Hire,01-Apr-2015,2882228-166,"2,720.00",N FORBES.
Children and Adult Services,Education,Transport,230008,Contract Hire,01-Apr-2015,239036-1/15137,"1,332.00",COLLINS TAXIS.
Children and Adult Services,Education,Transport,230008,Contract Hire,01-Apr-2015,239036-2/15137,"1,050.00",COLLINS TAXIS.
Children and Adult Services,Education,Transport,230008,Contract Hire,01-Apr-2015,239036-2/15198,885.00,COLLINS TAXIS.
Children and Adult Services,Education,Transport,230008,Contract Hire,01-Apr-2015,2882120-S007-29,"2,064.00",KEITH HAMMOND T/A FERRYHILL VILLAGE TRAVEL.
Children and Adult Services,Education,Transfer Payments,510028,School Children,01-Apr-2015,2881819-CAS-03-2015-165,"7,921.20",BRIGHT STAR NURSERY.
Children and Adult Services,Education,Transport,235005,Public Transport,01-Apr-2015,2881777-108643,"7,118.50",ARRIVA NORTH EAST LTD.
Children and Adult Services,Education,Transport,230008,Contract Hire,01-Apr-2015,2882120-W131-007,870.00,KEITH HAMMOND T/A FERRYHILL VILLAGE TRAVEL.
Children and Adult Services,Education,Transfer Payments,510028,School Children,01-Apr-2015,2882150-CAS-03-2015-158,"40,000.00",LITTLE ROCKERS CHILDCARE LTD.
Children and Adult Services,Education,Transport,230008,Contract Hire,01-Apr-2015,2881878-FO420315,"2,380.00",COLIN FRANKS T/A FRANKS COACHES.
Children and Adult Services,Education,Transfer Payments,510028,School Children,01-Apr-2015,2881868-CAS-03-2015-166,"2,000.00",CLEVER CLOGS DAY NURSERIES LTD.
Children and Adult Services,Education,Transfer Payments,510028,School Children,01-Apr-2015,2881869-CAS-03-2015-167,"1,500.00",CLEVER CLOGS DAY NURSERY (DURHAM) LTD.
Children and Adult Services,Education,Third Party Payments,430100,Rendered by Private Contractors,01-Apr-2015,2882216-1A,920.00,MR PHILLIP TAIT.
Children and Adult Services,Education,Transport,230008,Contract Hire,01-Apr-2015,2882192-E046-007,"2,128.00",MISS KA SUTHERLAND T/A FERRYHILL TRAVEL TAXI & MINIBUS HIRE.
Children and Adult Services,Education,Transport,230007,Contract Hire,01-Apr-2015,2881861-44808,"1,400.00",CJ GRIERSON.
Children and Adult Services,Education,Transport,230007,Contract Hire,01-Apr-2015,2881861-44809,"4,800.00",CJ GRIERSON.
Children and Adult Services,Education,Transport,230008,Contract Hire,01-Apr-2015,2882192-N071-017,"2,843.25",MISS KA SUTHERLAND T/A FERRYHILL TRAVEL TAXI & MINIBUS HIRE.
Children and Adult Services,Education,Transport,230008,Contract Hire,01-Apr-2015,2882192-A060-007,650.00,MISS KA SUTHERLAND T/A FERRYHILL TRAVEL TAXI & MINIBUS HIRE.
Children and Adult Services,Head of Adults,Third Party Payments,470101,Purchase of Care,01-Apr-2015,239034-2223632,"2,500.00",CARELINE LIFESTYLES LTD.
Children and Adult Services,Head of Adults,Third Party Payments,470101,Purchase of Care,01-Apr-2015,239034-2223633,"2,016.00",CARELINE LIFESTYLES LTD.
Children and Adult Services,Head of Adults,Third Party Payments,474101,Purchase of Care,01-Apr-2015,239034-2225703,"2,694.00",CARELINE LIFESTYLES LTD.
Children and Adult Services,Head of Adults,Third Party Payments,478101,Purchase of Care,01-Apr-2015,239107-2222811,"1,301.00",REDACTED - PAYMENT TO INDIVIDUAL
Children and Adult Services,Head of Adults,Transport,230005,Contract Hire,01-Apr-2015,2881735-EA220763,"1,760.00",A MURRAY TRAVEL.
Children and Adult Services,Head of Adults,Transport,230005,Contract Hire,01-Apr-2015,2881739-C35/DC,"1,068.00",AABAT TAXIS.
Children and Adult Services,Head of Adults,Transport,230005,Contract Hire,01-Apr-2015,2881739-C38/LC,828.00,AABAT TAXIS.
Children and Adult Services,Head of Adults,Transport,230005,Contract Hire,01-Apr-2015,2881739-D8/ST,"1,298.00",AABAT TAXIS.
Children and Adult Services,Head of Adults,Transport,230005,Contract Hire,01-Apr-2015,2881783-DCC3MARCH15,"2,002.00",ATLAS TAXIS BISHOP AUCKLAND.
Children and Adult Services,Head of Adults,Transport,230005,Contract Hire,01-Apr-2015,2881783-DCC9MARCH15,810.00,ATLAS TAXIS BISHOP AUCKLAND.
Children and Adult Services,Head of Adults,Transport,230005,Contract Hire,01-Apr-2015,2881809-8,520.00,BL TAXIS.
Children and Adult Services,Head of Adults,Transport,230005,Contract Hire,01-Apr-2015,2882120-WV079-013,"1,615.00",KEITH HAMMOND T/A FERRYHILL VILLAGE TRAVEL.
Children and Adult Services,Head of Adults,Transport,230005,Contract Hire,01-Apr-2015,2882161-76,990.00,M BUTCHER T/A KIDDI CABS.
Children and Adult Services,Head of Adults,Transport,230005,Contract Hire,01-Apr-2015,2882181-MCD2063,980.00,MCDONALD TRAVEL.
Children and Adult Services,Head of Adults,Transport,230005,Contract Hire,01-Apr-2015,2882203-EDB03-15,"1,140.00",MR CT WALKER T/A COLIN`S TAXIS.
Children and Adult Services,Head of Adults,Transport,230005,Contract Hire,01-Apr-2015,2882204-SLD010/MARCH15,600.00,MR D DONNELLY.
Children and Adult Services,Head of Adults,Transport,230005,Contract Hire,01-Apr-2015,2882368-328,980.00,ROAD RUNNERS (NE) LTD.
Children and Adult Services,Head of Adults,Transport,230005,Contract Hire,01-Apr-2015,2882510-7,520.00,TREVOR GARDNER T/A TCG TAXIS.
Children and Adult Services,Head of Adults,Transport,230005,Contract Hire,01-Apr-2015,2882559-971,"1,320.00",WAYNE`S TAXIS.
Children and Adult Services,Head of Adults,Transport,230005,Contract Hire,01-Apr-2015,2882559-973,"3,689.40",WAYNE`S TAXIS.
Children and Adult Services,Head of Adults,Transport,230005,Contract Hire,01-Apr-2015,2882559-974,"1,320.00",WAYNE`S TAXIS.
Children and Adult Services,Planning & Service Strategy,Supplies and Services,338089,Services,01-Apr-2015,2881820-N6888,650.00,BRITISH ASSOCIATION FOR ADOPTION & FOSTERING BAAF.
Children and Adult Services,Public Health,Premises,108135,Service Repairs and Maintenance,01-Apr-2015,2882371-I/DURHAMDAT33459,"1,832.69",ROBERTSON FACILITIES MANAGEMENT.
Neighbourhood Services,Direct Services,Supplies and Services,304259,Equipment and Materials,01-Apr-2015,239032-4100483093,"3,700.00",BLACKTOP.
Neighbourhood Services,Direct Services,Supplies and Services,304259,Equipment and Materials,01-Apr-2015,239032-PHASE2-21/3/15,"1,940.00",BLACKTOP.
Neighbourhood Services,Direct Services,Supplies and Services,304259,Equipment and Materials,01-Apr-2015,239032-PHASE2-25/3/15,"4,170.00",BLACKTOP.
Neighbourhood Services,Direct Services,Supplies and Services,304259,Equipment and Materials,01-Apr-2015,239032-ROMALDKIRK-18/3/15,"3,570.00",BLACKTOP.
Neighbourhood Services,Direct Services,Transport,230005,Contract Hire,01-Apr-2015,239055-071858,800.00,FIVEWAYS MUNICIPAL VEHICLE HIRE LTD.
Neighbourhood Services,Direct Services,Transport,230005,Contract Hire,01-Apr-2015,239055-071989,800.00,FIVEWAYS MUNICIPAL VEHICLE HIRE LTD.
Neighbourhood Services,Direct Services,Transport,230005,Contract Hire,01-Apr-2015,239055-072117,800.00,FIVEWAYS MUNICIPAL VEHICLE HIRE LTD.
Neighbourhood Services,Direct Services,Transport,230005,Contract Hire,01-Apr-2015,239055-072234,800.00,FIVEWAYS MUNICIPAL VEHICLE HIRE LTD.
Neighbourhood Services,Technical Services,Fees,901004,Capital - Detailed Design,01-Apr-2015,239079-NEI-EXP-03-2015-085,"1,800.00",REDACTED - PAYMENT TO INDIVIDUAL
Neighbourhood Services,Direct Services,Stock,926004,Stock,01-Apr-2015,239125-18993,"1,182.13",REFLEX DESIGN INTERNATIONAL LTD.
Neighbourhood Services,Technical Services,Third Party Payments,460051,Contract Payments,01-Apr-2015,239141-5333,524.00,WESTCOTEC TRAFFIC CONTROL SYSTEMS.
Neighbourhood Services,Technical Services,Supplies and Services,304221,Equipment and Materials,01-Apr-2015,2881748-21112095,603.87,AGGREGATE INDUSTRIES UK LTD.
Neighbourhood Services,Technical Services,Supplies and Services,304221,Equipment and Materials,01-Apr-2015,2881748-21112196,"1,741.42",AGGREGATE INDUSTRIES UK LTD.
Neighbourhood Services,Technical Services,Supplies and Services,304221,Equipment and Materials,01-Apr-2015,2881748-21112197,785.99,AGGREGATE INDUSTRIES UK LTD.
Neighbourhood Services,Technical Services,Supplies and Services,304221,Equipment and Materials,01-Apr-2015,2881748-21112198,603.36,AGGREGATE INDUSTRIES UK LTD.
Neighbourhood Services,Technical Services,Supplies and Services,304221,Equipment and Materials,01-Apr-2015,2881748-21112199,994.72,AGGREGATE INDUSTRIES UK LTD.
Neighbourhood Services,Direct Services,Third Party Payments,430100,Rendered by Private Contractors,01-Apr-2015,2881751-47256,"1,354.76",ALAN REED LTD.
Neighbourhood Services,Technical Services,Supplies and Services,304358,Equipment and Materials,01-Apr-2015,2881761-3545,"1,525.00",ANDREW HARDY CONSTRUCTION.
Neighbourhood Services,EnvironmentHealth & Consumer Protection,Third Party Payments,430100,Rendered by Private Contractors,01-Apr-2015,2881788-19819,"1,225.00",AXLE WEIGHT TECHNOLOGY LTD.
Neighbourhood Services,Technical Services,Supplies and Services,304358,Equipment and Materials,01-Apr-2015,2881792-MG04292,"1,130.00",BAILEY CONCRETE PUMPING LTD.
Neighbourhood Services,Direct Services,Transport,210057,Repair and Maintenance of Vehicles,01-Apr-2015,2881802-25153675,636.61,BELL TRUCK SALES LTD.
Neighbourhood Services,Culture & Sport,Supplies and Services,384700,Miscellaneous Expenses,01-Apr-2015,2881806,880.00,BISHOP AUCKLAND COLLEGE.
Neighbourhood Services,Direct Services,Transport,210057,Repair and Maintenance of Vehicles,01-Apr-2015,2881836-457627,"1,285.92",CARRS BILLINGTON AGRICULTURE.
Neighbourhood Services,Direct Services,Transport,210057,Repair and Maintenance of Vehicles,01-Apr-2015,2881836-457910,"1,190.33",CARRS BILLINGTON AGRICULTURE.
Neighbourhood Services,Direct Services,Stock,926004,Stock,01-Apr-2015,2881847-4205362,"1,843.80",CERTAS ENERGY UK LTD.
Neighbourhood Services,Projects and Business services,Third Party Payments,430103,Rendered by Private Contractors,01-Apr-2015,2881897,"1,917.59",COUNTY DURHAM FURNITURE HELP SCHEME.
Neighbourhood Services,Technical Services,Supplies and Services,304221,Equipment and Materials,01-Apr-2015,2881907-294622,632.50,DACRYLATE PAINTS LTD.
Neighbourhood Services,Direct Services,Supplies and Services,304221,Equipment and Materials,01-Apr-2015,2881933-901132472,504.00,DORMA UK LTD.
Neighbourhood Services,Projects and Business services,Third Party Payments,430121,Rendered by Private Contractors,01-Apr-2015,2881972-9634,523.78,ELECTRO SERVE CONTRACTS LTD.
Neighbourhood Services,Culture & Sport,Supplies and Services,304259,Equipment and Materials,01-Apr-2015,2881974-INV63215,767.34,EMOS INFORMATION SYSTEMS LTD.
Neighbourhood Services,Culture & Sport,Supplies and Services,384540,Miscellaneous Expenses,01-Apr-2015,2881980-SINV00030044,"3,516.00",EXTERION MEDIA.
Neighbourhood Services,Direct Services,Transport,210057,Repair and Maintenance of Vehicles,01-Apr-2015,2882031-120483,546.80,GREENLAY (GRASS MACHINERY) LTD.
Neighbourhood Services,Technical Services,Third Party Payments,460350,Contract Payments,01-Apr-2015,2882087-1216,"1,571.50",J & JG GILL & SONS LTD.
Neighbourhood Services,Technical Services,Third Party Payments,460350,Contract Payments,01-Apr-2015,2882087-1217,802.00,J & JG GILL & SONS LTD.
Neighbourhood Services,Direct Services,Third Party Payments,430100,Rendered by Private Contractors,01-Apr-2015,2882106-0095,"2,230.00",JN KEARTON.
Neighbourhood Services,Technical Services,Supplies and Services,304358,Equipment and Materials,01-Apr-2015,2882108-23269,740.40,JOHN R BUTTERFIELD LTD.
Neighbourhood Services,Technical Services,Third Party Payments,430100,Rendered by Private Contractors,01-Apr-2015,2882114-0142,"43,500.60",JOSHUA THOMAS CONSTRUCTION LTD.
Neighbourhood Services,Technical Services,Third Party Payments,430100,Rendered by Private Contractors,01-Apr-2015,2882114-0143,"4,844.40",JOSHUA THOMAS CONSTRUCTION LTD.
Neighbourhood Services,Technical Services,Third Party Payments,430100,Rendered by Private Contractors,01-Apr-2015,2882114-0144,"7,326.80",JOSHUA THOMAS CONSTRUCTION LTD.
Neighbourhood Services,Technical Services,Supplies and Services,304221,Equipment and Materials,01-Apr-2015,2882117-BII157048,736.26,JT DOVE LTD.
Neighbourhood Services,Technical Services,Supplies and Services,304221,Equipment and Materials,01-Apr-2015,2882117-CN121668/D,"1,237.80",JT DOVE LTD.
Neighbourhood Services,Technical Services,Stock,926900,Stock in hand-Inventory system,01-Apr-2015,2882117-STI415930,584.50,JT DOVE LTD.
Neighbourhood Services,Technical Services,Third Party Payments,430100,Rendered by Private Contractors,01-Apr-2015,2882118-6191,"4,374.21",KAEFER C & D - KD SCAFFOLDING DIVISION.
Neighbourhood Services,Technical Services,Supplies and Services,304358,Equipment and Materials,01-Apr-2015,2882121-1087,527.50,KEVIN SNOWDON GROUNDWORKS LTD.
Neighbourhood Services,Technical Services,Supplies and Services,384999,Miscellaneous Expenses,01-Apr-2015,2882133-9030725506,"1,650.49",LAFARGE TARMAC TRADING LTD.
Neighbourhood Services,Technical Services,Supplies and Services,384999,Miscellaneous Expenses,01-Apr-2015,2882133-9030952505,590.63,LAFARGE TARMAC TRADING LTD.
Neighbourhood Services,Technical Services,Supplies and Services,384999,Miscellaneous Expenses,01-Apr-2015,2882133-9030971858,988.61,LAFARGE TARMAC TRADING LTD.
Neighbourhood Services,Technical Services,Supplies and Services,384999,Miscellaneous Expenses,01-Apr-2015,2882133-9030977705,"1,226.89",LAFARGE TARMAC TRADING LTD.
Neighbourhood Services,Technical Services,Supplies and Services,384999,Miscellaneous Expenses,01-Apr-2015,2882133-9031065220,882.64,LAFARGE TARMAC TRADING LTD.
Neighbourhood Services,Technical Services,Supplies and Services,384999,Miscellaneous Expenses,01-Apr-2015,2882133-9031108038,"1,339.20",LAFARGE TARMAC TRADING LTD.
Neighbourhood Services,Technical Services,Supplies and Services,384999,Miscellaneous Expenses,01-Apr-2015,2882133-9031153187,807.03,LAFARGE TARMAC TRADING LTD.
Neighbourhood Services,Technical Services,Supplies and Services,384999,Miscellaneous Expenses,01-Apr-2015,2882133-9031230950,864.33,LAFARGE TARMAC TRADING LTD.
Neighbourhood Services,Technical Services,Supplies and Services,304221,Equipment and Materials,01-Apr-2015,2882133-9032343737,880.20,LAFARGE TARMAC TRADING LTD.
Neighbourhood Services,Technical Services,Supplies and Services,304221,Equipment and Materials,01-Apr-2015,2882133-9032343738,"5,490.65",LAFARGE TARMAC TRADING LTD.
Neighbourhood Services,Technical Services,Supplies and Services,304221,Equipment and Materials,01-Apr-2015,2882133-9032343739,878.40,LAFARGE TARMAC TRADING LTD.
Neighbourhood Services,Technical Services,Supplies and Services,304221,Equipment and Materials,01-Apr-2015,2882133-9032349454,923.75,LAFARGE TARMAC TRADING LTD.
Neighbourhood Services,Technical Services,Supplies and Services,304221,Equipment and Materials,01-Apr-2015,2882133-9032349457,690.80,LAFARGE TARMAC TRADING LTD.
Neighbourhood Services,Technical Services,Supplies and Services,304221,Equipment and Materials,01-Apr-2015,2882133-9032349459,658.00,LAFARGE TARMAC TRADING LTD.
Neighbourhood Services,Culture & Sport,Premises,125009,Rents,01-Apr-2015,2882135-U5008,"3,425.00",LANGLEY PARK BUSINESS CENTRE.
Neighbourhood Services,Direct Services,Supplies and Services,304221,Equipment and Materials,01-Apr-2015,2882165-827/038493,632.72,MAGNET LTD.
Neighbourhood Services,Direct Services,Supplies and Services,304221,Equipment and Materials,01-Apr-2015,2882165-827/038494,770.90,MAGNET LTD.
Neighbourhood Services,Technical Services,Supplies and Services,304221,Equipment and Materials,01-Apr-2015,2882171-ZBB0779438,"6,216.94",MARSHALLS MONO LTD.
Neighbourhood Services,Technical Services,Supplies and Services,304358,Equipment and Materials,01-Apr-2015,2882173-1788,750.50,MARTIN JEWITT PLANT HIRE.
Neighbourhood Services,Culture & Sport,Supplies and Services,304221,Equipment and Materials,01-Apr-2015,2882176-SIN133064,856.59,MAUDESPORT LTD.
Neighbourhood Services,Direct Services,Third Party Payments,430100,Rendered by Private Contractors,01-Apr-2015,2882195-1353837949,639.52,MITCHELL POWERSYSTEMS.
Neighbourhood Services,Culture & Sport,Supplies and Services,384700,Miscellaneous Expenses,01-Apr-2015,2882207-NEI-EXP-03-2015-119,665.00,MR E TURNBULL T/A FISHING NORTH EAST.
Neighbourhood Services,Direct Services,Supplies and Services,304259,Equipment and Materials,01-Apr-2015,2882239-062473,"2,278.75",NEW ROW FARM NURSERIES.
Neighbourhood Services,Technical Services,Third Party Payments,430100,Rendered by Private Contractors,01-Apr-2015,2882296-C482/TM/VAT/001,"1,000.00",PBU (UK) LTD.
Neighbourhood Services,Technical Services,Third Party Payments,430100,Rendered by Private Contractors,01-Apr-2015,2882296-C482/TM/VAT/003,"3,900.00",PBU (UK) LTD.
Neighbourhood Services,Technical Services,Third Party Payments,430100,Rendered by Private Contractors,01-Apr-2015,2882296-C482/TM/VAT/004,"3,900.00",PBU (UK) LTD.
Neighbourhood Services,Technical Services,Third Party Payments,430100,Rendered by Private Contractors,01-Apr-2015,2882296-C482/TM/VAT/005,"3,900.00",PBU (UK) LTD.
Neighbourhood Services,Technical Services,Third Party Payments,430100,Rendered by Private Contractors,01-Apr-2015,2882296-C482/TM/VAT/006,"3,900.00",PBU (UK) LTD.
Neighbourhood Services,Technical Services,Third Party Payments,430100,Rendered by Private Contractors,01-Apr-2015,2882296-C482/TM/VAT/007,"3,900.00",PBU (UK) LTD.
Neighbourhood Services,Culture & Sport,Supplies and Services,304221,Equipment and Materials,01-Apr-2015,2882299-2511,638.00,PEAKBODY FITNESS.
Neighbourhood Services,Direct Services,Supplies and Services,338078,Services,01-Apr-2015,2882338-4783,"6,042.80",QW SECURITY LTD.
Neighbourhood Services,Technical Services,Supplies and Services,304358,Equipment and Materials,01-Apr-2015,2882352-9180,"1,714.00",RD KEARTON & SONS LTD.
Neighbourhood Services,Projects and Business services,Supplies and Services,340001,Postages,01-Apr-2015,2882374-9049277756,"1,891.52",ROYAL MAIL GROUP PLC.
Neighbourhood Services,Projects and Business services,Supplies and Services,340001,Postages,01-Apr-2015,2882374-9049344335,"2,662.69",ROYAL MAIL GROUP PLC.
Neighbourhood Services,Culture & Sport,Supplies and Services,384700,Miscellaneous Expenses,01-Apr-2015,2882396-NEI-EXP-03-2015-118,"2,510.00",SEDGEFIELD SCHOOL SPORT PARTNERSHIP CIC.
Neighbourhood Services,Direct Services,Transport,230005,Contract Hire,01-Apr-2015,2882401-10561324,"1,132.10",SHB HIRE LTD.
Neighbourhood Services,Technical Services,Supplies and Services,304358,Equipment and Materials,01-Apr-2015,2882404-2015017,"1,317.80",SHIREHAVEN LTD.
Neighbourhood Services,Technical Services,Supplies and Services,304358,Equipment and Materials,01-Apr-2015,2882404-2015018,961.80,SHIREHAVEN LTD.
Neighbourhood Services,Technical Services,Supplies and Services,304358,Equipment and Materials,01-Apr-2015,2882404-2015019,"1,780.00",SHIREHAVEN LTD.
Neighbourhood Services,Technical Services,Supplies and Services,304358,Equipment and Materials,01-Apr-2015,2882404-2015020,"1,346.00",SHIREHAVEN LTD.
Neighbourhood Services,Technical Services,Supplies and Services,304358,Equipment and Materials,01-Apr-2015,2882404-2015021,"1,349.00",SHIREHAVEN LTD.
Neighbourhood Services,Technical Services,Supplies and Services,304358,Equipment and Materials,01-Apr-2015,2882404-2015022,"1,017.00",SHIREHAVEN LTD.
Neighbourhood Services,Redundant Direct Services,Transport,230701,Contract Hire,01-Apr-2015,2882406-220/15/0002640,"56,370.89",SIEMENS FINANCIAL SERVICES LTD.
Neighbourhood Services,Culture & Sport,Supplies and Services,384700,Miscellaneous Expenses,01-Apr-2015,2882419-NEI-EXP-03-2015-116,"1,890.00",SLAM COMMUNITY DEVELOPMENT TRUST (CDT).
Neighbourhood Services,Technical Services,Stock,926900,Stock in hand-Inventory system,01-Apr-2015,2882424-186225,"2,830.00",SNAPFAST.
Neighbourhood Services,Direct Services,Transport,230710,Contract Hire,01-Apr-2015,2882426-L/011/15/04501,"2,500.00",SOCIETE GENERALE EQUIPMENT FINANCE LTD.
Neighbourhood Services,Direct Services,Transport,230710,Contract Hire,01-Apr-2015,2882426-L/011/15/04503,"7,775.00",SOCIETE GENERALE EQUIPMENT FINANCE LTD.
Neighbourhood Services,Direct Services,Supplies and Services,304221,Equipment and Materials,01-Apr-2015,2882456-0000076977,561.38,TA PLASTIC SUPPLIES LTD.
Neighbourhood Services,Technical Services,Supplies and Services,304221,Equipment and Materials,01-Apr-2015,2882461-9032334791,666.00,USE LAFARGE TARMAC (44422) TARMAC BUILDING PRODUCTS LTD.
Neighbourhood Services,Technical Services,Supplies and Services,304221,Equipment and Materials,01-Apr-2015,2882461-9032343735,903.43,USE LAFARGE TARMAC (44422) TARMAC BUILDING PRODUCTS LTD.
Neighbourhood Services,Direct Services,Third Party Payments,430100,Rendered by Private Contractors,01-Apr-2015,2882471-96309695,"1,567.62",TERBERG MATEC (UK) LTD.
Neighbourhood Services,Technical Services,Stock,926900,Stock in hand-Inventory system,01-Apr-2015,2882488-N/IN141880,"1,081.07",THOMAS OWEN & SONS (NEWCASTLE) LTD.
Neighbourhood Services,Technical Services,Stock,926900,Stock in hand-Inventory system,01-Apr-2015,2882489-N/IN141879,637.45,THOMAS OWEN & SONS (NEWCASTLE) LTD.
Neighbourhood Services,Technical Services,Stock,926900,Stock in hand-Inventory system,01-Apr-2015,2882491-59081,925.00,THORNE & DERRICK.
Neighbourhood Services,Direct Services,Supplies and Services,304221,Equipment and Materials,01-Apr-2015,2882518-140188,676.92,TUDOR (UK) LTD T/A TUDOR ENVIRONMENTAL.
Neighbourhood Services,Technical Services,Supplies and Services,304221,Equipment and Materials,01-Apr-2015,2882522-146657,574.10,TYNEDALE ROADSTONE LTD.
Neighbourhood Services,Technical Services,Supplies and Services,304358,Equipment and Materials,01-Apr-2015,2882556-38898,"2,115.75",W MARLEY AGRICULTURAL CONTRACTORS LTD.
Neighbourhood Services,Technical Services,Supplies and Services,304358,Equipment and Materials,01-Apr-2015,2882556-38937,544.00,W MARLEY AGRICULTURAL CONTRACTORS LTD.
Neighbourhood Services,Technical Services,Supplies and Services,304357,Equipment and Materials,01-Apr-2015,2882566-201550032,504.00,WEMO TEC UK LTD.
Neighbourhood Services,Direct Services,Stock,926004,Stock,01-Apr-2015,2882582-SVI32134,850.22,ZOELLER WASTE SYSTEMS LTD.
Neighbourhood Services,Direct Services,Third Party Payments,430100,Rendered by Private Contractors,01-Apr-2015,2882582-SVI32136,566.32,ZOELLER WASTE SYSTEMS LTD.
Neighbourhood Services,Direct Services,Third Party Payments,430100,Rendered by Private Contractors,01-Apr-2015,2882582-SVI32137,509.47,ZOELLER WASTE SYSTEMS LTD.
RED HRA,HRA Centrally Managed,Supplies and Services,384999,Miscellaneous Expenses,01-Apr-2015,239081-RENTREFUND,"1,989.67",REDACTED - PAYMENT TO INDIVIDUAL
RED HRA,HRA Centrally Managed,Supplies and Services,384999,Miscellaneous Expenses,01-Apr-2015,239103-RENTREFUND,505.56,REDACTED - PAYMENT TO INDIVIDUAL
RED HRA,HRA Centrally Managed,Creditors,952191,Creditor-HRA-rents-refunds,01-Apr-2015,239113-DVHR00254,748.23,REDACTED - PAYMENT TO INDIVIDUAL
RED HRA,Housing Revenue Account,Third Party Payments,430100,Rendered by Private Contractors,01-Apr-2015,2881912-80001996,"450,000.00",DALE & VALLEY HOMES.
RED HRA,HRA Capital,Construction Work,908105,Construction work,01-Apr-2015,2881959-REND,"1,181.60",EDENDENE CONSTRUCTION SERVICES LTD.
RED HRA,HRA Capital,Construction Work,908105,Construction work,01-Apr-2015,2882017-SIGN/00050778,"661,049.87",GENTOO CONSTRUCTION LTD.
RED HRA,HRA Centrally Managed,Supplies and Services,384999,Miscellaneous Expenses,01-Apr-2015,2882219-RENTREFUND,"1,641.02",REDACTED - PAYMENT TO INDIVIDUAL
RED HRA,HRA Capital,Construction Work,908105,Construction work,01-Apr-2015,2882557-B50405-3,"5,741.16",WATES CONSTRUCTION LTD.
Regeneration & Economic Development,Economic Development and Housing,Cap Exp on Grants & Other Financial Assistance (REFCUS),918401,Capital grants,01-Apr-2015,239038-RED-03-2015-280,"1,452.00",DAVID CRAWFORD PLUMBING & HEATING.
Regeneration & Economic Development,Transport and Contracted Services,Supplies and Services,344014,Telephones,01-Apr-2015,239051-01172306544,"1,147.88",EE LTD.
Regeneration & Economic Development,Spatial Policy Planning Assets & Environment,Supplies and Services,338027,Services,01-Apr-2015,239092-337829-5/3/15,630.00,MR IAN PONTER.
Regeneration & Economic Development,Economic Development and Housing,Supplies and Services,372009,Subscriptions,01-Apr-2015,239139-UKSPA2477,"1,300.00",UK SCIENCE PARK ASSOCIATION.
Regeneration & Economic Development,Transport and Contracted Services,Construction Work,908105,Construction work,01-Apr-2015,2881826-NO22032,"2,542.78",BUS SHELTERS LTD.
Regeneration & Economic Development,Spatial Policy Planning Assets & Environment,Supplies and Services,384199,Miscellaneous Expenses,01-Apr-2015,2881956-438,"2,000.00",ECO ENTERPRISES LTD.
Regeneration & Economic Development,Economic Development and Housing,Supplies and Services,384700,Miscellaneous Expenses,01-Apr-2015,2881982-RED-03-2015-297,"4,000.00",FAT BREWER.
Regeneration & Economic Development,Economic Development and Housing,Supplies and Services,384999,Miscellaneous Expenses,01-Apr-2015,2881983-001,526.50,FERNANDA LOURENCO.
Regeneration & Economic Development,Economic Development and Housing,Cap Exp on Grants & Other Financial Assistance (REFCUS),918401,Capital grants,01-Apr-2015,2881991-4430,585.00,FIVE LAMPS ORGANISATION.
Regeneration & Economic Development,Economic Development and Housing,Cap Exp on Grants & Other Financial Assistance (REFCUS),918401,Capital grants,01-Apr-2015,2881991-4431,585.00,FIVE LAMPS ORGANISATION.
Regeneration & Economic Development,Economic Development and Housing,Cap Exp on Grants & Other Financial Assistance (REFCUS),918401,Capital grants,01-Apr-2015,2881991-4432,585.00,FIVE LAMPS ORGANISATION.
Regeneration & Economic Development,Economic Development and Housing,Cap Exp on Grants & Other Financial Assistance (REFCUS),918401,Capital grants,01-Apr-2015,2881991-4433,585.00,FIVE LAMPS ORGANISATION.
Regeneration & Economic Development,Economic Development and Housing,Cap Exp on Grants & Other Financial Assistance (REFCUS),918401,Capital grants,01-Apr-2015,2881991-4434,585.00,FIVE LAMPS ORGANISATION.
Regeneration & Economic Development,Economic Development and Housing,Cap Exp on Grants & Other Financial Assistance (REFCUS),918401,Capital grants,01-Apr-2015,2881991-4435,585.00,FIVE LAMPS ORGANISATION.
Regeneration & Economic Development,Economic Development and Housing,Cap Exp on Grants & Other Financial Assistance (REFCUS),918401,Capital grants,01-Apr-2015,2881991-4436,585.00,FIVE LAMPS ORGANISATION.
Regeneration & Economic Development,Economic Development and Housing,Cap Exp on Grants & Other Financial Assistance (REFCUS),918401,Capital grants,01-Apr-2015,2881991-4437,585.00,FIVE LAMPS ORGANISATION.
Regeneration & Economic Development,Economic Development and Housing,Cap Exp on Grants & Other Financial Assistance (REFCUS),918401,Capital grants,01-Apr-2015,2881991-4438,585.00,FIVE LAMPS ORGANISATION.
Regeneration & Economic Development,Economic Development and Housing,Cap Exp on Grants & Other Financial Assistance (REFCUS),918401,Capital grants,01-Apr-2015,2881991-4439,585.00,FIVE LAMPS ORGANISATION.
Regeneration & Economic Development,Economic Development and Housing,Cap Exp on Grants & Other Financial Assistance (REFCUS),918401,Capital grants,01-Apr-2015,2881991-4440,585.00,FIVE LAMPS ORGANISATION.
Regeneration & Economic Development,Economic Development and Housing,Cap Exp on Grants & Other Financial Assistance (REFCUS),918401,Capital grants,01-Apr-2015,2881991-4441,585.00,FIVE LAMPS ORGANISATION.
Regeneration & Economic Development,Economic Development and Housing,Cap Exp on Grants & Other Financial Assistance (REFCUS),918401,Capital grants,01-Apr-2015,2881991-4442,585.00,FIVE LAMPS ORGANISATION.
Regeneration & Economic Development,Economic Development and Housing,Cap Exp on Grants & Other Financial Assistance (REFCUS),918401,Capital grants,01-Apr-2015,2881991-4443,585.00,FIVE LAMPS ORGANISATION.
Regeneration & Economic Development,Economic Development and Housing,Supplies and Services,384700,Miscellaneous Expenses,01-Apr-2015,2882045-RED-03-2015-330,"1,000.00",HARDWICKE HALL MANOR HOTEL.
Regeneration & Economic Development,Economic Development and Housing,Fees,901002,Professional fees,01-Apr-2015,2882055-HR38169,500.00,HENRY RILEY T/A RILEY CONSULTING.
Regeneration & Economic Development,Economic Development and Housing,Supplies and Services,384700,Miscellaneous Expenses,01-Apr-2015,2882166-RED-03-20015-336,"1,000.00",MALLABAR`S GROCERY.
Regeneration & Economic Development,Spatial Policy Planning Assets & Environment,Third Party Payments,440999,Other Third Party Payments,01-Apr-2015,2882185-3756,"2,527.71",MICROCOPY SYSTEMS LTD.
Regeneration & Economic Development,Spatial Policy Planning Assets & Environment,Third Party Payments,440999,Other Third Party Payments,01-Apr-2015,2882185-3757,"1,402.01",MICROCOPY SYSTEMS LTD.
Regeneration & Economic Development,Economic Development and Housing,Supplies and Services,384199,Miscellaneous Expenses,01-Apr-2015,2882242-6564,"2,100.00",NEWCASTLE GATESHEAD INITIATIVE.
Regeneration & Economic Development,Economic Development and Housing,Supplies and Services,384700,Miscellaneous Expenses,01-Apr-2015,2882263-RED-03-2015-044,"1,000.00",NORTHERN HYDRAULIC CYLINDER ENGINEERS LTD.
Regeneration & Economic Development,Economic Development and Housing,Supplies and Services,384700,Miscellaneous Expenses,01-Apr-2015,2882293-RED-03-2015-331,"1,000.00",PAUL MURPHY JOINERS.
Regeneration & Economic Development,Transport and Contracted Services,Third Party Payments,430100,Rendered by Private Contractors,01-Apr-2015,2882338-4739,526.10,QW SECURITY LTD.
Regeneration & Economic Development,Transport and Contracted Services,Third Party Payments,430100,Rendered by Private Contractors,01-Apr-2015,2882338-4803,526.10,QW SECURITY LTD.
Regeneration & Economic Development,Economic Development and Housing,Third Party Payments,440999,Other Third Party Payments,01-Apr-2015,2882395-4100483233,"22,612.76",SCOTTISH GAS T/A WARM UP NORTH.
Regeneration & Economic Development,Economic Development and Housing,Construction Work,908105,Construction work,01-Apr-2015,2882413,"46,855.45",SIR ROBERT MCALPINE LTD.
Regeneration & Economic Development,Economic Development and Housing,Supplies and Services,338066,Services,01-Apr-2015,2882422-SSL00011,"10,000.00",SMART SPECIALISATION LTD.
Regeneration & Economic Development,Economic Development and Housing,Supplies and Services,384199,Miscellaneous Expenses,01-Apr-2015,2882508-HS/4721,"1,200.00",TRAVMEDIA (UK) LTD.
Regeneration & Economic Development,Economic Development and Housing,Supplies and Services,384700,Miscellaneous Expenses,01-Apr-2015,2882571-RED-03-2015-295,"1,000.00",WOOFCUTTS & HEAVENLY PET SUPPLIES.
Resources,Human Resources,Supplies and Services,352001,Conference Expenses,01-Apr-2015,2881849-53271,"1,250.00",CHARTERED INSTITUTE OF PAYROLL PROFESSIONALS (CIPP).
Resources,Centrally Administered Costs,Supplies and Services,384199,Miscellaneous Expenses,01-Apr-2015,2881860-C/BC130902,"20,541.74",CIVICA UK LTD.
Resources,Legal & Democratic Services,Supplies and Services,338025,Services,01-Apr-2015,2881875-S44961-00236,"1,140.00",CO-OPERATIVE FUNERAL CARE.
Resources,Legal & Democratic Services,Supplies and Services,338025,Services,01-Apr-2015,2881876-S44995-01020,850.00,CO-OPERATIVE FUNERAL CARE.
Resources,I.C.T. Services,Supplies and Services,342051,Computers and Communications,01-Apr-2015,2882004-SIN142119,"3,230.21",FRONTIER SOFTWARE PLC.
Resources,I.C.T. Services,Supplies and Services,304245,Equipment and Materials,01-Apr-2015,2882063-230059N,795.60,HOWARD SMITH PAPER GROUP - IN ADMINISTRATION.
Resources,Centrally Administered Costs,Supplies and Services,338013,Services,01-Apr-2015,2882180-1039718,"33,318.00",MAZARS LLP.
Resources,Corporate Services Financing,Debtors,930165,Debtor-Housing Benefit Overpaid Recovered,01-Apr-2015,2882193-RES-03-2015-223,"2,006.34",REDACTED - PAYMENT TO INDIVIDUAL
Resources,Legal & Democratic Services,Supplies and Services,338042,Services,01-Apr-2015,2882210-310336/INVJB187,540.00,MR JAMES BROWN.
Resources,I.C.T. Services,Supplies and Services,338078,Services,01-Apr-2015,2882270-15994,769.00,NTA MONITOR LTD.
Resources,I.C.T. Services,Supplies and Services,340001,Postages,01-Apr-2015,2882374-9049336895,"13,990.17",ROYAL MAIL GROUP PLC.
Resources,I.C.T. Services,Stock,926900,Stock in hand-Inventory system,01-Apr-2015,2882575-X658855,"2,547.00",XMA LTD.
Assistant Chief Executive,Partnerships & Community Engagement Div.,Transfer Payments,525030,Other,02-Apr-2015,2882817-VOUCHER14AB,"1,000.00",INTEROPERA.
Children and Adult Services,Central Charges (CYPS),Premises,135005,Water Services,02-Apr-2015,2882918-210206120023006,"2,085.00",NORTHUMBRIAN WATER LTD.
Children and Adult Services,Childrens Services,Transport,235073,Public Transport,02-Apr-2015,2883033-837,725.76,TEESDALE COMMUNITY RESOURCES (TCR) LTD.
Children and Adult Services,Childrens Services,Third Party Payments,440001,Other Third Party Payments,02-Apr-2015,2882823-CAS-03-2015-126,500.00,REDACTED - PAYMENT TO INDIVIDUAL
Children and Adult Services,Childrens Services,Transport,230007,Contract Hire,02-Apr-2015,2882598-16/15,959.00,ADVANCE TRAVEL.
Children and Adult Services,Childrens Services,Transport,230005,Contract Hire,02-Apr-2015,2883011-12929,845.00,STANLEY TRAVEL (NORTH EAST) LTD.
Children and Adult Services,Childrens Services,Third Party Payments,425040,Rendered by Voluntary Organisations,02-Apr-2015,2882594-15/1686,"3,100.00",ACORN HOUSE (FOSTERING SERVICES) LTD.
Children and Adult Services,Childrens Services,Third Party Payments,425019,Rendered by Voluntary Organisations,02-Apr-2015,2882804-03DUR,"36,923.04",HORTON ESTABLISHMENTS LTD.
Children and Adult Services,Childrens Services,Transport,230005,Contract Hire,02-Apr-2015,2883011-13141,"1,170.00",STANLEY TRAVEL (NORTH EAST) LTD.
Children and Adult Services,Childrens Services,Supplies and Services,384491,Miscellaneous Expenses,02-Apr-2015,2882735-14C/FH/230REIKI,537.00,EMERALD NURSERY.
Children and Adult Services,Childrens Services,Supplies and Services,304259,Equipment and Materials,02-Apr-2015,2882939-62137149,968.89,PHS GROUP PLC.
Children and Adult Services,Childrens Services,Supplies and Services,384199,Miscellaneous Expenses,02-Apr-2015,2882899-48360038,"1,059.10",NHS PROPERTY SERVICES LTD.
Children and Adult Services,Childrens Services,Supplies and Services,338099,Services,02-Apr-2015,2882947-64,"2,100.00",PRO-MOTIV8 LTD.
Children and Adult Services,Childrens Services,Transport,240045,Car Allowances,02-Apr-2015,2882994-4139,"57,980.64",SOCIAL RESOURCE CENTRE LTD.
Children and Adult Services,Commissioning inc Supporting People,Transport,240045,Car Allowances,02-Apr-2015,2882994-4128,"13,694.47",SOCIAL RESOURCE CENTRE LTD.
Dedicated Schools Grant,Dedicated Schools Grant,Supplies and Services,342053,Computers and Communications,02-Apr-2015,2882813-124404,634.50,INCLUSIVE TECHNOLOGY LTD.
Dedicated Schools Grant,Dedicated Schools Grant,Third Party Payments,440080,Other Third Party Payments,02-Apr-2015,2882904-0000020686,765.99,NORTH EAST AUTISM SOCIETY.
Dedicated Schools Grant,Dedicated Schools Grant,Third Party Payments,440080,Other Third Party Payments,02-Apr-2015,2882904-0000020687,765.99,NORTH EAST AUTISM SOCIETY.
Children and Adult Services,Education,Supplies and Services,384199,Miscellaneous Expenses,02-Apr-2015,2882783-0000009474,"1,906.00",GROUNDWORK NORTH EAST.
Children and Adult Services,Education,Transport,230007,Contract Hire,02-Apr-2015,2882761-17152,"7,740.00",GARNETTS LTD (COACHES).
Children and Adult Services,Education,Transport,230007,Contract Hire,02-Apr-2015,2882761-17153,"17,780.00",GARNETTS LTD (COACHES).
Children and Adult Services,Education,Transport,230007,Contract Hire,02-Apr-2015,2882761-17155,"3,180.00",GARNETTS LTD (COACHES).
Children and Adult Services,Education,Transport,230007,Contract Hire,02-Apr-2015,2882761-17154,"2,580.00",GARNETTS LTD (COACHES).
Children and Adult Services,Education,Vehicles Equipment Furniture and Fittings,912701,Computer equipment,02-Apr-2015,2882816-DURH/0570B,"126,071.12",INSPIREDSPACES DURHAM LTD.
Children and Adult Services,Education,Construction Work,908105,Construction work,02-Apr-2015,2882818-26041,"1,750.00",INTERPLAN SIGN SYSTEMS LTD.
Children and Adult Services,Education,Transport,230008,Contract Hire,02-Apr-2015,2882882-058A,"1,630.20",MR GN ROBBINS T/A GNR MINIBUS HIRE.
Children and Adult Services,Education,Transport,230007,Contract Hire,02-Apr-2015,2882761-17149,"2,780.00",GARNETTS LTD (COACHES).
Children and Adult Services,Education,Transport,230007,Contract Hire,02-Apr-2015,2882761-17150,"4,360.00",GARNETTS LTD (COACHES).
Children and Adult Services,Education,Transport,230007,Contract Hire,02-Apr-2015,2882761-17151,"11,900.00",GARNETTS LTD (COACHES).
Children and Adult Services,Education,Transport,230008,Contract Hire,02-Apr-2015,2882882-059A,"1,980.75",MR GN ROBBINS T/A GNR MINIBUS HIRE.
Children and Adult Services,Head of Adults,Transport,230005,Contract Hire,02-Apr-2015,2882618-DCC1MARCH15,"2,847.50",ATLAS TAXIS BISHOP AUCKLAND.
Children and Adult Services,Head of Adults,Supplies and Services,338370,Services,02-Apr-2015,2882686-3980009424,"151,988.00",CO DURHAM & DARLINGTON NHS FOUNDATION TRUST.
Children and Adult Services,Head of Adults,Supplies and Services,338370,Services,02-Apr-2015,2882686-3980009425,"123,418.00",CO DURHAM & DARLINGTON NHS FOUNDATION TRUST.
Children and Adult Services,Head of Adults,Third Party Payments,478101,Purchase of Care,02-Apr-2015,2882690-421R97348,"1,431.79",COMMUNITY INTEGRATED CARE LTD.
Children and Adult Services,Head of Adults,Supplies and Services,304252,Equipment and Materials,02-Apr-2015,2882768-555263,966.00,GK DECORATING.
Children and Adult Services,Planning & Service Strategy,Employees,040149,Recruitment Instruction and Training,02-Apr-2015,2882649-N6948,650.00,BRITISH ASSOCIATION FOR ADOPTION & FOSTERING BAAF.
Children and Adult Services,Planning & Service Strategy,Supplies and Services,338089,Services,02-Apr-2015,2882834-1508,"1,400.00",JOHN WHEELER SOLUTIONS LTD.
Children and Adult Services,Planning & Service Strategy,Employees,040149,Recruitment Instruction and Training,02-Apr-2015,2882945-587,"1,950.00",PRICE TRAINING LTD.
Children and Adult Services,Planning & Service Strategy,Supplies and Services,338094,Services,02-Apr-2015,2883037-3054,"1,093.50",THE DURHAM CENTRE LTD.
Children and Adult Services,Planning & Service Strategy,Supplies and Services,338094,Services,02-Apr-2015,2883037-3056,"1,217.00",THE DURHAM CENTRE LTD.
Children and Adult Services,Public Health,Supplies and Services,384540,Miscellaneous Expenses,02-Apr-2015,2882605-28453,"1,071.00",ALLWAG PROMOTIONS LTD.
Children and Adult Services,Public Health,Supplies and Services,384540,Miscellaneous Expenses,02-Apr-2015,2882605-28465,"1,430.00",ALLWAG PROMOTIONS LTD.
Children and Adult Services,Public Health,Third Party Payments,460803,Contract Payments,02-Apr-2015,2882702-SINV3517,"4,166.74",CSV COMMUNITY SERVICE VOLUNTEERS.
Children and Adult Services,Public Health,Premises,125009,Rents,02-Apr-2015,2882899-48360072,"9,414.88",NHS PROPERTY SERVICES LTD.
Children and Adult Services,Public Health,Premises,130005,Rates,02-Apr-2015,2882899-48360073,"6,536.47",NHS PROPERTY SERVICES LTD.
Neighbourhood Services,Technical Services,Supplies and Services,304221,Equipment and Materials,02-Apr-2015,2882596-0000267279,"1,250.00",ACUTE SALES LTD.
Neighbourhood Services,Technical Services,Supplies and Services,304221,Equipment and Materials,02-Apr-2015,2882599-21118030,665.55,AGGREGATE INDUSTRIES UK LTD.
Neighbourhood Services,Technical Services,Supplies and Services,304221,Equipment and Materials,02-Apr-2015,2882599-21118031,"1,506.82",AGGREGATE INDUSTRIES UK LTD.
Neighbourhood Services,Technical Services,Supplies and Services,304221,Equipment and Materials,02-Apr-2015,2882599-21118139,"2,225.80",AGGREGATE INDUSTRIES UK LTD.
Neighbourhood Services,Technical Services,Supplies and Services,304221,Equipment and Materials,02-Apr-2015,2882599-21118140,991.18,AGGREGATE INDUSTRIES UK LTD.
Neighbourhood Services,Technical Services,Supplies and Services,304221,Equipment and Materials,02-Apr-2015,2882599-21118141,"1,200.65",AGGREGATE INDUSTRIES UK LTD.
Neighbourhood Services,Technical Services,Supplies and Services,304221,Equipment and Materials,02-Apr-2015,2882599-21118142,841.89,AGGREGATE INDUSTRIES UK LTD.
Neighbourhood Services,Direct Services,Third Party Payments,430100,Rendered by Private Contractors,02-Apr-2015,2882607-15058,"1,450.00",AMBIC LTD.
Neighbourhood Services,Direct Services,Third Party Payments,430100,Rendered by Private Contractors,02-Apr-2015,2882607-15062,"7,625.00",AMBIC LTD.
Neighbourhood Services,Direct Services,Third Party Payments,430100,Rendered by Private Contractors,02-Apr-2015,2882607-15063,525.00,AMBIC LTD.
Neighbourhood Services,Culture & Sport,Supplies and Services,338099,Services,02-Apr-2015,2882616-783,"3,498.00",ASA JAMES.
Neighbourhood Services,Culture & Sport,Supplies and Services,384199,Miscellaneous Expenses,02-Apr-2015,2882616-784,"3,000.00",ASA JAMES.
Neighbourhood Services,Direct Services,Transport,210057,Repair and Maintenance of Vehicles,02-Apr-2015,2882630-25153518,564.61,BELL TRUCK SALES LTD.
Neighbourhood Services,Culture & Sport,Vehicles Equipment Furniture and Fittings,912529,Purchase-equipment,02-Apr-2015,2882631-969,"2,302.65",BENDCRETE LEISURE LTD.
Neighbourhood Services,Direct Services,Transport,210057,Repair and Maintenance of Vehicles,02-Apr-2015,2882663-200234,779.95,CARRS BILLINGTON AGRICULTURE.
Neighbourhood Services,Direct Services,Supplies and Services,304221,Equipment and Materials,02-Apr-2015,2882664-457443,578.00,CARRS BILLINGTON AGRICULTURE.
Neighbourhood Services,Direct Services,Third Party Payments,430100,Rendered by Private Contractors,02-Apr-2015,2882668-16387,"5,149.35",CATHEDRAL LOCK & SAFE SERVICES LTD.
Neighbourhood Services,Direct Services,Third Party Payments,430100,Rendered by Private Contractors,02-Apr-2015,2882668-16472,908.16,CATHEDRAL LOCK & SAFE SERVICES LTD.
Neighbourhood Services,Technical Services,Stock,926900,Stock in hand-Inventory system,02-Apr-2015,2882673-68768,729.14,CHANTER BIOMED UK LTD.
Neighbourhood Services,Technical Services,Premises,150015,Apportioned Exps of Operational Blds,02-Apr-2015,2882684-14353,533.91,CLEE HILL PLANT LTD.
Neighbourhood Services,Direct Services,Third Party Payments,430100,Rendered by Private Contractors,02-Apr-2015,2882689-6200,"3,420.00",COMMERCIAL COVERINGS LTD.
Neighbourhood Services,Direct Services,Third Party Payments,430100,Rendered by Private Contractors,02-Apr-2015,2882689-6242,"1,311.00",COMMERCIAL COVERINGS LTD.
Neighbourhood Services,Culture & Sport,Supplies and Services,332029,Printing Stationery and Gen Off Exps,02-Apr-2015,2882691-UK12431,856.90,COMPETITION LINE UK LTD.
Neighbourhood Services,Direct Services,Third Party Payments,430100,Rendered by Private Contractors,02-Apr-2015,2882711-259745,"1,172.15",DENNIS EAGLE LTD.
Neighbourhood Services,Direct Services,Supplies and Services,304221,Equipment and Materials,02-Apr-2015,2882714-155457,600.00,DUNHOUSE QUARRY CO LTD.
Neighbourhood Services,Technical Services,Premises,120009,Energy Costs,02-Apr-2015,2882715-FA14951,"5,239.67",DURHAM CATHEDRAL LTD.
Neighbourhood Services,Direct Services,Transport,210057,Repair and Maintenance of Vehicles,02-Apr-2015,2882724-S187931,539.73,ECON ENGINEERING LTD.
Neighbourhood Services,Technical Services,Stock,926900,Stock in hand-Inventory system,02-Apr-2015,2882727-059-161235,"1,208.69",EDMUNDSON ELECTRICAL LTD.
Neighbourhood Services,Technical Services,Stock,926900,Stock in hand-Inventory system,02-Apr-2015,2882732-707574,"1,281.00",ELECTRICAL WASTE RECYCLING GROUP.
Neighbourhood Services,Culture & Sport,Supplies and Services,342051,Computers and Communications,02-Apr-2015,2882744-14330,"12,178.00",EXEGESIS SDM LTD.
Neighbourhood Services,Direct Services,Supplies and Services,304252,Equipment and Materials,02-Apr-2015,2882759-007046505,"2,000.00",GAP GROUP LTD.
Neighbourhood Services,Technical Services,Supplies and Services,304357,Equipment and Materials,02-Apr-2015,2882759-DCC290315,"15,293.58",GAP GROUP LTD.
Neighbourhood Services,Technical Services,Supplies and Services,338027,Services,02-Apr-2015,2882763-107416221,"1,050.00",GATESHEAD COUNCIL.
Neighbourhood Services,Direct Services,Supplies and Services,304259,Equipment and Materials,02-Apr-2015,2882766-385781,"2,259.85",GEMCO SERVICE LTD.
Neighbourhood Services,Direct Services,Supplies and Services,304259,Equipment and Materials,02-Apr-2015,2882766-385803,"3,257.95",GEMCO SERVICE LTD.
Neighbourhood Services,Technical Services,Third Party Payments,430100,Rendered by Private Contractors,02-Apr-2015,2882785-SC5252/201546,"192,300.16",HALL CONSTRUCTION SERVICES LTD.
Neighbourhood Services,Direct Services,Supplies and Services,304221,Equipment and Materials,02-Apr-2015,2882790-SI-2563,611.89,HARELAW SAWMILL LTD.
Neighbourhood Services,Direct Services,Third Party Payments,430100,Rendered by Private Contractors,02-Apr-2015,2882801-58337,"1,540.42",HOGARTH COACHWORKS LTD.
Neighbourhood Services,Culture & Sport,Supplies and Services,304252,Equipment and Materials,02-Apr-2015,2882818-26040,629.00,INTERPLAN SIGN SYSTEMS LTD.
Neighbourhood Services,Direct Services,Third Party Payments,430100,Rendered by Private Contractors,02-Apr-2015,2882829-144244,"1,614.52",JG PAXTON & SONS LTD.
Neighbourhood Services,Technical Services,Supplies and Services,304221,Equipment and Materials,02-Apr-2015,2882832-08/84338,974.39,JOHN DAVIDSON (PIPES) LTD.
Neighbourhood Services,Direct Services,Supplies and Services,304221,Equipment and Materials,02-Apr-2015,2882835-1079677,"4,691.00",JOHNSONS OF WHIXLEY LTD.
Neighbourhood Services,Technical Services,Stock,926900,Stock in hand-Inventory system,02-Apr-2015,2882838-STI415974,"1,994.73",JT DOVE LTD.
Neighbourhood Services,Direct Services,Supplies and Services,304221,Equipment and Materials,02-Apr-2015,2882848-INV-5132346,"1,277.60",LINDAB LTD.
Neighbourhood Services,Direct Services,Third Party Payments,430100,Rendered by Private Contractors,02-Apr-2015,2882853-HI0073833,712.56,LOOKERS LEASING LTD.
Neighbourhood Services,Direct Services,Third Party Payments,430100,Rendered by Private Contractors,02-Apr-2015,2882853-HI0074072,712.56,LOOKERS LEASING LTD.
Neighbourhood Services,Culture & Sport,Supplies and Services,324117,Provisions,02-Apr-2015,2882861-181295,503.60,MARK TONEY & CO LTD.
Neighbourhood Services,Direct Services,Third Party Payments,430100,Rendered by Private Contractors,02-Apr-2015,2882875-1353839005,"3,000.00",MITCHELL POWERSYSTEMS.
Neighbourhood Services,Direct Services,Supplies and Services,304221,Equipment and Materials,02-Apr-2015,2882896-132942162,"1,364.43",NEWEY & EYRE LTD.
Neighbourhood Services,Culture & Sport,Premises,120009,Energy Costs,02-Apr-2015,2882899-48360041,596.77,NHS PROPERTY SERVICES LTD.
Neighbourhood Services,Direct Services,Transport,230005,Contract Hire,02-Apr-2015,2882901-74553,"3,100.00",NOBLET MUNICIPAL SERVICES LTD.
Neighbourhood Services,Direct Services,Supplies and Services,304357,Equipment and Materials,02-Apr-2015,2882902-SI/02589562,"1,470.00",NOMIX ENVIRO A DIVISION OF FRONTIER AGRICULTURE LTD.
Neighbourhood Services,Direct Services,Debtors,930046,Debtor-leasing,02-Apr-2015,2882906-227297,"32,375.00",NORTH EAST TRUCK & VAN LTD.
Neighbourhood Services,Direct Services,Debtors,930046,Debtor-leasing,02-Apr-2015,2882906-227298,"32,375.00",NORTH EAST TRUCK & VAN LTD.
Neighbourhood Services,Direct Services,Debtors,930046,Debtor-leasing,02-Apr-2015,2882906-227299,"32,375.00",NORTH EAST TRUCK & VAN LTD.
Neighbourhood Services,Culture & Sport,Supplies and Services,384540,Miscellaneous Expenses,02-Apr-2015,2882915-7741,585.00,NORTHERN PRINT DISTRIBUTION LTD.
Neighbourhood Services,EnvironmentHealth & Consumer Protection,Premises,135005,Water Services,02-Apr-2015,2882918-10230970002X065,922.74,NORTHUMBRIAN WATER LTD.
Neighbourhood Services,Culture & Sport,Premises,135005,Water Services,02-Apr-2015,2882918-225733450031023,"8,101.80",NORTHUMBRIAN WATER LTD.
Neighbourhood Services,Culture & Sport,Premises,135005,Water Services,02-Apr-2015,2882918-260100800019090,"3,869.48",NORTHUMBRIAN WATER LTD.
Neighbourhood Services,Culture & Sport,Premises,135005,Water Services,02-Apr-2015,2882918-313796730013004,734.40,NORTHUMBRIAN WATER LTD.
Neighbourhood Services,Culture & Sport,Supplies and Services,384700,Miscellaneous Expenses,02-Apr-2015,2882919-NEI-EXP-03-2015-128,640.00,NOUVEAU FITNESS CIC.
Neighbourhood Services,Direct Services,Supplies and Services,304221,Equipment and Materials,02-Apr-2015,2882929-BR518415,797.18,PARK ELECTRICAL DISTRIBUTORS LTD.
Neighbourhood Services,Direct Services,Supplies and Services,304221,Equipment and Materials,02-Apr-2015,2882929-BR518416,578.39,PARK ELECTRICAL DISTRIBUTORS LTD.
Neighbourhood Services,Technical Services,Stock,926900,Stock in hand-Inventory system,02-Apr-2015,2882929-XL137746,"4,026.00",PARK ELECTRICAL DISTRIBUTORS LTD.
Neighbourhood Services,Technical Services,Stock,926900,Stock in hand-Inventory system,02-Apr-2015,2882929-XL137747,700.00,PARK ELECTRICAL DISTRIBUTORS LTD.
Neighbourhood Services,Technical Services,Stock,926900,Stock in hand-Inventory system,02-Apr-2015,2882929-XL137761,617.30,PARK ELECTRICAL DISTRIBUTORS LTD.
Neighbourhood Services,Technical Services,Stock,926900,Stock in hand-Inventory system,02-Apr-2015,2882929-XL137762,"3,093.20",PARK ELECTRICAL DISTRIBUTORS LTD.
Neighbourhood Services,Technical Services,Stock,926900,Stock in hand-Inventory system,02-Apr-2015,2882929-XL137770,816.00,PARK ELECTRICAL DISTRIBUTORS LTD.
Neighbourhood Services,Direct Services,Supplies and Services,338078,Services,02-Apr-2015,2882951-4701,"7,443.68",QW SECURITY LTD.
Neighbourhood Services,Technical Services,Third Party Payments,430100,Rendered by Private Contractors,02-Apr-2015,2882966-2320,"4,900.26",ROUTE ONE HIGHWAYS LTD.
Neighbourhood Services,Direct Services,Third Party Payments,430100,Rendered by Private Contractors,02-Apr-2015,2882968-MAR01915,693.46,RW CHICKEN (SCAFFOLDING) LTD.
Neighbourhood Services,Direct Services,Third Party Payments,430100,Rendered by Private Contractors,02-Apr-2015,2882968-MAR02015,504.74,RW CHICKEN (SCAFFOLDING) LTD.
Neighbourhood Services,Direct Services,Transport,210057,Repair and Maintenance of Vehicles,02-Apr-2015,2882970-411308,"2,771.38",S JENNINGS LTD.
Neighbourhood Services,Direct Services,Transport,230005,Contract Hire,02-Apr-2015,2882981-10576418,672.00,SHB HIRE LTD.
Neighbourhood Services,Direct Services,Supplies and Services,304259,Equipment and Materials,02-Apr-2015,2882983-CD970162872,"1,028.78",SHERRIFF AMENITY.
Neighbourhood Services,Direct Services,Supplies and Services,304221,Equipment and Materials,02-Apr-2015,2882983-CD970162930,"4,584.00",SHERRIFF AMENITY.
Neighbourhood Services,Technical Services,Supplies and Services,304221,Equipment and Materials,02-Apr-2015,2882988-714517814575,881.20,SIG TRADING LTD.
Neighbourhood Services,Direct Services,Supplies and Services,304221,Equipment and Materials,02-Apr-2015,2882991-2450066628,"4,612.85",SIKA LIQUID PLASTICS LTD.
Neighbourhood Services,Direct Services,Third Party Payments,430100,Rendered by Private Contractors,02-Apr-2015,2882995-L/011/15/02086,553.00,SOCIETE GENERALE EQUIPMENT FINANCE LTD.
Neighbourhood Services,Direct Services,Third Party Payments,430100,Rendered by Private Contractors,02-Apr-2015,2882995-L/011/15/02087,"1,927.00",SOCIETE GENERALE EQUIPMENT FINANCE LTD.
Neighbourhood Services,Technical Services,Supplies and Services,304221,Equipment and Materials,02-Apr-2015,2883015-070414,983.16,STONEGRAVE AGGREGATES LTD.
Neighbourhood Services,Direct Services,Supplies and Services,304221,Equipment and Materials,02-Apr-2015,2883025-1514850,"3,022.60",T CROSSLING & CO LTD.
Neighbourhood Services,Direct Services,Third Party Payments,430100,Rendered by Private Contractors,02-Apr-2015,2883030-6879,"2,265.00",TEAMS ROOFING LTD.
Neighbourhood Services,Direct Services,Third Party Payments,430100,Rendered by Private Contractors,02-Apr-2015,2883030-6926,"1,824.00",TEAMS ROOFING LTD.
Neighbourhood Services,Direct Services,Supplies and Services,304221,Equipment and Materials,02-Apr-2015,2883041-001520185,"3,096.11",THORLUX LIGHTING.
Neighbourhood Services,Technical Services,Supplies and Services,304221,Equipment and Materials,02-Apr-2015,2883057-145531A,"1,316.39",TYNEDALE ROADSTONE LTD.
Neighbourhood Services,Direct Services,Supplies and Services,304221,Equipment and Materials,02-Apr-2015,2883059-1012014,"4,136.32",UFW LTD T/A FLOGAS RENEWABLES.
Neighbourhood Services,Direct Services,Supplies and Services,304259,Equipment and Materials,02-Apr-2015,2883067-00202/2015,"1,600.00",VIPA UK LTD.
Neighbourhood Services,Technical Services,Supplies and Services,304221,Equipment and Materials,02-Apr-2015,2883074-7004,870.00,WILF HUSBAND PLANT HIRE.
Neighbourhood Services,Culture & Sport,Supplies and Services,384700,Miscellaneous Expenses,02-Apr-2015,2883075-NEI-EXP-03-2015-131,930.00,WINGATE & STATION TOWN FAMILY CENTRE.
Neighbourhood Services,Technical Services,Stock,926900,Stock in hand-Inventory system,02-Apr-2015,2883079-20834885,843.60,WOLSELEY UK LTD.
Neighbourhood Services,Direct Services,Transport,210057,Repair and Maintenance of Vehicles,02-Apr-2015,2883083-SVI32002,"1,276.84",ZOELLER WASTE SYSTEMS LTD.
Neighbourhood Services,Direct Services,Transport,210057,Repair and Maintenance of Vehicles,02-Apr-2015,2883083-SVI32040,989.37,ZOELLER WASTE SYSTEMS LTD.
RED HRA,Housing Revenue Account,Employees,035001,Allowances,02-Apr-2015,2882588-43,"3,277.91",2005/2006 REGENT CAPITAL SPECTRUM 6 SYNDICATE.
RED HRA,HRA Capital,Construction Work,908105,Construction work,02-Apr-2015,2882723-SINV/00003610,"7,123.66",EAST DURHAM HOMES.
RED HRA,HRA Capital,Construction Work,908105,Construction work,02-Apr-2015,2882737-124270,"3,858.44",ESH CONSTRUCTION LTD FORMERLY LUMSDEN & CARROLL CONSTRUCTION LTD.
RED HRA,HRA Capital,Construction Work,908105,Construction work,02-Apr-2015,2882737-B50375-FINAL,"11,245.96",ESH CONSTRUCTION LTD FORMERLY LUMSDEN & CARROLL CONSTRUCTION LTD.
RED HRA,HRA Capital,Construction Work,908105,Construction work,02-Apr-2015,2882737-B50379-FINAL,"3,003.62",ESH CONSTRUCTION LTD FORMERLY LUMSDEN & CARROLL CONSTRUCTION LTD.
RED HRA,HRA Capital,Construction Work,908105,Construction work,02-Apr-2015,2882737-B50380-FINAL,"4,907.10",ESH CONSTRUCTION LTD FORMERLY LUMSDEN & CARROLL CONSTRUCTION LTD.
RED HRA,HRA Capital,Construction Work,908105,Construction work,02-Apr-2015,2882826-10115,"2,986.08",JC MAINTENANCE SERVICES LTD.
RED HRA,Housing Revenue Account,Supplies and Services,384071,Miscellaneous Expenses,02-Apr-2015,2882953-798722,"1,279.00",RADISSON BLUE HOTEL DURHAM.
RED HRA,HRA Capital,Construction Work,908105,Construction work,02-Apr-2015,2883004-216100,"330,174.89",SPRINGS ROOFING LTD.
RED HRA,HRA Capital,Construction Work,908105,Construction work,02-Apr-2015,2883045-I2015/013,880.00,TODD MILBURN PARTNERSHIP LTD.
Regeneration & Economic Development,Economic Development and Housing,Cap Exp on Grants & Other Financial Assistance (REFCUS),918401,Capital grants,02-Apr-2015,2882595-RED-04-2015-012,"3,252.06",ACORN PLUMBING & HEATING SERVICES LTD.
Regeneration & Economic Development,Economic Development and Housing,Fees,901002,Professional fees,02-Apr-2015,2882617-14058976,"1,188.25",ATKINS GLOBAL.
Regeneration & Economic Development,Economic Development and Housing,Premises,120021,Energy Costs,02-Apr-2015,2882696-10001575,"1,433.48",CORONA ENERGY RETAIL 2 LTD.
Regeneration & Economic Development,Economic Development and Housing,Premises,120021,Energy Costs,02-Apr-2015,2882696-10003256,"1,797.55",CORONA ENERGY RETAIL 2 LTD.
Regeneration & Economic Development,Economic Development and Housing,Cap Exp on Grants & Other Financial Assistance (REFCUS),918401,Capital grants,02-Apr-2015,2882703-RED-04-2015-014,"2,870.00",CUMMINGS CONTRACTORS.
Regeneration & Economic Development,Economic Development and Housing,Cap Exp on Grants & Other Financial Assistance (REFCUS),918401,Capital grants,02-Apr-2015,2882798-RED-04-2015-015,"3,072.36",HES GROUP UK LTD.
Regeneration & Economic Development,Economic Development and Housing,Cap Exp on Grants & Other Financial Assistance (REFCUS),918401,Capital grants,02-Apr-2015,2882863-RED-04-2015-018,"3,710.00",MC DEVELOPMENTS.
Regeneration & Economic Development,Spatial Policy Planning Assets & Environment,Premises,125009,Rents,02-Apr-2015,2882870-5058,"17,793.75",MINTON OLDBURY LTD.
Regeneration & Economic Development,Economic Development and Housing,Cap Exp on Grants & Other Financial Assistance (REFCUS),918401,Capital grants,02-Apr-2015,2882883-RED-04-2015-029,"4,730.00",REDACTED - PAYMENT TO INDIVIDUAL
Regeneration & Economic Development,Economic Development and Housing,Cap Exp on Grants & Other Financial Assistance (REFCUS),918401,Capital grants,02-Apr-2015,2882885-RED-04-2015-030,"1,499.99",REDACTED - PAYMENT TO INDIVIDUAL
Regeneration & Economic Development,Economic Development and Housing,Supplies and Services,340001,Postages,02-Apr-2015,2882891-RED-04-2015-011,"3,000.00",NEOPOST LTD.
Regeneration & Economic Development,Economic Development and Housing,Cap Exp on Grants & Other Financial Assistance (REFCUS),918401,Capital grants,02-Apr-2015,2882893-RED-04-2015-019,"4,395.00",NEW AGE PLUMBING & HEATING SERVICES.
Regeneration & Economic Development,Economic Development and Housing,Cap Exp on Grants & Other Financial Assistance (REFCUS),918401,Capital grants,02-Apr-2015,2882893-RED-04-2015-020,"4,590.00",NEW AGE PLUMBING & HEATING SERVICES.
Regeneration & Economic Development,Transport and Contracted Services,Third Party Payments,430108,Rendered by Private Contractors,02-Apr-2015,2882895-1800007355109,"14,598.60",NEWCASTLE UPON TYNE CITY COUNCIL.
Regeneration & Economic Development,Economic Development and Housing,Supplies and Services,384199,Miscellaneous Expenses,02-Apr-2015,2882917-36,"5,000.00",NORTHUMBERLAND TOURISM WEB LTD (NT WEB).
Regeneration & Economic Development,Transport and Contracted Services,Premises,135005,Water Services,02-Apr-2015,2882918-260101200027041,"2,388.36",NORTHUMBRIAN WATER LTD.
Regeneration & Economic Development,Transport and Contracted Services,Premises,135005,Water Services,02-Apr-2015,2882918-260101200036045,"1,613.29",NORTHUMBRIAN WATER LTD.
Regeneration & Economic Development,Economic Development and Housing,Premises,120009,Energy Costs,02-Apr-2015,2882920-NNO7NQ43,511.74,NPOWER.
Regeneration & Economic Development,Economic Development and Housing,Premises,120009,Energy Costs,02-Apr-2015,2882920-NNO7NQ5B,"1,403.34",NPOWER.
Regeneration & Economic Development,Economic Development and Housing,Cap Exp on Grants & Other Financial Assistance (REFCUS),918401,Capital grants,02-Apr-2015,2882973-RED-04-2015-021,"1,697.50",SAFEBUILD LTD.
Regeneration & Economic Development,Economic Development and Housing,Cap Exp on Grants & Other Financial Assistance (REFCUS),918401,Capital grants,02-Apr-2015,2883042-RED-04-2015-013,"2,300.34",THYSSENKRUPP ENCASA A DIVISION OF THYSSENKRUPP ACCESS LTD.
Regeneration & Economic Development,Economic Development and Housing,Cap Exp on Grants & Other Financial Assistance (REFCUS),918401,Capital grants,02-Apr-2015,2883042-RED-04-2015-017,"12,838.00",THYSSENKRUPP ENCASA A DIVISION OF THYSSENKRUPP ACCESS LTD.
Regeneration & Economic Development,Economic Development and Housing,Cap Exp on Grants & Other Financial Assistance (REFCUS),918401,Capital grants,02-Apr-2015,2883042-RED-04-2015-022,"1,740.00",THYSSENKRUPP ENCASA A DIVISION OF THYSSENKRUPP ACCESS LTD.
Regeneration & Economic Development,Economic Development and Housing,Cap Exp on Grants & Other Financial Assistance (REFCUS),918401,Capital grants,02-Apr-2015,2883042-RED-04-2015-023,"6,085.84",THYSSENKRUPP ENCASA A DIVISION OF THYSSENKRUPP ACCESS LTD.
Regeneration & Economic Development,Economic Development and Housing,Cap Exp on Grants & Other Financial Assistance (REFCUS),918401,Capital grants,02-Apr-2015,2883042-RED-04-2015-024,"3,102.00",THYSSENKRUPP ENCASA A DIVISION OF THYSSENKRUPP ACCESS LTD.
Regeneration & Economic Development,Economic Development and Housing,Cap Exp on Grants & Other Financial Assistance (REFCUS),918401,Capital grants,02-Apr-2015,2883042-RED-04-2015-025,"3,237.34",THYSSENKRUPP ENCASA A DIVISION OF THYSSENKRUPP ACCESS LTD.
Regeneration & Economic Development,Economic Development and Housing,Cap Exp on Grants & Other Financial Assistance (REFCUS),918401,Capital grants,02-Apr-2015,2883042-RED-04-2015-026,"2,425.00",THYSSENKRUPP ENCASA A DIVISION OF THYSSENKRUPP ACCESS LTD.
Regeneration & Economic Development,Economic Development and Housing,Cap Exp on Grants & Other Financial Assistance (REFCUS),918401,Capital grants,02-Apr-2015,2883042-RED-04-2015-027,"1,937.00",THYSSENKRUPP ENCASA A DIVISION OF THYSSENKRUPP ACCESS LTD.
Regeneration & Economic Development,Economic Development and Housing,Cap Exp on Grants & Other Financial Assistance (REFCUS),918401,Capital grants,02-Apr-2015,2883043-RED-04-2015-028,979.43,TILES PORCELAIN LTD.
Resources,I.C.T. Services,Vehicles Equipment Furniture and Fittings,912529,Purchase-equipment,02-Apr-2015,2882590-SIN10230,"36,001.32",802 WORKS LTD.
Resources,I.C.T. Services,Supplies and Services,342051,Computers and Communications,02-Apr-2015,2882739-123582,"89,895.00",ESRI (UK) LTD.
Resources,I.C.T. Services,Supplies and Services,332029,Printing Stationery and Gen Off Exps,02-Apr-2015,2882842-11176367841,"1,208.42",KONICA MINOLTA BUSINESS SOLUTIONS (UK) LTD.
Resources,Financial Services,Supplies and Services,384180,Miscellaneous Expenses,02-Apr-2015,2882854-0786765,"4,098.60",LOOMIS UK LTD.
Resources,I.C.T. Services,Employees,040149,Recruitment Instruction and Training,02-Apr-2015,2882894-SLINV/00001097,"4,800.00",NEW COLLEGE DURHAM.
Resources,I.C.T. Services,Supplies and Services,332029,Printing Stationery and Gen Off Exps,02-Apr-2015,2882943-614238,"1,311.00",POTTS PRINTERS LTD.
Resources,I.C.T. Services,Supplies and Services,342033,Computers and Communications,02-Apr-2015,2882996-INV01111057,924.00,SOFTCAT LTD.
Resources,I.C.T. Services,Stock,926900,Stock in hand-Inventory system,02-Apr-2015,2883001-OP/L974393,"23,185.50",SPECIALIST COMPUTER CENTRES PLC.
Resources,I.C.T. Services,Supplies and Services,304639,Equipment and Materials,02-Apr-2015,2883020-969291,893.31,SUPPLIES FOR SCHOOLS LTD.
Resources,I.C.T. Services,Employees,040149,Recruitment Instruction and Training,02-Apr-2015,2883062-4040343,"3,390.00",UNIVERSITY OF SUNDERLAND ENTERPRISES LTD.
Assistant Chief Executive,Partnerships & Community Engagement Div.,Premises,125009,Rents,07-Apr-2015,2883543-ACE-04-2015-003,800.00,PELTON COMMUNITY ASSOCIATION.
Assistant Chief Executive,Partnerships & Community Engagement Div.,Transfer Payments,525030,Other,07-Apr-2015,2883738-VOUCHERWRAIN5.,"5,000.00",WEST RAINTON & LEAMSIDE HISTORY GROUP.
Children and Adult Services,Childrens Services,Supplies and Services,364352,Grants to Voluntary Organisations,07-Apr-2015,2883361-D1IN/00017928,"2,334.82",HOME GROUP LTD.
Children and Adult Services,Childrens Services,Employees,080025,Agency Staff,07-Apr-2015,2883200-2304046,"1,544.50",CELSIAN.
Children and Adult Services,Childrens Services,Premises,125009,Rents,07-Apr-2015,2883742-333247,612.00,WHITTLE JONES (GROUP) LTD.
Children and Adult Services,Childrens Services,Employees,080025,Agency Staff,07-Apr-2015,2883671-985611,784.00,TEACHING PERSONNEL LTD.
Children and Adult Services,Childrens Services,Supplies and Services,364352,Grants to Voluntary Organisations,07-Apr-2015,2883647-D1/IN/00017940,"3,235.58",STONHAM HOUSING ASSOCIATION LTD.
Children and Adult Services,Childrens Services,Supplies and Services,364352,Grants to Voluntary Organisations,07-Apr-2015,2883647-D1/IN/00017939,"3,235.58",STONHAM HOUSING ASSOCIATION LTD.
Children and Adult Services,Childrens Services,Third Party Payments,425017,Rendered by Voluntary Organisations,07-Apr-2015,2883636-4247,"6,264.00",ST OSWALD`S HOSPICE.
Children and Adult Services,Childrens Services,Premises,108099,Service Repairs and Maintenance,07-Apr-2015,2883530-01164002,928.22,OTIS LTD.
Children and Adult Services,Childrens Services,Third Party Payments,425040,Rendered by Voluntary Organisations,07-Apr-2015,2883317-12687,730.00,FOSTER CARES LTD.
Children and Adult Services,Childrens Services,Supplies and Services,364352,Grants to Voluntary Organisations,07-Apr-2015,2883361-D1IN/00017929,"2,334.82",HOME GROUP LTD.
Children and Adult Services,Childrens Services,Supplies and Services,364352,Grants to Voluntary Organisations,07-Apr-2015,2883361-D1IN/00017931,"2,334.82",HOME GROUP LTD.
Children and Adult Services,Childrens Services,Supplies and Services,364352,Grants to Voluntary Organisations,07-Apr-2015,2883361-D1IN/00017932,"2,334.82",HOME GROUP LTD.
Children and Adult Services,Childrens Services,Supplies and Services,364352,Grants to Voluntary Organisations,07-Apr-2015,2883361-D1IN/00017933,"2,334.82",HOME GROUP LTD.
Children and Adult Services,Childrens Services,Supplies and Services,336005,Advertising,07-Apr-2015,2883273-8001,564.99,DUO PHOTO LTD.
Children and Adult Services,Childrens Services,Third Party Payments,425040,Rendered by Voluntary Organisations,07-Apr-2015,2883317-12667,730.00,FOSTER CARES LTD.
Children and Adult Services,Childrens Services,Third Party Payments,425040,Rendered by Voluntary Organisations,07-Apr-2015,2883317-12689,730.00,FOSTER CARES LTD.
Children and Adult Services,Childrens Services,Third Party Payments,425040,Rendered by Voluntary Organisations,07-Apr-2015,2883317-12694,730.00,FOSTER CARES LTD.
Children and Adult Services,Childrens Services,Third Party Payments,425040,Rendered by Voluntary Organisations,07-Apr-2015,2883317-12697,730.00,FOSTER CARES LTD.
Children and Adult Services,Childrens Services,Premises,135005,Water Services,07-Apr-2015,2883519-306820420029011,"3,457.71",NORTHUMBRIAN WATER LTD.
Children and Adult Services,Childrens Services,Supplies and Services,364352,Grants to Voluntary Organisations,07-Apr-2015,2883361-D1IN/00017924,"2,334.82",HOME GROUP LTD.
Children and Adult Services,Childrens Services,Supplies and Services,364352,Grants to Voluntary Organisations,07-Apr-2015,2883361-D1IN/00017927,"2,334.82",HOME GROUP LTD.
Children and Adult Services,Childrens Services,Supplies and Services,364352,Grants to Voluntary Organisations,07-Apr-2015,2883361-D1IN/00017934,"2,334.82",HOME GROUP LTD.
Children and Adult Services,Childrens Services,Third Party Payments,425040,Rendered by Voluntary Organisations,07-Apr-2015,2883317-12671,"1,180.00",FOSTER CARES LTD.
Children and Adult Services,Childrens Services,Third Party Payments,425040,Rendered by Voluntary Organisations,07-Apr-2015,2883317-12676,730.00,FOSTER CARES LTD.
Children and Adult Services,Childrens Services,Supplies and Services,364352,Grants to Voluntary Organisations,07-Apr-2015,2883361-D1IN/00017930,"2,334.82",HOME GROUP LTD.
Children and Adult Services,Childrens Services,Supplies and Services,338026,Services,07-Apr-2015,2883384-13032015/FINALINVOICE,854.12,JEANETTE CALLAGHAN.
Children and Adult Services,Childrens Services,Supplies and Services,384409,Miscellaneous Expenses,07-Apr-2015,2883264-4584,549.54,DIGGERLAND.
Children and Adult Services,Childrens Services,Supplies and Services,384491,Miscellaneous Expenses,07-Apr-2015,2883297-14C/SP/231NURTURING,"1,170.00",EMERALD NURSERY.
Children and Adult Services,Childrens Services,Supplies and Services,384302,Miscellaneous Expenses,07-Apr-2015,2883605-05,"1,500.00",SEAHAM YOUTH CENTRE.
Children and Adult Services,Childrens Services,Supplies and Services,384199,Miscellaneous Expenses,07-Apr-2015,2883309-GB/101111/3209,535.20,FINGERSHIELD HUMBERSIDE.
Children and Adult Services,Childrens Services,Supplies and Services,352001,Conference Expenses,07-Apr-2015,2883538-ST/14DX2/SSTCONST,600.00,PASCALE KONYN.
Children and Adult Services,Childrens Services,Supplies and Services,364352,Grants to Voluntary Organisations,07-Apr-2015,2883361-D1IN/00017925,"1,287.52",HOME GROUP LTD.
Children and Adult Services,Childrens Services,Supplies and Services,364352,Grants to Voluntary Organisations,07-Apr-2015,2883361-D1IN/00017926,"2,334.82",HOME GROUP LTD.
Children and Adult Services,Childrens Services,Supplies and Services,384237,Miscellaneous Expenses,07-Apr-2015,2883667-3106,710.50,TANFIELD RAILWAY.
Children and Adult Services,Childrens Services,Third Party Payments,425040,Rendered by Voluntary Organisations,07-Apr-2015,2883317-12674,820.00,FOSTER CARES LTD.
Children and Adult Services,Childrens Services,Third Party Payments,425040,Rendered by Voluntary Organisations,07-Apr-2015,2883317-12675,760.00,FOSTER CARES LTD.
Children and Adult Services,Childrens Services,Supplies and Services,384491,Miscellaneous Expenses,07-Apr-2015,2883236-4100483174,960.00,COUNDON & LEEHOLME EARLY YEARS CENTRE LTD.
Children and Adult Services,Childrens Services,Supplies and Services,338365,Services,07-Apr-2015,2883430-3973,570.00,LYNCH HEALTHCARE LTD.
Children and Adult Services,Childrens Services,Supplies and Services,384302,Miscellaneous Expenses,07-Apr-2015,2883549-11/3/15,"1,448.32",PHASE ONE RECORDS LTD.
Children and Adult Services,Childrens Services,Supplies and Services,364352,Grants to Voluntary Organisations,07-Apr-2015,2883647-D1/IN/00017935,"1,386.67",STONHAM HOUSING ASSOCIATION LTD.
Children and Adult Services,Childrens Services,Supplies and Services,364352,Grants to Voluntary Organisations,07-Apr-2015,2883647-D1/IN/00017936,"3,235.58",STONHAM HOUSING ASSOCIATION LTD.
Children and Adult Services,Childrens Services,Supplies and Services,364352,Grants to Voluntary Organisations,07-Apr-2015,2883647-D1/IN/00017937,"3,235.58",STONHAM HOUSING ASSOCIATION LTD.
Children and Adult Services,Childrens Services,Premises,108099,Service Repairs and Maintenance,07-Apr-2015,2883104-40509,"3,565.00",ALARM RADIO MONITORING LTD.
Children and Adult Services,Childrens Services,Premises,108099,Service Repairs and Maintenance,07-Apr-2015,2883100-28625993-61,"10,140.04",ADT FIRE & SECURITY PLC.
Children and Adult Services,Childrens Services,Premises,155001,Insurance of Premises,07-Apr-2015,2883438-IN1504057,"1,653.87",MANDALE INVESTMENTS LTD.
Children and Adult Services,Childrens Services,Supplies and Services,364352,Grants to Voluntary Organisations,07-Apr-2015,2883647-D1/IN/00017938,"3,235.58",STONHAM HOUSING ASSOCIATION LTD.
Children and Adult Services,Childrens Services,Premises,125009,Rents,07-Apr-2015,2883679-GH3814,"1,010.59",THE GREENHOUSE COMPANY (GROUNDWORK) LTD.
Children and Adult Services,Childrens Services,Third Party Payments,440013,Other Third Party Payments,07-Apr-2015,2883455-CAS-04-2015-009,"1,364.00",REDACTED - PAYMENT TO INDIVIDUAL
Children and Adult Services,Childrens Services,Supplies and Services,384199,Miscellaneous Expenses,07-Apr-2015,2883664-0000207,780.00,TALKFIRST.
Children and Adult Services,Childrens Services,Employees,040149,Recruitment Instruction and Training,07-Apr-2015,2883141-141000405,850.00,BARNARDO SERVICES LTD.
Dedicated Schools Grant,Dedicated Schools Grant,Employees,080025,Agency Staff,07-Apr-2015,2883671-985677,"2,647.15",TEACHING PERSONNEL LTD.
Dedicated Schools Grant,Dedicated Schools Grant,Third Party Payments,440080,Other Third Party Payments,07-Apr-2015,2883261-C02036,"10,938.22",DERWENTSIDE COLLEGE.
Dedicated Schools Grant,Dedicated Schools Grant,Transfer Payments,510032,School Children,07-Apr-2015,2883287-CAS-04-2015-004,"1,880.24",EDEN GARDEN NURSERY.
Children and Adult Services,Education,Supplies and Services,312011,Newspapers Books and Periodicals,07-Apr-2015,2883128-4598985,652.94,ASKEWS & HOLTS LIBRARY SERVICES LTD.
Children and Adult Services,Education,Supplies and Services,338094,Services,07-Apr-2015,2883417-18002557,945.00,LEISURE IN THE COMMUNITY LTD.
Children and Adult Services,Education,Supplies and Services,384199,Miscellaneous Expenses,07-Apr-2015,2883156-1185999,"1,200.00",BLACKBOARD INTERNATIONAL BV.
Children and Adult Services,Education,Supplies and Services,342033,Computers and Communications,07-Apr-2015,2883258-7402194057,"1,211.94",DELL COMPUTER CORPORATION LTD.
Children and Adult Services,Education,Supplies and Services,338089,Services,07-Apr-2015,2883244-CCC1415-DURHAM20,639.55,CRICHTON CASBON CONSULTING LTD.
Children and Adult Services,Education,Supplies and Services,338035,Services,07-Apr-2015,2883129-B15/1354703SV,"2,304.75",ASSOCIATED BOARD OF THE SCHOOL OF MUSIC.
Children and Adult Services,Education,Employees,040001,Recruitment Instruction and Training,07-Apr-2015,2883674-NUMBERTARINV/15356851,710.10,TES GLOBAL LTD.
Children and Adult Services,Education,Employees,040001,Recruitment Instruction and Training,07-Apr-2015,2883674-NUMBERTARINV/15357687,710.10,TES GLOBAL LTD.
Children and Adult Services,Education,Transfer Payments,510028,School Children,07-Apr-2015,2883354-15-3170DUR-C-YW,"1,380.00",HEMPSALL CONSULTANCIES LTD.
Children and Adult Services,Education,Supplies and Services,304335,Equipment and Materials,07-Apr-2015,2883252-0447,556.44,DATATRON DOCUMENT IMAGE ARCHIVING LTD.
Children and Adult Services,Education,Supplies and Services,384871,Miscellaneous Expenses,07-Apr-2015,2883099-0315/06,500.00,ADAM BUSHNELL STORY TALES.
Children and Adult Services,Education,Employees,040001,Recruitment Instruction and Training,07-Apr-2015,2883674-TARINV/15357068,710.10,TES GLOBAL LTD.
Children and Adult Services,Head of Adults,Premises,125009,Rents,07-Apr-2015,2883262-GROUPLIVING15/16,"4,646.85",DERWENTSIDE HOMES LTD.
Children and Adult Services,Head of Adults,Premises,125009,Rents,07-Apr-2015,2883283-1042938004-DORMAND,828.36,EAST DURHAM HOMES.
Children and Adult Services,Head of Adults,Premises,125009,Rents,07-Apr-2015,2883348-240667.,"2,625.00",HARLEY STREET INTERNATIONAL LTD.
Children and Adult Services,Head of Adults,Premises,150005,Apportioned Exps of Operational Blds,07-Apr-2015,2883600-115931,674.00,SANDERSON WEATHERALL LLP.
Children and Adult Services,Head of Adults,Transfer Payments,515201,Social Services Clients,07-Apr-2015,2883644-CAS-03-2015-125.,"1,390.90",REDACTED - PAYMENT TO INDIVIDUAL
Children and Adult Services,Head of Adults,Third Party Payments,470101,Purchase of Care,07-Apr-2015,2883663-221,"33,690.00",TALBOT HOUSE SCHOOL.
Children and Adult Services,Head of Adults,Premises,125009,Rents,07-Apr-2015,2883742-330207,"1,172.55",WHITTLE JONES (GROUP) LTD.
Children and Adult Services,Head of Adults,Premises,125009,Rents,07-Apr-2015,2883742-330425.,"6,265.00",WHITTLE JONES (GROUP) LTD.
Children and Adult Services,Planning & Service Strategy,Supplies and Services,338026,Services,07-Apr-2015,2883120-ARCARE/DCC02,542.50,AR CARE CONSULTANCY LTD.
Children and Adult Services,Planning & Service Strategy,Supplies and Services,338089,Services,07-Apr-2015,2883177-NOR7900,"1,300.00",BRITISH ASSOCIATION FOR ADOPTION & FOSTERING BAAF.
Children and Adult Services,Planning & Service Strategy,Supplies and Services,338094,Services,07-Apr-2015,2883328-FO0281,542.50,GLEBE CENTRE ENTERPRISES LTD.
Children and Adult Services,Planning & Service Strategy,Supplies and Services,338026,Services,07-Apr-2015,2883384-11FINAL,"2,905.00",J CAL
Children and Adult Services,Planning & Service Strategy,Supplies and Services,338026,Services,07-Apr-2015,2883384-12INTERIM,581.87,J CAL
Children and Adult Services,Planning & Service Strategy,Supplies and Services,338089,Services,07-Apr-2015,2883398-1436,"1,400.00",JOHN WHEELER SOLUTIONS LTD.
Children and Adult Services,Planning & Service Strategy,Supplies and Services,384956,Miscellaneous Expenses,07-Apr-2015,2883409-DHAM031501,"14,665.00",KWANGO LTD.
Children and Adult Services,Planning & Service Strategy,Supplies and Services,384540,Miscellaneous Expenses,07-Apr-2015,2883533-10613,578.00,PA PROMOTIONS LTD.
Children and Adult Services,Planning & Service Strategy,Supplies and Services,332047,Printing Stationery and Gen Off Exps,07-Apr-2015,2883654-7309923,"1,799.05",SUPPLIES TEAM LTD.
Children and Adult Services,Public Health,Supplies and Services,352001,Conference Expenses,07-Apr-2015,2883106-GAPC201533564,640.00,ALCOHOL FOCUS SCOTLAND.
Children and Adult Services,Public Health,Supplies and Services,384540,Miscellaneous Expenses,07-Apr-2015,2883110-28509,853.00,ALLWAG PROMOTIONS LTD.
Children and Adult Services,Public Health,Third Party Payments,460803,Contract Payments,07-Apr-2015,2883167-FPC89NOV14,793.00,BOOTS THE CHEMISTS LTD.
Children and Adult Services,Public Health,Third Party Payments,460803,Contract Payments,07-Apr-2015,2883373-FDH51,933.00,INTRAHEALTH LTD.
Children and Adult Services,Public Health,Third Party Payments,460803,Contract Payments,07-Apr-2015,2883451-E2924/15,"2,072.00",MEDICS UK.
Children and Adult Services,Public Health,Third Party Payments,460803,Contract Payments,07-Apr-2015,2883583-FL345,627.00,ROBERTS & ROBERTS LTD T/A HIGGINBOTTOM PHARMACY.
Neighbourhood Services,Technical Services,Supplies and Services,304221,Equipment and Materials,07-Apr-2015,2883102-21124277,"1,103.08",AGGREGATE INDUSTRIES UK LTD.
Neighbourhood Services,Technical Services,Supplies and Services,304221,Equipment and Materials,07-Apr-2015,2883102-21124397,"2,214.21",AGGREGATE INDUSTRIES UK LTD.
Neighbourhood Services,Technical Services,Supplies and Services,304221,Equipment and Materials,07-Apr-2015,2883102-21124398,"1,255.00",AGGREGATE INDUSTRIES UK LTD.
Neighbourhood Services,Technical Services,Supplies and Services,304221,Equipment and Materials,07-Apr-2015,2883102-21124399,"1,199.44",AGGREGATE INDUSTRIES UK LTD.
Neighbourhood Services,Technical Services,Supplies and Services,304221,Equipment and Materials,07-Apr-2015,2883102-21124400,"1,143.65",AGGREGATE INDUSTRIES UK LTD.
Neighbourhood Services,Technical Services,Supplies and Services,304221,Equipment and Materials,07-Apr-2015,2883102-21131175,"1,094.57",AGGREGATE INDUSTRIES UK LTD.
Neighbourhood Services,Technical Services,Supplies and Services,304221,Equipment and Materials,07-Apr-2015,2883102-21131284,"1,151.56",AGGREGATE INDUSTRIES UK LTD.
Neighbourhood Services,Technical Services,Supplies and Services,304221,Equipment and Materials,07-Apr-2015,2883102-21131285,"1,162.30",AGGREGATE INDUSTRIES UK LTD.
Neighbourhood Services,Technical Services,Supplies and Services,304221,Equipment and Materials,07-Apr-2015,2883102-21131286,"1,412.87",AGGREGATE INDUSTRIES UK LTD.
Neighbourhood Services,Technical Services,Supplies and Services,304221,Equipment and Materials,07-Apr-2015,2883102-21131287,597.29,AGGREGATE INDUSTRIES UK LTD.
Neighbourhood Services,Technical Services,Supplies and Services,304221,Equipment and Materials,07-Apr-2015,2883102-21131288,"1,066.39",AGGREGATE INDUSTRIES UK LTD.
Neighbourhood Services,Technical Services,Supplies and Services,304221,Equipment and Materials,07-Apr-2015,2883102-21138717,"1,573.88",AGGREGATE INDUSTRIES UK LTD.
Neighbourhood Services,Technical Services,Supplies and Services,304221,Equipment and Materials,07-Apr-2015,2883102-21138718,"1,632.35",AGGREGATE INDUSTRIES UK LTD.
Neighbourhood Services,Technical Services,Supplies and Services,304221,Equipment and Materials,07-Apr-2015,2883102-21138719,598.50,AGGREGATE INDUSTRIES UK LTD.
Neighbourhood Services,Technical Services,Supplies and Services,304221,Equipment and Materials,07-Apr-2015,2883102-21145113,"1,236.44",AGGREGATE INDUSTRIES UK LTD.
Neighbourhood Services,Technical Services,Supplies and Services,304221,Equipment and Materials,07-Apr-2015,2883102-21145114,"4,841.70",AGGREGATE INDUSTRIES UK LTD.
Neighbourhood Services,Culture & Sport,Vehicles Equipment Furniture and Fittings,912521,Purchase-furniture and fittings,07-Apr-2015,2883105-151482,"4,828.00",ALBANY CONTRACT FURNITURE.
Neighbourhood Services,Culture & Sport,Supplies and Services,338099,Services,07-Apr-2015,2883113-021,803.63,ANDREW SHUTT.
Neighbourhood Services,Culture & Sport,Supplies and Services,312017,Newspapers Books and Periodicals,07-Apr-2015,2883128-4592811,637.33,ASKEWS & HOLTS LIBRARY SERVICES LTD.
Neighbourhood Services,Culture & Sport,Supplies and Services,312017,Newspapers Books and Periodicals,07-Apr-2015,2883128-4593046,585.23,ASKEWS & HOLTS LIBRARY SERVICES LTD.
Neighbourhood Services,Direct Services,Premises,106082,Centrally Controlled Rep and Maint,07-Apr-2015,2883142-27582,"5,349.60",BARR & WRAY LTD.
Neighbourhood Services,Culture & Sport,Supplies and Services,324001,Provisions,07-Apr-2015,2883190-841265829,"1,814.06",CARLSBERG UK LTD.
Neighbourhood Services,Culture & Sport,Supplies and Services,304259,Equipment and Materials,07-Apr-2015,2883193-457507,"3,305.00",CARRS BILLINGTON AGRICULTURE.
Neighbourhood Services,Direct Services,Supplies and Services,304259,Equipment and Materials,07-Apr-2015,2883193-457517,"1,127.45",CARRS BILLINGTON AGRICULTURE.
Neighbourhood Services,Technical Services,Stock,926900,Stock in hand-Inventory system,07-Apr-2015,2883201-9950/01637166,"3,385.14",CERAMIC TILE DISTRIBUTORS (CTD).
Neighbourhood Services,Culture & Sport,Premises,120037,Energy Costs,07-Apr-2015,2883202-3895542,948.30,CERTAS ENERGY UK LTD.
Neighbourhood Services,Culture & Sport,Supplies and Services,324001,Provisions,07-Apr-2015,2883216-9102078858,570.01,COCA COLA ENTERPRISES LTD.
Neighbourhood Services,Technical Services,Stock,926900,Stock in hand-Inventory system,07-Apr-2015,2883219-163804,612.00,COLAS LTD.
Neighbourhood Services,Direct Services,Third Party Payments,430100,Rendered by Private Contractors,07-Apr-2015,2883220-6237,550.00,COMMERCIAL COVERINGS LTD.
Neighbourhood Services,Culture & Sport,Income,720810,Fees and Charges,07-Apr-2015,2883221-PS23808,"4,823.78",COMPETITION LINE UK LTD.
Neighbourhood Services,Culture & Sport,Income,720810,Fees and Charges,07-Apr-2015,2883221-PS23809,"19,339.24",COMPETITION LINE UK LTD.
Neighbourhood Services,Culture & Sport,Third Party Payments,430100,Rendered by Private Contractors,07-Apr-2015,2883221-PS23810,"6,141.94",COMPETITION LINE UK LTD.
Neighbourhood Services,Direct Services,Supplies and Services,342033,Computers and Communications,07-Apr-2015,2883258-7402194063,672.94,DELL COMPUTER CORPORATION LTD.
Neighbourhood Services,Culture & Sport,Supplies and Services,338099,Services,07-Apr-2015,2883277-82FEB2015,"4,030.00",DURHAM SCENIC WORKSHOPS LTD.
Neighbourhood Services,Projects and Business services,Third Party Payments,430121,Rendered by Private Contractors,07-Apr-2015,2883296-9642,780.00,ELECTRO SERVE CONTRACTS LTD.
Neighbourhood Services,Direct Services,Premises,145051,Cleaning and Domestic Supplies,07-Apr-2015,2883304-6751926,"1,130.00",ESE WORLD LTD.
Neighbourhood Services,Projects and Business services,Third Party Payments,430120,Rendered by Private Contractors,07-Apr-2015,2883310-SINV8703295,705.00,FINNING (UK) LTD.
Neighbourhood Services,Projects and Business services,Third Party Payments,430120,Rendered by Private Contractors,07-Apr-2015,2883310-SINV8703296,"1,218.02",FINNING (UK) LTD.
Neighbourhood Services,Projects and Business services,Third Party Payments,430120,Rendered by Private Contractors,07-Apr-2015,2883310-SINV8703298,"1,270.00",FINNING (UK) LTD.
Neighbourhood Services,Technical Services,Stock,926900,Stock in hand-Inventory system,07-Apr-2015,2883312-OP/I287260,911.54,FLEMING & CO (MACHINERY) LTD.
Neighbourhood Services,Technical Services,Stock,926900,Stock in hand-Inventory system,07-Apr-2015,2883312-OP/I287324,512.38,FLEMING & CO (MACHINERY) LTD.
Neighbourhood Services,Technical Services,Stock,926900,Stock in hand-Inventory system,07-Apr-2015,2883312-OP/I287350,"1,152.15",FLEMING & CO (MACHINERY) LTD.
Neighbourhood Services,Culture & Sport,Supplies and Services,384199,Miscellaneous Expenses,07-Apr-2015,2883313-I-20150312/BA1/3,"2,000.00",FLO-CULTURE (UK) LTD.
Neighbourhood Services,Culture & Sport,Supplies and Services,304259,Equipment and Materials,07-Apr-2015,2883332-083708,804.00,GODFREY SYRETT LTD.
Neighbourhood Services,Culture & Sport,Supplies and Services,338099,Services,07-Apr-2015,2883334-158,807.44,GRAHAM RUSHTON.
Neighbourhood Services,Projects and Business services,Third Party Payments,430103,Rendered by Private Contractors,07-Apr-2015,2883337-NEI-EXP-03-2015-032,768.49,GREAT NORTH AIR AMBULANCE SERVICE TRADING CO LTD.
Neighbourhood Services,Culture & Sport,Premises,145023,Cleaning and Domestic Supplies,07-Apr-2015,2883339-08/446942,"1,012.25",GREENHAM TRADING LTD.
Neighbourhood Services,Direct Services,Supplies and Services,304259,Equipment and Materials,07-Apr-2015,2883342-118307,570.03,GUSTHARTS.
Neighbourhood Services,Direct Services,Supplies and Services,304221,Equipment and Materials,07-Apr-2015,2883352-4476173,975.00,HEADLAM (FLOORCOVERING DISTRIBUTORS) LTD.
Neighbourhood Services,Technical Services,Supplies and Services,304221,Equipment and Materials,07-Apr-2015,2883358-IN032674,811.14,HILL & SMITH LTD.
Neighbourhood Services,Culture & Sport,Supplies and Services,304252,Equipment and Materials,07-Apr-2015,2883366-14379,"1,706.00",HUSSEY SEATWAY LTD.
Neighbourhood Services,Technical Services,Stock,926900,Stock in hand-Inventory system,07-Apr-2015,2883372-481179,915.60,INSTARMAC GROUP PLC.
Neighbourhood Services,Technical Services,Third Party Payments,430100,Rendered by Private Contractors,07-Apr-2015,2883376-16227,"2,409.75",JACK COUPE & SONS LTD T/A COUPE LINE.
Neighbourhood Services,Technical Services,Third Party Payments,430100,Rendered by Private Contractors,07-Apr-2015,2883377-16179,654.00,JACK COUPE & SONS LTD T/A COUPE LINE.
Neighbourhood Services,Technical Services,Third Party Payments,430100,Rendered by Private Contractors,07-Apr-2015,2883377-16213,"11,245.78",JACK COUPE & SONS LTD T/A COUPE LINE.
Neighbourhood Services,Technical Services,Third Party Payments,430100,Rendered by Private Contractors,07-Apr-2015,2883377-16218,"1,179.00",JACK COUPE & SONS LTD T/A COUPE LINE.
Neighbourhood Services,Technical Services,Third Party Payments,430100,Rendered by Private Contractors,07-Apr-2015,2883377-16230,"1,644.63",JACK COUPE & SONS LTD T/A COUPE LINE.
Neighbourhood Services,Technical Services,Employees,080025,Agency Staff,07-Apr-2015,2883379-B225H002-033,"13,612.92",JACOBS UK LTD.
Neighbourhood Services,Technical Services,Employees,080025,Agency Staff,07-Apr-2015,2883379-B225H002-034,"3,920.18",JACOBS UK LTD.
Neighbourhood Services,Technical Services,Employees,080025,Agency Staff,07-Apr-2015,2883379-B225H002-035,"1,856.06",JACOBS UK LTD.
Neighbourhood Services,Technical Services,Employees,080025,Agency Staff,07-Apr-2015,2883379-B225H002-037,"5,627.15",JACOBS UK LTD.
Neighbourhood Services,Technical Services,Employees,080025,Agency Staff,07-Apr-2015,2883379-B225H002-038,"4,820.93",JACOBS UK LTD.
Neighbourhood Services,Technical Services,Employees,080025,Agency Staff,07-Apr-2015,2883379-B225H002-039,"3,051.38",JACOBS UK LTD.
Neighbourhood Services,Technical Services,Employees,080025,Agency Staff,07-Apr-2015,2883379-B225H002-040,"10,840.26",JACOBS UK LTD.
Neighbourhood Services,Technical Services,Employees,080025,Agency Staff,07-Apr-2015,2883379-B225H002-041,"8,301.29",JACOBS UK LTD.
Neighbourhood Services,Technical Services,Employees,080025,Agency Staff,07-Apr-2015,2883379-B225H002-042,"12,886.86",JACOBS UK LTD.
Neighbourhood Services,Technical Services,Employees,080025,Agency Staff,07-Apr-2015,2883379-B225H003-003,"3,608.01",JACOBS UK LTD.
Neighbourhood Services,Technical Services,Employees,080025,Agency Staff,07-Apr-2015,2883379-B225H003-004,"1,371.53",JACOBS UK LTD.
Neighbourhood Services,Technical Services,Employees,080025,Agency Staff,07-Apr-2015,2883379-INV,"14,646.18",JACOBS UK LTD.
Neighbourhood Services,Direct Services,Supplies and Services,304221,Equipment and Materials,07-Apr-2015,2883386-0239/0158310,580.00,JEWSON LTD.
Neighbourhood Services,Technical Services,Supplies and Services,304221,Equipment and Materials,07-Apr-2015,2883386-0239/0158327,602.96,JEWSON LTD.
Neighbourhood Services,Technical Services,Stock,926900,Stock in hand-Inventory system,07-Apr-2015,2883394-NI027389,"96,296.40",JOHN MACLEAN & SONS ELECTRICAL (DINGWALL) LTD.
Neighbourhood Services,Projects and Business services,Third Party Payments,430100,Rendered by Private Contractors,07-Apr-2015,2883396-038390,580.00,JOHN WADE (HAULAGE) LTD.
Neighbourhood Services,Technical Services,Supplies and Services,304221,Equipment and Materials,07-Apr-2015,2883401-BII157360,842.20,JT DOVE LTD.
Neighbourhood Services,Direct Services,Supplies and Services,304221,Equipment and Materials,07-Apr-2015,2883401-BII157445,"1,733.69",JT DOVE LTD.
Neighbourhood Services,Technical Services,Supplies and Services,304221,Equipment and Materials,07-Apr-2015,2883401-BII157447,636.68,JT DOVE LTD.
Neighbourhood Services,Technical Services,Supplies and Services,304221,Equipment and Materials,07-Apr-2015,2883401-BII157455,566.40,JT DOVE LTD.
Neighbourhood Services,Technical Services,Supplies and Services,304221,Equipment and Materials,07-Apr-2015,2883405-6326,688.00,KEN THOMAS (SITE CLEARANCE LTD).
Neighbourhood Services,Technical Services,Supplies and Services,304221,Equipment and Materials,07-Apr-2015,2883411-9032358528,"2,190.29",LAFARGE TARMAC TRADING LTD.
Neighbourhood Services,Technical Services,Supplies and Services,304221,Equipment and Materials,07-Apr-2015,2883411-9032369005,658.00,LAFARGE TARMAC TRADING LTD.
Neighbourhood Services,Technical Services,Supplies and Services,304221,Equipment and Materials,07-Apr-2015,2883411-9032369006,770.00,LAFARGE TARMAC TRADING LTD.
Neighbourhood Services,Technical Services,Supplies and Services,304221,Equipment and Materials,07-Apr-2015,2883411-9032370940,"1,511.13",LAFARGE TARMAC TRADING LTD.
Neighbourhood Services,Technical Services,Supplies and Services,304221,Equipment and Materials,07-Apr-2015,2883411-9032370943,561.28,LAFARGE TARMAC TRADING LTD.
Neighbourhood Services,Direct Services,Third Party Payments,430100,Rendered by Private Contractors,07-Apr-2015,2883426-HI0073785A,712.56,LOOKERS LEASING LTD.
Neighbourhood Services,Direct Services,Premises,125009,Rents,07-Apr-2015,2883438-IN1503081,"18,967.50",MANDALE INVESTMENTS LTD.
Neighbourhood Services,Direct Services,Premises,155001,Insurance of Premises,07-Apr-2015,2883438-IN1504080,"1,786.18",MANDALE INVESTMENTS LTD.
Neighbourhood Services,Technical Services,Supplies and Services,304221,Equipment and Materials,07-Apr-2015,2883443-ZJB0031488,"2,907.00",MARSHALLS MONO LTD.
Neighbourhood Services,Technical Services,Supplies and Services,304221,Equipment and Materials,07-Apr-2015,2883448-34448,766.02,MAY GURNEY LTD.
Neighbourhood Services,Technical Services,Supplies and Services,304221,Equipment and Materials,07-Apr-2015,2883486-NC4/C366/BW,"25,130.87",NEDCO CONTRACTS (NE) LTD.
Neighbourhood Services,Direct Services,Premises,125009,Rents,07-Apr-2015,2883490-5400511/BUS/152035,"2,137.88",NETWORK RAIL.
Neighbourhood Services,Direct Services,Supplies and Services,304221,Equipment and Materials,07-Apr-2015,2883495-133047967,570.79,NEWEY & EYRE LTD.
Neighbourhood Services,Culture & Sport,Employees,080025,Agency Staff,07-Apr-2015,2883498-01/03/2015,"4,721.00",NEWTON AYCLIFFE YOUTH CENTRE.
Neighbourhood Services,Direct Services,Supplies and Services,384194,Miscellaneous Expenses,07-Apr-2015,2883503-15041,"2,125.00",NIRAMAX GROUP LTD.
Neighbourhood Services,Technical Services,Supplies and Services,304221,Equipment and Materials,07-Apr-2015,2883516-DI20209903,"4,212.54",NORTHERN POWERGRID (NORTHEAST) LTD.
Neighbourhood Services,Technical Services,Stock,926900,Stock in hand-Inventory system,07-Apr-2015,2883518-1529644,830.80,NORTHERN TOOLS & ACCESSORIES.
Neighbourhood Services,Direct Services,Supplies and Services,304259,Equipment and Materials,07-Apr-2015,2883522-PF201503230001AL,"1,472.09",NSI (HQ) T/A PATROL STORE.
Neighbourhood Services,Culture & Sport,Premises,106082,Centrally Controlled Rep and Maint,07-Apr-2015,2883530-01161776,"6,239.28",OTIS LTD.
Neighbourhood Services,Direct Services,Premises,106082,Centrally Controlled Rep and Maint,07-Apr-2015,2883530-01164001,928.22,OTIS LTD.
Neighbourhood Services,Direct Services,Supplies and Services,304221,Equipment and Materials,07-Apr-2015,2883536-XL137876,"4,381.00",PARK ELECTRICAL DISTRIBUTORS LTD.
Neighbourhood Services,Technical Services,Stock,926900,Stock in hand-Inventory system,07-Apr-2015,2883536-XL137878,"1,881.00",PARK ELECTRICAL DISTRIBUTORS LTD.
Neighbourhood Services,Technical Services,Stock,926900,Stock in hand-Inventory system,07-Apr-2015,2883536-XL138069,"4,363.80",PARK ELECTRICAL DISTRIBUTORS LTD.
Neighbourhood Services,Technical Services,Stock,926900,Stock in hand-Inventory system,07-Apr-2015,2883536-XL138088,560.00,PARK ELECTRICAL DISTRIBUTORS LTD.
Neighbourhood Services,Technical Services,Stock,926900,Stock in hand-Inventory system,07-Apr-2015,2883536-XL138233,660.00,PARK ELECTRICAL DISTRIBUTORS LTD.
Neighbourhood Services,Technical Services,Supplies and Services,338027,Services,07-Apr-2015,2883537-193235,"7,498.26",PARSONS BRINCKERHOFF.
Neighbourhood Services,Direct Services,Supplies and Services,304221,Equipment and Materials,07-Apr-2015,2883553-216938,"2,692.63",PLUMBING TRADE SUPPLIES LTD.
Neighbourhood Services,Direct Services,Supplies and Services,304221,Equipment and Materials,07-Apr-2015,2883553-216939,"1,012.37",PLUMBING TRADE SUPPLIES LTD.
Neighbourhood Services,Direct Services,Supplies and Services,304221,Equipment and Materials,07-Apr-2015,2883553-216940,"9,388.72",PLUMBING TRADE SUPPLIES LTD.
Neighbourhood Services,Technical Services,Supplies and Services,384110,Miscellaneous Expenses,07-Apr-2015,2883557-19625,"1,200.00",PRECISION GEOMATICS LTD.
Neighbourhood Services,Technical Services,Third Party Payments,430100,Rendered by Private Contractors,07-Apr-2015,2883561-102,"1,800.00",PRM FABRICATIONS LTD.
Neighbourhood Services,Technical Services,Third Party Payments,430100,Rendered by Private Contractors,07-Apr-2015,2883561-103,"1,500.00",PRM FABRICATIONS LTD.
Neighbourhood Services,Technical Services,Third Party Payments,430100,Rendered by Private Contractors,07-Apr-2015,2883561-104,"2,300.00",PRM FABRICATIONS LTD.
Neighbourhood Services,Technical Services,Supplies and Services,384110,Miscellaneous Expenses,07-Apr-2015,2883568-2014/0740,"3,500.00",RAB CONSULTANTS LTD.
Neighbourhood Services,Technical Services,Supplies and Services,384110,Miscellaneous Expenses,07-Apr-2015,2883568-2014/0741,"4,000.00",RAB CONSULTANTS LTD.
Neighbourhood Services,Direct Services,Third Party Payments,430100,Rendered by Private Contractors,07-Apr-2015,2883595-MAR02515,742.84,RW CHICKEN (SCAFFOLDING) LTD.
Neighbourhood Services,Direct Services,Third Party Payments,430100,Rendered by Private Contractors,07-Apr-2015,2883595-MAR02615,742.84,RW CHICKEN (SCAFFOLDING) LTD.
Neighbourhood Services,Direct Services,Vehicles Equipment Furniture and Fittings,912541,Purchase-vehicles,07-Apr-2015,2883597-200013,"11,101.93",S JENNINGS LTD.
Neighbourhood Services,Culture & Sport,Premises,106082,Centrally Controlled Rep and Maint,07-Apr-2015,2883607-1121266,"1,085.00",SECOM PLC.
Neighbourhood Services,Direct Services,Supplies and Services,304221,Equipment and Materials,07-Apr-2015,2883608-77520,503.00,SECURITY HARDWARE.
Neighbourhood Services,Direct Services,Supplies and Services,304259,Equipment and Materials,07-Apr-2015,2883614-CD970164603,"2,581.60",SHERRIFF AMENITY.
Neighbourhood Services,Technical Services,Stock,926900,Stock in hand-Inventory system,07-Apr-2015,2883625-186267,"1,537.00",SNAPFAST.
Neighbourhood Services,Technical Services,Stock,926900,Stock in hand-Inventory system,07-Apr-2015,2883625-186269,"3,489.12",SNAPFAST.
Neighbourhood Services,Technical Services,Supplies and Services,304221,Equipment and Materials,07-Apr-2015,2883646-070449,841.52,STONEGRAVE AGGREGATES LTD.
Neighbourhood Services,Technical Services,Supplies and Services,304221,Equipment and Materials,07-Apr-2015,2883646-070485,"1,085.04",STONEGRAVE AGGREGATES LTD.
Neighbourhood Services,Technical Services,Supplies and Services,304221,Equipment and Materials,07-Apr-2015,2883646-070523,"1,050.80",STONEGRAVE AGGREGATES LTD.
Neighbourhood Services,Technical Services,Supplies and Services,342007,Computers and Communications,07-Apr-2015,2883659-140487,"3,024.00",SYMOLOGY LTD.
Neighbourhood Services,Culture & Sport,Supplies and Services,304221,Equipment and Materials,07-Apr-2015,2883672-15002749,"7,475.00",TECHNOGYM UK LTD.
Neighbourhood Services,Culture & Sport,Supplies and Services,328041,Clothing Uniforms and Laundry,07-Apr-2015,2883683-14861,"1,261.95",THE OUTDOORS CO.
Neighbourhood Services,Culture & Sport,Supplies and Services,372009,Subscriptions,07-Apr-2015,2883690-22000092,"1,250.00",TILHILL FORESTRY LTD.
Neighbourhood Services,Direct Services,Supplies and Services,304221,Equipment and Materials,07-Apr-2015,2883695-102408,681.28,TOMMY WARDLE.
Neighbourhood Services,Redundant Direct Services,Third Party Payments,430100,Rendered by Private Contractors,07-Apr-2015,2883703-26330,504.44,TRACKYOU LTD.
Neighbourhood Services,Technical Services,Supplies and Services,304221,Equipment and Materials,07-Apr-2015,2883712-146831,877.33,TYNEDALE ROADSTONE LTD.
Neighbourhood Services,Technical Services,Supplies and Services,304221,Equipment and Materials,07-Apr-2015,2883712-146832,684.19,TYNEDALE ROADSTONE LTD.
Neighbourhood Services,Technical Services,Supplies and Services,304221,Equipment and Materials,07-Apr-2015,2883712-146833,990.22,TYNEDALE ROADSTONE LTD.
Neighbourhood Services,Culture & Sport,Supplies and Services,304259,Equipment and Materials,07-Apr-2015,2883719-10482573,"11,475.80",UNIVERSITY OF TEESSIDE.
Neighbourhood Services,Culture & Sport,Supplies and Services,384199,Miscellaneous Expenses,07-Apr-2015,2883740-OrderNo1424993,"1,204.75",WESTERN UNION BUSINESS SOLUTIONS.
Neighbourhood Services,Technical Services,Supplies and Services,304357,Equipment and Materials,07-Apr-2015,2883746-N78554,"1,165.38",WILLIAMSON CONSTRUCTION EQUIPMENT LTD.
Neighbourhood Services,Technical Services,Supplies and Services,304357,Equipment and Materials,07-Apr-2015,2883746-N78558,875.31,WILLIAMSON CONSTRUCTION EQUIPMENT LTD.
Neighbourhood Services,Culture & Sport,Supplies and Services,304259,Equipment and Materials,07-Apr-2015,2883752-329982,590.69,WM SMITH & SONS (BARNARD CASTLE) LTD.
Neighbourhood Services,Culture & Sport,Supplies and Services,304259,Equipment and Materials,07-Apr-2015,2883752-330007,758.75,WM SMITH & SONS (BARNARD CASTLE) LTD.
Neighbourhood Services,Technical Services,Stock,926900,Stock in hand-Inventory system,07-Apr-2015,2883753-20884481,"2,099.94",WOLSELEY UK LTD.
Neighbourhood Services,Technical Services,Stock,926900,Stock in hand-Inventory system,07-Apr-2015,2883753-20933271,823.00,WOLSELEY UK LTD.
Neighbourhood Services,Direct Services,Supplies and Services,304221,Equipment and Materials,07-Apr-2015,2883759-111043/MB,500.40,WYBONE LTD.
Neighbourhood Services,Direct Services,Premises,125009,Rents,07-Apr-2015,2883766-6226,"2,000.00",YOUNGS RPS LLP.
RED HRA,Housing Revenue Account,Supplies and Services,342051,Computers and Communications,07-Apr-2015,2883182-582626,"1,732.15",BYTES SOFTWARE SERVICES LTD.
RED HRA,Housing Revenue Account,Supplies and Services,344033,Telephones,07-Apr-2015,2883184-13499834,668.32,CABLE & WIRELESS UK.
RED HRA,Housing Revenue Account,Supplies and Services,372009,Subscriptions,07-Apr-2015,2883484-E893616,600.00,NCC SERVICES LTD.
RED HRA,Housing Revenue Account,Premises,135005,Water Services,07-Apr-2015,2883519,614.77,NORTHUMBRIAN WATER LTD.
RED HRA,HRA Capital,Construction Work,908105,Construction work,07-Apr-2015,2883528-990779,"1,091.76",OPENREACH LLU.
RED HRA,HRA Capital,Construction Work,908105,Construction work,07-Apr-2015,2883529-990148,"6,277.62",OPENREACH LLU.
RED HRA,HRA Capital,Construction Work,908105,Construction work,07-Apr-2015,2883651-LTS/555/030,"7,184.16",SUNTER LTD.
RED HRA,HRA Capital,Construction Work,908105,Construction work,07-Apr-2015,2883731-B50371-8,"28,013.57",WATES CONSTRUCTION LTD.
Regeneration & Economic Development,Economic Development and Housing,Supplies and Services,384700,Miscellaneous Expenses,07-Apr-2015,2883092-RED-04-2015-037,"1,000.00",A TECH FABRICATIONS LTD.
Regeneration & Economic Development,Economic Development and Housing,Premises,106080,Centrally Controlled Rep and Maint,07-Apr-2015,2883100-28625992-61,510.97,ADT FIRE & SECURITY PLC.
Regeneration & Economic Development,Spatial Policy Planning Assets & Environment,Supplies and Services,377015,County Durham Development,07-Apr-2015,2883110-28481,810.00,ALLWAG PROMOTIONS LTD.
Regeneration & Economic Development,Transport and Contracted Services,Third Party Payments,430100,Rendered by Private Contractors,07-Apr-2015,2883123-CONCFARE-MAR15,"444,500.00",ARRIVA DURHAM COUNTY LTD.
Regeneration & Economic Development,Economic Development and Housing,Supplies and Services,304999,Equipment and Materials,07-Apr-2015,2883138-63319,988.54,BAILEYS BLINDS CO LTD.
Regeneration & Economic Development,Economic Development and Housing,Supplies and Services,304259,Equipment and Materials,07-Apr-2015,2883159-FLLA2253151,831.39,BNP PARIBAS LEASE GROUP (RENTALS).
Regeneration & Economic Development,Economic Development and Housing,Supplies and Services,384700,Miscellaneous Expenses,07-Apr-2015,2883168-RED-04-2015-036,"2,000.00",BOURNMOOR CRICKET CLUB.
Regeneration & Economic Development,Strategy Programmes and Performance,Supplies and Services,304999,Equipment and Materials,07-Apr-2015,2883182-407583,"1,237.25",BYTES SOFTWARE SERVICES LTD.
Regeneration & Economic Development,Transport and Contracted Services,Construction Work,908105,Construction work,07-Apr-2015,2883183-019214,995.00,CA TRAFFIC LTD.
Regeneration & Economic Development,Spatial Policy Planning Assets & Environment,Supplies and Services,384700,Miscellaneous Expenses,07-Apr-2015,2883207-RED-03-2015-141,"6,348.12",CITY OF SUNDERLAND.
Regeneration & Economic Development,Economic Development and Housing,Cap Exp on Grants & Other Financial Assistance (REFCUS),918401,Capital grants,07-Apr-2015,2883240-RED-04-2015-032,"7,000.00",COXHOE TIMBER SERVICES LTD.
Regeneration & Economic Development,Economic Development and Housing,Supplies and Services,368008,Incentives to Industrialists,07-Apr-2015,2883272-737486,736.97,DTZ DTL LTD CLIENT A/C.
Regeneration & Economic Development,Economic Development and Housing,Supplies and Services,384871,Miscellaneous Expenses,07-Apr-2015,2883300-SWNAPR01,"1,600.00",ENKA COLLEGE LTD.
Regeneration & Economic Development,Transport and Contracted Services,Third Party Payments,430100,Rendered by Private Contractors,07-Apr-2015,2883331-CONCFARE-MAR15,"481,440.00",GO NORTH EAST LTD.
Regeneration & Economic Development,Transport and Contracted Services,Supplies and Services,342051,Computers and Communications,07-Apr-2015,2883407-2015492,"1,953.00",KEYSOFT SOLUTIONS LTD.
Regeneration & Economic Development,Economic Development and Housing,Cap Exp on Grants & Other Financial Assistance (REFCUS),918401,Capital grants,07-Apr-2015,2883449-RED-04-2015-048,"4,135.00",MC DEVELOPMENTS.
Regeneration & Economic Development,Economic Development and Housing,Cap Exp on Grants & Other Financial Assistance (REFCUS),918401,Capital grants,07-Apr-2015,2883465-RED-04-2015-033,957.12,REDACTED - PAYMENT TO INDIVIDUAL
Regeneration & Economic Development,Spatial Policy Planning Assets & Environment,Supplies and Services,384700,Miscellaneous Expenses,07-Apr-2015,2883466-RED-04-2015-040,973.00,REDACTED - PAYMENT TO INDIVIDUAL
Regeneration & Economic Development,Spatial Policy Planning Assets & Environment,Supplies and Services,384700,Miscellaneous Expenses,07-Apr-2015,2883467-RED-04-2015-042,514.85,REDACTED - PAYMENT TO INDIVIDUAL
Regeneration & Economic Development,Spatial Policy Planning Assets & Environment,Supplies and Services,384700,Miscellaneous Expenses,07-Apr-2015,2883471-RED-04-2015-041,"1,247.50",REDACTED - PAYMENT TO INDIVIDUAL
Regeneration & Economic Development,Spatial Policy Planning Assets & Environment,Supplies and Services,384199,Miscellaneous Expenses,07-Apr-2015,2883513-INV3809/1173,"1,575.00",NORTHERN ARCHAELOGICAL ASSOCIATES LTD (NAA).
Regeneration & Economic Development,Transport and Contracted Services,Premises,135005,Water Services,07-Apr-2015,2883519-310651060014008,"1,309.80",NORTHUMBRIAN WATER LTD.
Regeneration & Economic Development,Transport and Contracted Services,Premises,135005,Water Services,07-Apr-2015,2883519-31075594001X007,734.40,NORTHUMBRIAN WATER LTD.
Regeneration & Economic Development,Economic Development and Housing,Employees,040149,Recruitment Instruction and Training,07-Apr-2015,2883526-T026,850.00,OLDFIELD`S CONSULTANCY LTD.
Regeneration & Economic Development,Economic Development and Housing,Cap Exp on Grants & Other Financial Assistance (REFCUS),918401,Capital grants,07-Apr-2015,2883542-RED-04-2015-050,"6,395.00",PEART ACCESS RAMPS.
Regeneration & Economic Development,Spatial Policy Planning Assets & Environment,Premises,125009,Rents,07-Apr-2015,2883599-36313,804.89,SALFORD ESTATES (NO 2) LTD.
Regeneration & Economic Development,Economic Development and Housing,Construction Work,908105,Construction work,07-Apr-2015,2883609-INV2989,"2,955.60",SECURITY SOLUTIONS (NORTHERN) LTD.
Regeneration & Economic Development,Spatial Policy Planning Assets & Environment,Supplies and Services,338066,Services,07-Apr-2015,2883673-12032015,"1,250.00",TELFORDS COUNTRYSIDE & LANDSCAPE CONTRACTORS.
Regeneration & Economic Development,Economic Development and Housing,Supplies and Services,384700,Miscellaneous Expenses,07-Apr-2015,2883678-RED-04-2015-038,"1,000.00",THE EMPLOYABILITY TRUST.
Regeneration & Economic Development,Spatial Policy Planning Assets & Environment,Supplies and Services,338094,Services,07-Apr-2015,2883682-FB08761,"1,502.08",THE MORRITT COUNTRY HOUSE HOTEL.
Regeneration & Economic Development,Spatial Policy Planning Assets & Environment,Supplies and Services,377015,County Durham Development,07-Apr-2015,2883684-35343,650.00,THE PICTURE FRAMER.
Regeneration & Economic Development,Economic Development and Housing,Cap Exp on Grants & Other Financial Assistance (REFCUS),918401,Capital grants,07-Apr-2015,2883688-RED-04-2015-045,"1,835.00",THYSSENKRUPP ENCASA A DIVISION OF THYSSENKRUPP ACCESS LTD.
Resources,Financial Services,Supplies and Services,338050,Services,07-Apr-2015,2883176-149686,529.09,BRISTOW & SUTOR.
Resources,Legal & Democratic Services,Supplies and Services,338057,Services,07-Apr-2015,2883215-3980009855,"13,773.00",CO DURHAM & DARLINGTON NHS FOUNDATION TRUST.
Resources,I.C.T. Services,Supplies and Services,342033,Computers and Communications,07-Apr-2015,2883258-7402193133,"2,159.82",DELL COMPUTER CORPORATION LTD.
Resources,I.C.T. Services,Supplies and Services,342033,Computers and Communications,07-Apr-2015,2883258-7402193526,521.30,DELL COMPUTER CORPORATION LTD.
Resources,I.C.T. Services,Supplies and Services,342033,Computers and Communications,07-Apr-2015,2883258-7402193706,"23,142.00",DELL COMPUTER CORPORATION LTD.
Resources,I.C.T. Services,Supplies and Services,342033,Computers and Communications,07-Apr-2015,2883258-7402194058,"1,849.62",DELL COMPUTER CORPORATION LTD.
Resources,Legal & Democratic Services,Supplies and Services,338057,Services,07-Apr-2015,2883270,"1,064.80",DR SREE MUSSUNOOR.
Resources,Human Resources,Supplies and Services,338066,Services,07-Apr-2015,2883324-2250,"5,645.00",GENESYS HUMAN RESOURCE SOLUTIONS.
Resources,Human Resources,Supplies and Services,338076,Services,07-Apr-2015,2883356-RES-03-2015-049,"1,131.00",HERMITAGE ACADEMY.
Resources,I.C.T. Services,Stock,926900,Stock in hand-Inventory system,07-Apr-2015,2883371-2279903,"3,986.84",INSIGHT DIRECT (UK) LTD.
Resources,Legal & Democratic Services,Supplies and Services,338042,Services,07-Apr-2015,2883454-310697//INVCM53,"2,160.00",MISS CLAIRE MIDDLETON.
Resources,Internal Audit and Insurance,Employees,040149,Recruitment Instruction and Training,07-Apr-2015,2883482-60572293,"2,561.00",NATIONAL ANTI FRAUD NETWORK.
Resources,Legal & Democratic Services,Supplies and Services,352001,Conference Expenses,07-Apr-2015,2883483-INV-02528-V3P9Q3,"1,470.00",NATIONAL ASSOCIATION OF PENSION FUNDS LTD.
Resources,Human Resources,Income,740029,Other Income,07-Apr-2015,2883491-RES-03-2015-050,"4,872.00",NEW COLLEGE ACADEMIES TRUST - CONSETT ACADEMY.
Resources,I.C.T. Services,Supplies and Services,332029,Printing Stationery and Gen Off Exps,07-Apr-2015,2883555-614447,"2,267.00",POTTS PRINTERS LTD.
Resources,I.C.T. Services,Supplies and Services,332029,Printing Stationery and Gen Off Exps,07-Apr-2015,2883555-614467,"1,594.00",POTTS PRINTERS LTD.
Resources,I.C.T. Services,Supplies and Services,332029,Printing Stationery and Gen Off Exps,07-Apr-2015,2883570-12227,696.00,RADECAL SIGNS GRAPHICS & ADVERTISING.
Resources,Legal & Democratic Services,Supplies and Services,338057,Services,07-Apr-2015,2883582-0000019520,"1,230.00",ROAR FORENSICS LTD.
Resources,I.C.T. Services,Supplies and Services,342033,Computers and Communications,07-Apr-2015,2883627-INV01113008,"1,869.74",SOFTCAT LTD.
Resources,I.C.T. Services,Construction Work,908105,Construction work,07-Apr-2015,2883658-121362,"4,980.00",SWITCHSHOP LTD.
Resources,I.C.T. Services,Construction Work,908105,Construction work,07-Apr-2015,2883658-121370,"1,200.00",SWITCHSHOP LTD.
Resources,Legal & Democratic Services,Supplies and Services,338042,Services,07-Apr-2015,2883691-312661/INVTD134,"2,160.00",TIMOTHY DONNELLY.
Resources,Human Resources,Employees,040149,Recruitment Instruction and Training,07-Apr-2015,2883718-91342730,"1,597.50",UNIVERSITY OF NORTHUMBRIA.
Resources,I.C.T. Services,Stock,926900,Stock in hand-Inventory system,07-Apr-2015,2883723-2358859,"68,200.00",(USE 46758) VIGLEN LTD.
Resources,I.C.T. Services,Debtors,930168,Debtor - Mobile Telephone Holding Account,07-Apr-2015,2883727,"3,700.79",VODAFONE LTD.
Children and Adult Services,Central Charges (CYPS),Debtors,930062,Debtor-school meals suspense,08-Apr-2015,2884778-SI-TSD-1000608,"2,655,036.00",TAYLOR SHAW LTD.
Children and Adult Services,Childrens Services,Third Party Payments,425040,Rendered by Voluntary Organisations,08-Apr-2015,2884727-1151,"2,060.08",ROCSOLID.
Children and Adult Services,Childrens Services,Third Party Payments,425040,Rendered by Voluntary Organisations,08-Apr-2015,2884727-1155,592.96,ROCSOLID.
Children and Adult Services,Childrens Services,Third Party Payments,425040,Rendered by Voluntary Organisations,08-Apr-2015,2884772-161358,"2,182.00",SWIIS FOSTER CARE LTD.
Children and Adult Services,Childrens Services,Third Party Payments,425040,Rendered by Voluntary Organisations,08-Apr-2015,2884772-161359,"1,069.00",SWIIS FOSTER CARE LTD.
Children and Adult Services,Childrens Services,Third Party Payments,425040,Rendered by Voluntary Organisations,08-Apr-2015,2884683-03525,"3,100.00",ORCHARD CARE (NORTH EAST) LTD.
Children and Adult Services,Childrens Services,Premises,125009,Rents,08-Apr-2015,2884604-D711,"9,806.00",LANGLEY MOOR B3 LTD.
Children and Adult Services,Childrens Services,Premises,125009,Rents,08-Apr-2015,2884604-D787,"2,312.50",LANGLEY MOOR B3 LTD.
Children and Adult Services,Childrens Services,Transport,230710,Contract Hire,08-Apr-2015,2884460-3980008339,"14,150.31",CO DURHAM & DARLINGTON NHS FOUNDATION TRUST.
Children and Adult Services,Childrens Services,Third Party Payments,440999,Other Third Party Payments,08-Apr-2015,2884460-3980006765,"19,251.00",CO DURHAM & DARLINGTON NHS FOUNDATION TRUST.
Children and Adult Services,Childrens Services,Third Party Payments,425044,Rendered by Voluntary Organisations,08-Apr-2015,2884534-28037,874.26,FUTURES FOR CHILDREN LTD.
Children and Adult Services,Childrens Services,Third Party Payments,425041,Rendered by Voluntary Organisations,08-Apr-2015,2884541-1800349080,"9,000.00",GLOUCESTERSHIRE COUNTY COUNCIL.
Children and Adult Services,Childrens Services,Supplies and Services,384199,Miscellaneous Expenses,08-Apr-2015,239162-3792,736.00,BOB PROUD.
Children and Adult Services,Childrens Services,Supplies and Services,384199,Miscellaneous Expenses,08-Apr-2015,2884460-3980009126,"1,394.44",CO DURHAM & DARLINGTON NHS FOUNDATION TRUST.
Children and Adult Services,Childrens Services,Supplies and Services,338043,Services,08-Apr-2015,239200,500.00,KIRKUP LASCELLES & CREED.
Children and Adult Services,Childrens Services,Supplies and Services,384491,Miscellaneous Expenses,08-Apr-2015,2884515-15C/WL/243HBAKING,960.00,EMERALD NURSERY.
Children and Adult Services,Childrens Services,Supplies and Services,384700,Miscellaneous Expenses,08-Apr-2015,2884738-16MAR2015,"1,250.00",SEAHAM YOUTH CENTRE.
Children and Adult Services,Childrens Services,Supplies and Services,384700,Miscellaneous Expenses,08-Apr-2015,2884738-4100482934,"2,000.00",SEAHAM YOUTH CENTRE.
Children and Adult Services,Childrens Services,Third Party Payments,425040,Rendered by Voluntary Organisations,08-Apr-2015,2884531-140291,"4,223.13",FOSTERING SOLUTIONS LTD.
Children and Adult Services,Childrens Services,Premises,125009,Rents,08-Apr-2015,2884604-D818,"3,765.50",LANGLEY MOOR B3 LTD.
Children and Adult Services,Childrens Services,Third Party Payments,486022,Service Level Agreements,08-Apr-2015,2884529-4982,"4,517.24",FSO FLEXIBLE SUPPORT OPTIONS UK (DOMICILARY) LTD.
Children and Adult Services,Childrens Services,Third Party Payments,440016,Other Third Party Payments,08-Apr-2015,2884151-1017466,"9,377.40",REDACTED - PAYMENT TO INDIVIDUAL
Children and Adult Services,Childrens Services,Supplies and Services,338045,Services,08-Apr-2015,2884576-ITL4833,"8,266.31",ITL NORTH EAST LTD.
Children and Adult Services,Childrens Services,Third Party Payments,425040,Rendered by Voluntary Organisations,08-Apr-2015,2884772-161354,910.00,SWIIS FOSTER CARE LTD.
Children and Adult Services,Childrens Services,Third Party Payments,425040,Rendered by Voluntary Organisations,08-Apr-2015,2884772-161356,"1,075.00",SWIIS FOSTER CARE LTD.
Children and Adult Services,Childrens Services,Third Party Payments,440036,Other Third Party Payments,08-Apr-2015,2883817-CAS-04-2015-008,549.75,REDACTED - PAYMENT TO INDIVIDUAL
Children and Adult Services,Childrens Services,Premises,150005,Apportioned Exps of Operational Blds,08-Apr-2015,2884807-DCC008,697.18,TYNE VIEW PROPERTY MANAGEMENT LTD.
Children and Adult Services,Childrens Services,Premises,150005,Apportioned Exps of Operational Blds,08-Apr-2015,2884807-DCC009,624.47,TYNE VIEW PROPERTY MANAGEMENT LTD.
Children and Adult Services,Childrens Services,Supplies and Services,384199,Miscellaneous Expenses,08-Apr-2015,2884773-229,580.00,T PARKINSON.
Children and Adult Services,Childrens Services,Supplies and Services,338066,Services,08-Apr-2015,2884817-109087,575.00,VIRTUAL COLLEGE LTD.
Children and Adult Services,Childrens Services,Third Party Payments,440027,Other Third Party Payments,08-Apr-2015,2884091-1018180,"1,412.46",REDACTED - PAYMENT TO INDIVIDUAL
Children and Adult Services,Childrens Services,Supplies and Services,304245,Equipment and Materials,08-Apr-2015,2884626-002,890.00,MARK SHIELDS T/A MAKE MY DAY EVENTS.
Children and Adult Services,Childrens Services,Third Party Payments,440016,Other Third Party Payments,08-Apr-2015,2884151-1017465,"9,474.12",REDACTED - PAYMENT TO INDIVIDUAL
Children and Adult Services,Childrens Services,Third Party Payments,425040,Rendered by Voluntary Organisations,08-Apr-2015,2884772-161357,891.90,SWIIS FOSTER CARE LTD.
Children and Adult Services,Childrens Services,Third Party Payments,440005,Other Third Party Payments,08-Apr-2015,2884348-1017312,"2,008.45",REDACTED - PAYMENT TO INDIVIDUAL
Children and Adult Services,Childrens Services,Third Party Payments,440005,Other Third Party Payments,08-Apr-2015,2884348-1017313,"2,154.40",REDACTED - PAYMENT TO INDIVIDUAL
Children and Adult Services,Commissioning inc Supporting People,Third Party Payments,472112,Purchase of Care,08-Apr-2015,2884564-DRE13,"3,756.09",HOMECARE SUPPORT LTD T/A THE HUMAN SUPPORT GROUP.
Dedicated Schools Grant,Dedicated Schools Grant,Third Party Payments,425005,Rendered by Voluntary Organisations,08-Apr-2015,2884694-21741,"1,006.00",PERCY HEDLEY FOUNDATION.
Dedicated Schools Grant,Dedicated Schools Grant,Third Party Payments,425005,Rendered by Voluntary Organisations,08-Apr-2015,2884694-23336,"4,776.74",PERCY HEDLEY FOUNDATION.
Dedicated Schools Grant,Dedicated Schools Grant,Third Party Payments,425005,Rendered by Voluntary Organisations,08-Apr-2015,2884623-1000964,"3,384.62",MARCHBANK FREE SCHOOL.
Dedicated Schools Grant,Dedicated Schools Grant,Supplies and Services,338081,Services,08-Apr-2015,2884438-51460,700.00,CATCH 22.
Dedicated Schools Grant,Dedicated Schools Grant,Third Party Payments,440080,Other Third Party Payments,08-Apr-2015,2884438-51462,"9,898.00",CATCH 22.
Dedicated Schools Grant,Dedicated Schools Grant,Third Party Payments,425005,Rendered by Voluntary Organisations,08-Apr-2015,2884447-14914,"4,984.50",CHORISTER SCHOOL.
Children and Adult Services,Education,Supplies and Services,352001,Conference Expenses,08-Apr-2015,239183-MARCH2015,"1,600.00",FIONA MALYAN.
Children and Adult Services,Education,Supplies and Services,304259,Equipment and Materials,08-Apr-2015,2884554-OP-0055116,665.00,HCL SAFETY LTD.
Children and Adult Services,Education,Supplies and Services,338027,Services,08-Apr-2015,2884420-4197041,"1,458.00",BOND DICKINSON LLP.
Children and Adult Services,Education,Construction Work,908105,Construction work,08-Apr-2015,2884408-14052591,"4,091.00",ATKINS LTD.
Children and Adult Services,Education,Transport,230008,Contract Hire,08-Apr-2015,239178-15/003,"1,500.00",EDDIE BURROWS.
Children and Adult Services,Education,Supplies and Services,338027,Services,08-Apr-2015,2884600-1000379,"28,122.39",KING JAMES I ACADEMY.
Children and Adult Services,Education,Supplies and Services,338094,Services,08-Apr-2015,2884826-0015/240315,884.00,WILLINGTON COMMUNITY ACTION.
Children and Adult Services,Education,Supplies and Services,338094,Services,08-Apr-2015,2884826-0016/240315,748.00,WILLINGTON COMMUNITY ACTION.
Children and Adult Services,Head of Adults,Third Party Payments,478101,Purchase of Care,08-Apr-2015,2884463-421IR101152,"3,832.92",COMMUNITY INTEGRATED CARE LTD.
Children and Adult Services,Head of Adults,Third Party Payments,478101,Purchase of Care,08-Apr-2015,2884463-421R99329,"1,499.97",COMMUNITY INTEGRATED CARE LTD.
Children and Adult Services,Head of Adults,Third Party Payments,470101,Purchase of Care,08-Apr-2015,2884560-WI6488,"19,814.99",HESLEY CARE GROUP LTD.
Children and Adult Services,Head of Adults,Premises,125009,Rents,08-Apr-2015,2884601-375504,782.50,KNIGHT FRANK LLP.
Children and Adult Services,Planning & Service Strategy,Supplies and Services,342051,Computers and Communications,08-Apr-2015,2884493-7032,"1,320.00",DOCUMATION SOFTWARE LTD.
Children and Adult Services,Planning & Service Strategy,Supplies and Services,338089,Services,08-Apr-2015,2884715-18091,"1,980.00",RECONSTRUCT LTD.
Children and Adult Services,Public Health,Vehicles Equipment Furniture and Fittings,912701,Computer equipment,08-Apr-2015,239161-19012,"3,700.00",BLITHE COMPUTER SYSTEMS.
Children and Adult Services,Public Health,Third Party Payments,460803,Contract Payments,08-Apr-2015,2884394-133,"3,500.00",ALCOHOL CONCERN.
Children and Adult Services,Public Health,Transport,230710,Contract Hire,08-Apr-2015,2884396-102506,788.75,ALPHABET (GB) LTD.
Children and Adult Services,Public Health,Third Party Payments,460803,Contract Payments,08-Apr-2015,2884496-D150211,"2,190.00",DR KJ ARMSTRONG..
Children and Adult Services,Public Health,Supplies and Services,338099,Services,08-Apr-2015,2884502-MAR15/07,"4,000.00",DURHAM COMMUNITY ACTION LTD.
Children and Adult Services,Public Health,Third Party Payments,460803,Contract Payments,08-Apr-2015,2884656-7010100227,"223,069.00",NHS DDES CCG.
Children and Adult Services,Public Health,Premises,125009,Rents,08-Apr-2015,2884657-48355164,"13,336.48",NHS PROPERTY SERVICES LTD.
Children and Adult Services,Public Health,Premises,125009,Rents,08-Apr-2015,2884657-48358489,"13,336.48",NHS PROPERTY SERVICES LTD.
Children and Adult Services,Public Health,Third Party Payments,460803,Contract Payments,08-Apr-2015,2884782-4810004588,"148,736.17",TEES ESK & WEAR VALLEYS NHS FOUNDATION TRUST.
Neighbourhood Services,Culture & Sport,Supplies and Services,338099,Services,08-Apr-2015,239165-000886,500.00,CLEARVIEW TECHNICAL LTD.
Neighbourhood Services,Culture & Sport,Supplies and Services,384700,Miscellaneous Expenses,08-Apr-2015,239170-NEI-EXP-03-2015-132,"1,200.00",DEERNESS VALLEY GYMNASTIC CLUB.
Neighbourhood Services,Culture & Sport,Supplies and Services,384700,Miscellaneous Expenses,08-Apr-2015,239174-NEI-EXP-03-2015-117,"1,690.00",DURHAM CITY HOCKEY CLUB.
Neighbourhood Services,EnvironmentHealth & Consumer Protection,Supplies and Services,372009,Subscriptions,08-Apr-2015,239180-EMP5772,583.20,ENVIRONMENTAL MANAGEMENT PUBLISHING.
Neighbourhood Services,Direct Services,Employees,040149,Recruitment Instruction and Training,08-Apr-2015,239187-204714,950.00,HARTLEPOOL COLLEGE OF FURTHER EDUCATION.
Neighbourhood Services,Direct Services,Employees,040149,Recruitment Instruction and Training,08-Apr-2015,239187-237012,950.00,HARTLEPOOL COLLEGE OF FURTHER EDUCATION.
Neighbourhood Services,Technical Services,Third Party Payments,460350,Contract Payments,08-Apr-2015,239236-6,636.50,RE SHANN.
Neighbourhood Services,Culture & Sport,Supplies and Services,384199,Miscellaneous Expenses,08-Apr-2015,2884386-INV-635,"1,650.00",A & C MEALING T/A UK TOURING.
Neighbourhood Services,Technical Services,Supplies and Services,304221,Equipment and Materials,08-Apr-2015,2884392-21095666,623.71,AGGREGATE INDUSTRIES UK LTD.
Neighbourhood Services,Technical Services,Supplies and Services,304221,Equipment and Materials,08-Apr-2015,2884392-21102841,955.55,AGGREGATE INDUSTRIES UK LTD.
Neighbourhood Services,Technical Services,Supplies and Services,304221,Equipment and Materials,08-Apr-2015,2884392-21149211,"1,085.01",AGGREGATE INDUSTRIES UK LTD.
Neighbourhood Services,Technical Services,Supplies and Services,304221,Equipment and Materials,08-Apr-2015,2884392-21149305,"1,020.54",AGGREGATE INDUSTRIES UK LTD.
Neighbourhood Services,Technical Services,Supplies and Services,304221,Equipment and Materials,08-Apr-2015,2884392-21149307,"2,449.32",AGGREGATE INDUSTRIES UK LTD.
Neighbourhood Services,Technical Services,Supplies and Services,304221,Equipment and Materials,08-Apr-2015,2884392-21149308,740.03,AGGREGATE INDUSTRIES UK LTD.
Neighbourhood Services,Corporate Director + PA,Supplies and Services,372009,Subscriptions,08-Apr-2015,2884400-1516/71,"3,908.00",APSE.
Neighbourhood Services,Direct Services,Supplies and Services,304259,Equipment and Materials,08-Apr-2015,2884410-95758107,755.14,BALL COLEGRAVE LTD.
Neighbourhood Services,Direct Services,Supplies and Services,304259,Equipment and Materials,08-Apr-2015,2884410-95758108,"1,314.04",BALL COLEGRAVE LTD.
Neighbourhood Services,Direct Services,Supplies and Services,304259,Equipment and Materials,08-Apr-2015,2884410-95758110,"1,037.40",BALL COLEGRAVE LTD.
Neighbourhood Services,Culture & Sport,Supplies and Services,384700,Miscellaneous Expenses,08-Apr-2015,2884449-NEI-EXP-03-2015-127,"1,600.00",CHUNGDOKWAN TAEKWANDO CLUB.
Neighbourhood Services,Technical Services,Premises,150015,Apportioned Exps of Operational Blds,08-Apr-2015,2884457-15520,903.54,CLEE HILL PLANT LTD.
Neighbourhood Services,Technical Services,Premises,150015,Apportioned Exps of Operational Blds,08-Apr-2015,2884457-15523,903.54,CLEE HILL PLANT LTD.
Neighbourhood Services,Technical Services,Premises,150015,Apportioned Exps of Operational Blds,08-Apr-2015,2884457-15524,903.54,CLEE HILL PLANT LTD.
Neighbourhood Services,Technical Services,Stock,926004,Stock,08-Apr-2015,2884458-90135034,"21,801.32",CLEVELAND POTASH LTD.
Neighbourhood Services,Neighbourhood central costs,Debtors,930017,Debtor-gas contract holding account,08-Apr-2015,2884469-NEI-EXP-03-2015-053,"519,597.25",CORONA ENERGY RETAIL 2 LTD.
Neighbourhood Services,Technical Services,Third Party Payments,460350,Contract Payments,08-Apr-2015,2884480-7,829.50,D & L HOPPS.
Neighbourhood Services,Direct Services,Transport,215013,Running Costs of Vehicles,08-Apr-2015,2884490-D93529,"4,230.00",DENNIS EAGLE LTD.
Neighbourhood Services,Technical Services,Third Party Payments,430100,Rendered by Private Contractors,08-Apr-2015,2884498-5008,"161,464.38",DUNELM GEOTECHNICAL & ENVIRONMENTAL LTD.
Neighbourhood Services,Culture & Sport,Employees,080025,Agency Staff,08-Apr-2015,2884503-ESTIMATE84,"2,348.57",DURHAM SCENIC WORKSHOPS LTD.
Neighbourhood Services,Direct Services,Supplies and Services,384956,Miscellaneous Expenses,08-Apr-2015,2884518-H00075034,590.00,ENVIRONMENT AGENCY.
Neighbourhood Services,Technical Services,Supplies and Services,304221,Equipment and Materials,08-Apr-2015,2884545-28236,"1,440.00",GRAB & DELIVER LTD.
Neighbourhood Services,Technical Services,Third Party Payments,430100,Rendered by Private Contractors,08-Apr-2015,2884545-28515,960.00,GRAB & DELIVER LTD.
Neighbourhood Services,Technical Services,Third Party Payments,430100,Rendered by Private Contractors,08-Apr-2015,2884545-28517,640.00,GRAB & DELIVER LTD.
Neighbourhood Services,Technical Services,Supplies and Services,304221,Equipment and Materials,08-Apr-2015,2884545-28519,"1,120.00",GRAB & DELIVER LTD.
Neighbourhood Services,Culture & Sport,Premises,145023,Cleaning and Domestic Supplies,08-Apr-2015,2884548-06/549282,791.97,GREENHAM TRADING LTD.
Neighbourhood Services,Technical Services,Third Party Payments,430100,Rendered by Private Contractors,08-Apr-2015,2884551-40775,"112,816.09",HALL CONSTRUCTION SERVICES LTD.
Neighbourhood Services,Culture & Sport,Supplies and Services,384700,Miscellaneous Expenses,08-Apr-2015,2884553-NEI-EXP-03-2015-123,800.00,HASWELL & DISTRICT MENCAP SOCIETY.
Neighbourhood Services,Technical Services,Stock,926900,Stock in hand-Inventory system,08-Apr-2015,2884565-32817,"5,837.00",HUGH LOGAN ENGINEERING.
Neighbourhood Services,Technical Services,Stock,926900,Stock in hand-Inventory system,08-Apr-2015,2884573-481625,"2,424.80",INSTARMAC GROUP PLC.
Neighbourhood Services,Technical Services,Employees,040149,Recruitment Instruction and Training,08-Apr-2015,2884574-IOSINV004924,810.00,INSTITUTE OF SWIMMING.
Neighbourhood Services,Technical Services,Third Party Payments,460350,Contract Payments,08-Apr-2015,2884578-0979,"1,932.50",J & JG GILL & SONS LTD.
Neighbourhood Services,Technical Services,Third Party Payments,460350,Contract Payments,08-Apr-2015,2884578-1069,"3,387.50",J & JG GILL & SONS LTD.
Neighbourhood Services,Technical Services,Third Party Payments,460350,Contract Payments,08-Apr-2015,2884578-1070,521.50,J & JG GILL & SONS LTD.
Neighbourhood Services,Technical Services,Stock,926900,Stock in hand-Inventory system,08-Apr-2015,2884585-NI027404,"8,373.60",JOHN MACLEAN & SONS ELECTRICAL (DINGWALL) LTD.
Neighbourhood Services,Technical Services,Premises,150015,Apportioned Exps of Operational Blds,08-Apr-2015,2884587-1456867,773.30,JOHN NIXON LTD.
Neighbourhood Services,Direct Services,Supplies and Services,304358,Equipment and Materials,08-Apr-2015,2884588-23170,903.00,JOHN R BUTTERFIELD LTD.
Neighbourhood Services,Direct Services,Supplies and Services,304358,Equipment and Materials,08-Apr-2015,2884588-23215,903.00,JOHN R BUTTERFIELD LTD.
Neighbourhood Services,Projects and Business services,Third Party Payments,430100,Rendered by Private Contractors,08-Apr-2015,2884589-038444,535.85,JOHN WADE (HAULAGE) LTD.
Neighbourhood Services,Technical Services,Third Party Payments,430100,Rendered by Private Contractors,08-Apr-2015,2884590-0146,"42,213.60",JOSHUA THOMAS CONSTRUCTION LTD.
Neighbourhood Services,Technical Services,Third Party Payments,430100,Rendered by Private Contractors,08-Apr-2015,2884590-0149,"6,145.60",JOSHUA THOMAS CONSTRUCTION LTD.
Neighbourhood Services,Direct Services,Supplies and Services,304221,Equipment and Materials,08-Apr-2015,2884593-BII157564,"1,258.62",JT DOVE LTD.
Neighbourhood Services,Technical Services,Stock,926900,Stock in hand-Inventory system,08-Apr-2015,2884593-STI416259,511.28,JT DOVE LTD.
Neighbourhood Services,Culture & Sport,Supplies and Services,338099,Services,08-Apr-2015,2884594-GALA21/MS/230215,"1,639.00",JUTIC.CO.UK.
Neighbourhood Services,Direct Services,Supplies and Services,304221,Equipment and Materials,08-Apr-2015,2884602-9032370944,790.40,LAFARGE TARMAC TRADING LTD.
Neighbourhood Services,Technical Services,Supplies and Services,304221,Equipment and Materials,08-Apr-2015,2884602-9032382613,650.00,LAFARGE TARMAC TRADING LTD.
Neighbourhood Services,Direct Services,Construction Work,908105,Construction work,08-Apr-2015,2884614-19309,"1,050.00",LUCION ENVIRONMENTAL LLP LTD.
Neighbourhood Services,Direct Services,Supplies and Services,304221,Equipment and Materials,08-Apr-2015,2884620-827/037952,552.93,MAGNET LTD.
Neighbourhood Services,Technical Services,Stock,926900,Stock in hand-Inventory system,08-Apr-2015,2884631-001/127439,"1,897.82",MH SOUTHERN & CO LTD.
Neighbourhood Services,Technical Services,Stock,926900,Stock in hand-Inventory system,08-Apr-2015,2884631-001/127450,"1,059.00",MH SOUTHERN & CO LTD.
Neighbourhood Services,Direct Services,Premises,125009,Rents,08-Apr-2015,2884638-RENT-APRIL15,"4,550.00",MM KNITWEAR (1982) LTD.
Neighbourhood Services,Technical Services,Supplies and Services,304221,Equipment and Materials,08-Apr-2015,2884668-DI20209904,"2,909.86",NORTHERN POWERGRID (NORTHEAST) LTD.
Neighbourhood Services,Culture & Sport,Supplies and Services,338099,Services,08-Apr-2015,2884675-0458,680.00,OAKWOOD AV.
Neighbourhood Services,Technical Services,Third Party Payments,430100,Rendered by Private Contractors,08-Apr-2015,2884679-17171,895.00,OLIVERS TREE SERVICES LTD.
Neighbourhood Services,Technical Services,Supplies and Services,338027,Services,08-Apr-2015,2884689-193462,843.20,PARSONS BRINCKERHOFF.
Neighbourhood Services,Direct Services,Premises,125009,Rents,08-Apr-2015,2884697-15021,"15,690.00",PETHERICKS LTD.
Neighbourhood Services,Direct Services,Supplies and Services,304221,Equipment and Materials,08-Apr-2015,2884698-214461,662.36,PEW ELECTRICAL DISTRIBUTORS LTD.
Neighbourhood Services,Direct Services,Supplies and Services,384985,Miscellaneous Expenses,08-Apr-2015,2884702-7457,"2,220.00",PIXL ID LTD.
Neighbourhood Services,Direct Services,Supplies and Services,304221,Equipment and Materials,08-Apr-2015,2884708-75228,550.00,PROTECTOR SECURITY GROUP LTD.
Neighbourhood Services,Technical Services,Supplies and Services,304221,Equipment and Materials,08-Apr-2015,2884708-75229,550.00,PROTECTOR SECURITY GROUP LTD.
Neighbourhood Services,Technical Services,Supplies and Services,304358,Equipment and Materials,08-Apr-2015,2884714-9188,"7,200.00",RD KEARTON & SONS LTD.
Neighbourhood Services,Technical Services,Supplies and Services,304358,Equipment and Materials,08-Apr-2015,2884714-9189,"1,600.00",RD KEARTON & SONS LTD.
Neighbourhood Services,Projects and Business services,Supplies and Services,340001,Postages,08-Apr-2015,2884729-9049385663,"2,045.20",ROYAL MAIL GROUP PLC.
Neighbourhood Services,Culture & Sport,Supplies and Services,384700,Miscellaneous Expenses,08-Apr-2015,2884730-NEI-EXP-03-2015-129,840.00,RUSSELL SHAW.
Neighbourhood Services,Direct Services,Supplies and Services,304221,Equipment and Materials,08-Apr-2015,2884741-CD970165412,"2,581.60",SHERRIFF AMENITY.
Neighbourhood Services,Technical Services,Supplies and Services,304358,Equipment and Materials,08-Apr-2015,2884742-2015023,836.80,SHIREHAVEN LTD.
Neighbourhood Services,Technical Services,Supplies and Services,304358,Equipment and Materials,08-Apr-2015,2884742-2015025,760.20,SHIREHAVEN LTD.
Neighbourhood Services,Technical Services,Stock,926900,Stock in hand-Inventory system,08-Apr-2015,2884747-186278,"4,176.00",SNAPFAST.
Neighbourhood Services,Technical Services,Stock,926900,Stock in hand-Inventory system,08-Apr-2015,2884747-186281,"1,044.00",SNAPFAST.
Neighbourhood Services,Technical Services,Supplies and Services,304221,Equipment and Materials,08-Apr-2015,2884763-070568,622.88,STONEGRAVE AGGREGATES LTD.
Neighbourhood Services,Technical Services,Stock,926900,Stock in hand-Inventory system,08-Apr-2015,2884792-N/IN142406,"1,363.51",THOMAS OWEN & SONS (NEWCASTLE) LTD.
Neighbourhood Services,Direct Services,Supplies and Services,304221,Equipment and Materials,08-Apr-2015,2884799-29817,536.00,TOTAL PUMP SOLUTIONS LTD.
Neighbourhood Services,Technical Services,Supplies and Services,304221,Equipment and Materials,08-Apr-2015,2884808-146887,991.23,TYNEDALE ROADSTONE LTD.
Neighbourhood Services,Technical Services,Third Party Payments,460350,Contract Payments,08-Apr-2015,2884820-38884,"1,377.00",W MARLEY AGRICULTURAL CONTRACTORS LTD.
Neighbourhood Services,Culture & Sport,Supplies and Services,352001,Conference Expenses,08-Apr-2015,2884834-0000015474,"1,825.00",YOUTH SPORT TRUST.
RED HRA,HRA Capital,Construction Work,908105,Construction work,08-Apr-2015,2884461-218290-10,"65,856.28",COAST & COUNTRY HOUSING LTD.
RED HRA,Housing Revenue Account,Supplies and Services,338027,Services,08-Apr-2015,2884481-80002027,"16,754.50",DALE & VALLEY HOMES.
RED HRA,Housing Revenue Account,Supplies and Services,358001,Housing Revenue Account,08-Apr-2015,2884481-80002029,"2,096.00",DALE & VALLEY HOMES.
RED HRA,HRA Capital,Construction Work,908105,Construction work,08-Apr-2015,2884486-218284-9,"233,996.14",DEERNESS FENCING LTD.
RED HRA,Housing Revenue Account,Premises,105013,HRA Repair & Maintenance,08-Apr-2015,2884488-217182,649.33,DELTA ELECTRICAL & MECHANICAL SERVICES.
RED HRA,HRA Centrally Managed,Creditors,952184,Creditor-tenants contents insurance,08-Apr-2015,2884628-6496373,"2,549.61",MARSH LTD UK.
RED HRA,Housing Revenue Account,Premises,105003,HRA Repair & Maintenance,08-Apr-2015,2884637-217173,"28,582.40",MITIE PROPERTY SERVICES (UK) LTD.
RED HRA,HRA Capital,Construction Work,908105,Construction work,08-Apr-2015,2884681-990771,"6,641.54",OPENREACH LLU.
RED HRA,HRA Capital,Construction Work,908105,Construction work,08-Apr-2015,2884739-82854,"1,750.00",SGS MIS ENVIRONMENTAL LTD.
RED HRA,HRA Capital,Construction Work,908105,Construction work,08-Apr-2015,2884739-82902,820.00,SGS MIS ENVIRONMENTAL LTD.
RED HRA,HRA Capital,Construction Work,908105,Construction work,08-Apr-2015,2884755-217188,"3,988.03",SPRINGS ROOFING LTD.
RED HRA,HRA Capital,Construction Work,908105,Construction work,08-Apr-2015,2884767-217189,"2,994.00",SUNTER LTD.
RED HRA,HRA Capital,Construction Work,908105,Construction work,08-Apr-2015,2884767-217190,"2,994.00",SUNTER LTD.
RED HRA,HRA Capital,Construction Work,908105,Construction work,08-Apr-2015,2884767-217191,"4,491.00",SUNTER LTD.
RED HRA,HRA Capital,Construction Work,908105,Construction work,08-Apr-2015,2884824-89906,"40,675.58",WATES CONSTRUCTION LTD.
RED HRA,HRA Capital,Construction Work,908105,Construction work,08-Apr-2015,2884824-B50391-4,"170,234.57",WATES CONSTRUCTION LTD.
Regeneration & Economic Development,Spatial Policy Planning Assets & Environment,Income,720190,Fees and Charges,08-Apr-2015,239213-RED-04-2015-031,"1,540.00",REDACTED - PAYMENT TO INDIVIDUAL
Regeneration & Economic Development,Spatial Policy Planning Assets & Environment,Income,720190,Fees and Charges,08-Apr-2015,239222-RED-03-2015-121,575.00,MR S SMITH T/A SIMON SMITH DESIGN.
Regeneration & Economic Development,Transport and Contracted Services,Supplies and Services,342051,Computers and Communications,08-Apr-2015,239228-GEN1013,"22,266.66",NEXUS.
Regeneration & Economic Development,Transport and Contracted Services,Supplies and Services,338078,Services,08-Apr-2015,2884390-05598,551.25,AES.
Regeneration & Economic Development,Economic Development and Housing,Supplies and Services,384199,Miscellaneous Expenses,08-Apr-2015,2884412-605,"1,968.75",BEAMISH HALL LTD.
Regeneration & Economic Development,Spatial Policy Planning Assets & Environment,Supplies and Services,384199,Miscellaneous Expenses,08-Apr-2015,2884453-BURSARY2MAR15,540.00,REDACTED - PAYMENT TO INDIVIDUAL
Regeneration & Economic Development,Economic Development and Housing,Cap Exp on Grants & Other Financial Assistance (REFCUS),918401,Capital grants,08-Apr-2015,2884475-RED-04-2015-053,"4,535.00",CRAIG PATTERSON T/A LET ME GET YOU WET.
Regeneration & Economic Development,Economic Development and Housing,Cap Exp on Grants & Other Financial Assistance (REFCUS),918401,Capital grants,08-Apr-2015,2884483-RED-04-2015-054,"4,435.20",DAVE BOYD BUILDERS & CONTRACTORS.
Regeneration & Economic Development,Economic Development and Housing,Cap Exp on Grants & Other Financial Assistance (REFCUS),918401,Capital grants,08-Apr-2015,2884484-RED-04-2015-058,"3,900.00",DAVID CRAWFORD PLUMBING & HEATING.
Regeneration & Economic Development,Spatial Policy Planning Assets & Environment,Supplies and Services,384700,Miscellaneous Expenses,08-Apr-2015,2884495-RED-04-2015-062,635.40,REDACTED - PAYMENT TO INDIVIDUAL
Regeneration & Economic Development,Economic Development and Housing,Cap Exp on Grants & Other Financial Assistance (REFCUS),918401,Capital grants,08-Apr-2015,2884508-RED-04-2015-044,"3,987.93",EASIBATHE LTD.
Regeneration & Economic Development,Spatial Policy Planning Assets & Environment,Supplies and Services,338066,Services,08-Apr-2015,2884511-1060,"1,500.00",ECONOMICS FOR THE ENVIRONMENT CONSULTANCY LTD (EFTEC).
Regeneration & Economic Development,Economic Development and Housing,Cap Exp on Grants & Other Financial Assistance (REFCUS),918401,Capital grants,08-Apr-2015,2884522-RED-03-2015-308,"3,150.00",F TIFFEN BUILDING SERVICES.
Regeneration & Economic Development,Economic Development and Housing,Cap Exp on Grants & Other Financial Assistance (REFCUS),918401,Capital grants,08-Apr-2015,2884522-RED-04-2015-016,"2,985.00",F TIFFEN BUILDING SERVICES.
Regeneration & Economic Development,Economic Development and Housing,Cap Exp on Grants & Other Financial Assistance (REFCUS),918401,Capital grants,08-Apr-2015,2884522-RED-04-2015-049,"2,890.00",F TIFFEN BUILDING SERVICES.
Regeneration & Economic Development,Economic Development and Housing,Cap Exp on Grants & Other Financial Assistance (REFCUS),918401,Capital grants,08-Apr-2015,2884522-RED-04-2015-051,"5,548.00",F TIFFEN BUILDING SERVICES.
Regeneration & Economic Development,Economic Development and Housing,Supplies and Services,368008,Incentives to Industrialists,08-Apr-2015,2884549-0000010293,"11,847.67",GROUNDWORK NORTH EAST.
Regeneration & Economic Development,Economic Development and Housing,Construction Work,908105,Construction work,08-Apr-2015,2884568-INS3,"5,744.50",IAN FARMER ASSOCIATES (1998) LTD.
Regeneration & Economic Development,Economic Development and Housing,Construction Work,908105,Construction work,08-Apr-2015,2884568-INS3-SED,"9,945.50",IAN FARMER ASSOCIATES (1998) LTD.
Regeneration & Economic Development,Spatial Policy Planning Assets & Environment,Supplies and Services,384700,Miscellaneous Expenses,08-Apr-2015,2884584-BURSARY2MAR15,522.65,REDACTED - PAYMENT TO INDIVIDUAL
Regeneration & Economic Development,Economic Development and Housing,Cap Exp on Grants & Other Financial Assistance (REFCUS),918401,Capital grants,08-Apr-2015,2884596-RED-04-2015-057,"4,920.00",KAJEN PLUMBING & HEATING LTD.
Regeneration & Economic Development,Spatial Policy Planning Assets & Environment,Supplies and Services,384700,Miscellaneous Expenses,08-Apr-2015,2884616-BURSARY2MAR15,524.45,LYDIA HILLS.
Regeneration & Economic Development,Economic Development and Housing,Cap Exp on Grants & Other Financial Assistance (REFCUS),918401,Capital grants,08-Apr-2015,2884630-RED-04-2015-055,"1,820.00",MC DEVELOPMENTS.
Regeneration & Economic Development,Spatial Policy Planning Assets & Environment,Supplies and Services,384700,Miscellaneous Expenses,08-Apr-2015,2884643-RED-04-2015-063,"2,216.90",REDACTED - PAYMENT TO INDIVIDUAL
Regeneration & Economic Development,Spatial Policy Planning Assets & Environment,Supplies and Services,384199,Miscellaneous Expenses,08-Apr-2015,2884650-1800007362047,"16,281.00",NEWCASTLE UPON TYNE CITY COUNCIL.
Regeneration & Economic Development,Transport and Contracted Services,Construction Work,908105,Construction work,08-Apr-2015,2884654-6614592,613.87,NEWSQUEST (YORKSHIRE & NORTH EAST) LTD.
Regeneration & Economic Development,Spatial Policy Planning Assets & Environment,Supplies and Services,336005,Advertising,08-Apr-2015,2884654-6614609,772.71,NEWSQUEST (YORKSHIRE & NORTH EAST) LTD.
Regeneration & Economic Development,Spatial Policy Planning Assets & Environment,Supplies and Services,336005,Advertising,08-Apr-2015,2884654-6636968,579.53,NEWSQUEST (YORKSHIRE & NORTH EAST) LTD.
Regeneration & Economic Development,Transport and Contracted Services,Premises,135005,Water Services,08-Apr-2015,2884671-31499981002X003,734.40,NORTHUMBRIAN WATER LTD.
Regeneration & Economic Development,Economic Development and Housing,Cap Exp on Grants & Other Financial Assistance (REFCUS),918401,Capital grants,08-Apr-2015,2884695-RED-04-2015-052,"5,995.00",PETER JORDAN.
Regeneration & Economic Development,Economic Development and Housing,Construction Work,908105,Construction work,08-Apr-2015,2884764-8692,"8,332.00",STREETWISE ORIENTATION & NAVIGATION SYSTEMS LTD.
Regeneration & Economic Development,Economic Development and Housing,Construction Work,908105,Construction work,08-Apr-2015,2884793-INS1-DEMOLITION,"38,627.47",THOMPSONS OF PRUDHOE LTD.
Regeneration & Economic Development,Economic Development and Housing,Cap Exp on Grants & Other Financial Assistance (REFCUS),918401,Capital grants,08-Apr-2015,2884794-RED-04-2015-056,890.00,THYSSENKRUPP ENCASA A DIVISION OF THYSSENKRUPP ACCESS LTD.
Regeneration & Economic Development,Spatial Policy Planning Assets & Environment,Supplies and Services,368008,Incentives to Industrialists,08-Apr-2015,2884828-80342,"1,656.00",WOODLAND TRUST FARMING LTD.
Resources,Legal & Democratic Services,Supplies and Services,340001,Postages,08-Apr-2015,2884388-IS1248150,"2,641.41",ADARE INSPIRED COMMUNICATIONS.
Resources,Financial Services,Supplies and Services,384199,Miscellaneous Expenses,08-Apr-2015,2884432-6003030685,"7,101.00",CAPITA BUSINESS SERVICES LTD.
Resources,Human Resources,Supplies and Services,338221,Services,08-Apr-2015,2884528-6058014154,885.42,FIRSTASSIST SERVICES LTD.
Resources,I.C.T. Services,Stock,926900,Stock in hand-Inventory system,08-Apr-2015,2884572-2285330,"3,986.84",INSIGHT DIRECT (UK) LTD.
Resources,I.C.T. Services,Supplies and Services,332029,Printing Stationery and Gen Off Exps,08-Apr-2015,2884610-2117,617.00,LIDDLE FOIL BLOCKING.
Resources,Financial Services,Supplies and Services,384180,Miscellaneous Expenses,08-Apr-2015,2884612-0804549,"4,353.65",LOOMIS UK LTD.
Resources,Corporate Finance,Supplies and Services,336005,Advertising,08-Apr-2015,2884654-6636158,"2,752.76",NEWSQUEST (YORKSHIRE & NORTH EAST) LTD.
Resources,Human Resources,Supplies and Services,338064,Services,08-Apr-2015,2884663-9818,"10,152.00",NORTH EAST REGIONAL EMPLOYERS ORGANISATION.
Resources,I.C.T. Services,Supplies and Services,332029,Printing Stationery and Gen Off Exps,08-Apr-2015,2884705-614537,"6,598.00",POTTS PRINTERS LTD.
Resources,I.C.T. Services,Supplies and Services,340001,Postages,08-Apr-2015,2884729-9049381010,"18,899.33",ROYAL MAIL GROUP PLC.
Resources,Financial Services,Supplies and Services,384199,Miscellaneous Expenses,08-Apr-2015,2884762-90458765,"1,706.00",STOCKPORT MBC.
Resources,Financial Services,Supplies and Services,384199,Miscellaneous Expenses,08-Apr-2015,2884762-90458766,"2,047.20",STOCKPORT MBC.
Resources,Financial Services,Supplies and Services,384199,Miscellaneous Expenses,08-Apr-2015,2884762-90458767,"1,706.00",STOCKPORT MBC.
Assistant Chief Executive,Policy & Communications Division,Supplies and Services,312010,Newspapers Books and Periodicals,09-Apr-2015,2884870-000005874424,"2,257.65",BRITISH TELECOMMUNICATIONS PLC.
Assistant Chief Executive,Partnerships & Community Engagement Div.,Premises,135005,Water Services,09-Apr-2015,2885061-260101200081005,"1,037.58",NORTHUMBRIAN WATER LTD.
Children and Adult Services,Central Charges (CYPS),Premises,135005,Water Services,09-Apr-2015,2885061-313778460019004,"2,085.00",NORTHUMBRIAN WATER LTD.
Children and Adult Services,Childrens Services,Supplies and Services,304649,Equipment and Materials,09-Apr-2015,2885186-497242518,656.32,YORKSHIRE PURCHASING ORGANISATION.
Children and Adult Services,Childrens Services,Supplies and Services,364353,Grants to Voluntary Organisations,09-Apr-2015,2885146-CAS-04-2015-019,795.00,REDACTED - PAYMENT TO INDIVIDUAL
Children and Adult Services,Childrens Services,Employees,080025,Agency Staff,09-Apr-2015,2884910-325334,"143,024.82",DE POEL MANAGED SERVICES LTD.
Children and Adult Services,Childrens Services,Employees,080025,Agency Staff,09-Apr-2015,2884910-325423,"191,966.28",DE POEL MANAGED SERVICES LTD.
Children and Adult Services,Childrens Services,Supplies and Services,384507,Miscellaneous Expenses,09-Apr-2015,2884869-NOR7936,807.00,BRITISH ASSOCIATION FOR ADOPTION & FOSTERING BAAF.
Children and Adult Services,Childrens Services,Third Party Payments,425040,Rendered by Voluntary Organisations,09-Apr-2015,2884937-12711,730.00,FOSTER CARES LTD.
Children and Adult Services,Childrens Services,Third Party Payments,425040,Rendered by Voluntary Organisations,09-Apr-2015,2884937-12718,820.00,FOSTER CARES LTD.
Children and Adult Services,Childrens Services,Third Party Payments,425040,Rendered by Voluntary Organisations,09-Apr-2015,2884937-12738,730.00,FOSTER CARES LTD.
Children and Adult Services,Childrens Services,Third Party Payments,440037,Other Third Party Payments,09-Apr-2015,2884944-CAS-03-2015-107,"1,095.00",GIANT STEPS LTD.
Children and Adult Services,Childrens Services,Supplies and Services,364358,Grants to Voluntary Organisations,09-Apr-2015,2885001-A384259-3RDINST,"1,612.50",LEEDS BECKETT UNIVERSITY.
Children and Adult Services,Childrens Services,Third Party Payments,425040,Rendered by Voluntary Organisations,09-Apr-2015,2884937-12740,730.00,FOSTER CARES LTD.
Children and Adult Services,Childrens Services,Third Party Payments,425040,Rendered by Voluntary Organisations,09-Apr-2015,2884937-12715,"1,180.00",FOSTER CARES LTD.
Children and Adult Services,Childrens Services,Third Party Payments,425040,Rendered by Voluntary Organisations,09-Apr-2015,2884937-12719,760.00,FOSTER CARES LTD.
Children and Adult Services,Childrens Services,Third Party Payments,425040,Rendered by Voluntary Organisations,09-Apr-2015,2884937-12720,730.00,FOSTER CARES LTD.
Children and Adult Services,Childrens Services,Third Party Payments,425040,Rendered by Voluntary Organisations,09-Apr-2015,2884937-12731,730.00,FOSTER CARES LTD.
Children and Adult Services,Childrens Services,Third Party Payments,425040,Rendered by Voluntary Organisations,09-Apr-2015,2884937-12733,730.00,FOSTER CARES LTD.
Children and Adult Services,Childrens Services,Employees,080025,Agency Staff,09-Apr-2015,2884910-325511,"162,145.23",DE POEL MANAGED SERVICES LTD.
Children and Adult Services,Childrens Services,Supplies and Services,384199,Miscellaneous Expenses,09-Apr-2015,2885108-07,600.00,SEAHAM YOUTH CENTRE.
Children and Adult Services,Childrens Services,Supplies and Services,384491,Miscellaneous Expenses,09-Apr-2015,2884926-15C/SP/245NURTURING,864.00,EMERALD NURSERY.
Children and Adult Services,Childrens Services,Third Party Payments,440001,Other Third Party Payments,09-Apr-2015,2885034-CAS-04-2015-014,"1,464.12",REDACTED - PAYMENT TO INDIVIDUAL
Children and Adult Services,Childrens Services,Supplies and Services,384491,Miscellaneous Expenses,09-Apr-2015,2885174-1,"3,220.00",WHEATLEY HILL COMMUNITY NURSERY LTD.
Children and Adult Services,Commissioning inc Supporting People,Premises,145050,Cleaning and Domestic Supplies,09-Apr-2015,2884850-56048,"33,011.55",ANLABY OFFICE CLEANING SERVICES LTD.
Dedicated Schools Grant,Dedicated Schools Grant,Supplies and Services,384199,Miscellaneous Expenses,09-Apr-2015,2885142-4810004595,920.56,TEES ESK & WEAR VALLEYS NHS FOUNDATION TRUST.
Dedicated Schools Grant,Dedicated Schools Grant,Third Party Payments,425005,Rendered by Voluntary Organisations,09-Apr-2015,2884867-1086,"19,333.00",BRECKENBROUGH SCHOOL.
Dedicated Schools Grant,Dedicated Schools Grant,Third Party Payments,425005,Rendered by Voluntary Organisations,09-Apr-2015,2884867-1183,"19,333.00",BRECKENBROUGH SCHOOL.
Dedicated Schools Grant,Dedicated Schools Grant,Supplies and Services,304259,Equipment and Materials,09-Apr-2015,2885077-2591196310,720.00,PHONAK UK LTD.
Dedicated Schools Grant,Dedicated Schools Grant,Third Party Payments,425005,Rendered by Voluntary Organisations,09-Apr-2015,2884888-14543,"2,783.75",CHORISTER SCHOOL.
Dedicated Schools Grant,Dedicated Schools Grant,Supplies and Services,384199,Miscellaneous Expenses,09-Apr-2015,2885142-4810004403,920.56,TEES ESK & WEAR VALLEYS NHS FOUNDATION TRUST.
Children and Adult Services,Education,Transport,230007,Contract Hire,09-Apr-2015,2885069-6034,"1,380.00",OVERLANDER LTD.
Children and Adult Services,Education,Supplies and Services,342055,Computers and Communications,09-Apr-2015,2884880-87131,"1,570.00",CASCAID LTD.
Children and Adult Services,Education,Vehicles Equipment Furniture and Fittings,912701,Computer equipment,09-Apr-2015,2884972-DURH/0613,"33,587.88",INSPIREDSPACES DURHAM LTD.
Children and Adult Services,Education,Supplies and Services,338094,Services,09-Apr-2015,2884922-3086,"1,180.00",EASTLEA COMMUNITY ASSOCIATION.
Children and Adult Services,Education,Transfer Payments,510028,School Children,09-Apr-2015,2885182-CAS-03-2015-031,990.00,WOODHAM BURN PRE SCHOOL.
Children and Adult Services,Head of Adults,Supplies and Services,338366,Services,09-Apr-2015,2884878-23410,"2,106.93",CARE ABILITY.
Children and Adult Services,Head of Adults,Supplies and Services,338370,Services,09-Apr-2015,2884897-3980009603,"38,148.00",CO DURHAM & DARLINGTON NHS FOUNDATION TRUST.
Children and Adult Services,Head of Adults,Supplies and Services,338365,Services,09-Apr-2015,2884931,795.00,F TIFFEN BUILDING SERVICES.
Children and Adult Services,Head of Adults,Supplies and Services,304252,Equipment and Materials,09-Apr-2015,2884951-555260,725.00,GK DECORATING.
Children and Adult Services,Head of Adults,Third Party Payments,470101,Purchase of Care,09-Apr-2015,2884975-CAS-04-2015-010,980.00,REDACTED - PAYMENT TO INDIVIDUAL
Children and Adult Services,Head of Adults,Supplies and Services,304083,Equipment and Materials,09-Apr-2015,2885160-2167,"1,284.00",UPNORTH FOODSERVICE EQUIPMENT LTD.
Children and Adult Services,Planning & Service Strategy,Supplies and Services,338094,Services,09-Apr-2015,2885147-3049,732.00,THE DURHAM CENTRE LTD.
Children and Adult Services,Planning & Service Strategy,Supplies and Services,338094,Services,09-Apr-2015,2885147-3055,"1,834.50",THE DURHAM CENTRE LTD.
Children and Adult Services,Public Health,Third Party Payments,460803,Contract Payments,09-Apr-2015,2884862,569.00,BOOTS THE CHEMISTS LTD.
Children and Adult Services,Public Health,Premises,120009,Energy Costs,09-Apr-2015,2884928-H11374D277,"1,063.93",EON UK PLC.
Children and Adult Services,Public Health,Third Party Payments,460803,Contract Payments,09-Apr-2015,2885013-FFC99,583.00,LLOYDS PHARMACY.
Children and Adult Services,Public Health,Supplies and Services,384540,Miscellaneous Expenses,09-Apr-2015,2885055-6657705,639.53,NEWSQUEST (YORKSHIRE & NORTH EAST) LTD.
Children and Adult Services,Public Health,Supplies and Services,384155,Miscellaneous Expenses,09-Apr-2015,2885056-1000043645,"56,694.96",NHS BUSINESS SERVICES AUTHORITY.
Neighbourhood Services,Technical Services,Supplies and Services,304221,Equipment and Materials,09-Apr-2015,2884838-20911458,"2,421.00",AGGREGATE INDUSTRIES UK LTD.
Neighbourhood Services,Technical Services,Supplies and Services,304221,Equipment and Materials,09-Apr-2015,2884838-20974520,"2,414.50",AGGREGATE INDUSTRIES UK LTD.
Neighbourhood Services,Technical Services,Supplies and Services,304221,Equipment and Materials,09-Apr-2015,2884838-21149306,"1,651.04",AGGREGATE INDUSTRIES UK LTD.
Neighbourhood Services,Technical Services,Supplies and Services,304221,Equipment and Materials,09-Apr-2015,2884838-21155395,"1,521.92",AGGREGATE INDUSTRIES UK LTD.
Neighbourhood Services,Technical Services,Supplies and Services,304221,Equipment and Materials,09-Apr-2015,2884838-21155492,"2,511.05",AGGREGATE INDUSTRIES UK LTD.
Neighbourhood Services,Technical Services,Supplies and Services,304221,Equipment and Materials,09-Apr-2015,2884838-21155493,"1,055.85",AGGREGATE INDUSTRIES UK LTD.
Neighbourhood Services,Technical Services,Supplies and Services,304221,Equipment and Materials,09-Apr-2015,2884845-10100,560.00,ALTO BOLLARDS (NEWCASTLE) LTD.
Neighbourhood Services,Culture & Sport,Supplies and Services,304337,Equipment and Materials,09-Apr-2015,2884860-20224,"1,770.00",BLEEP 2000 COMPUTERS LTD T/A BLEEP COMPUTING.
Neighbourhood Services,Culture & Sport,Premises,120037,Energy Costs,09-Apr-2015,2884877-26578726,"1,246.91",CALOR GAS LTD.
Neighbourhood Services,EnvironmentHealth & Consumer Protection,Supplies and Services,352001,Conference Expenses,09-Apr-2015,2884884-INV507689,"1,819.60",CHARTERED INSTITUTE OF ENVIRONMENTAL HEALTH.
Neighbourhood Services,Technical Services,Stock,926004,Stock,09-Apr-2015,2884894-90135071,"4,171.70",CLEVELAND POTASH LTD.
Neighbourhood Services,Culture & Sport,Third Party Payments,430100,Rendered by Private Contractors,09-Apr-2015,2884898-PS23822,"26,725.81",COMPETITION LINE UK LTD.
Neighbourhood Services,Culture & Sport,Income,720810,Fees and Charges,09-Apr-2015,2884898-PS23823,"28,497.51",COMPETITION LINE UK LTD.
Neighbourhood Services,Culture & Sport,Employees,040149,Recruitment Instruction and Training,09-Apr-2015,2884918-279002,"1,100.00",DURHAM UNIVERSITY.
Neighbourhood Services,Direct Services,Supplies and Services,304259,Equipment and Materials,09-Apr-2015,2884936-SO154216,594.58,FLEET (LINE MARKERS) LTD.
Neighbourhood Services,Technical Services,Third Party Payments,430100,Rendered by Private Contractors,09-Apr-2015,2884960-2366,"2,234.25",HIGHWAY CONSTRUCTION SERVICES LTD.
Neighbourhood Services,Technical Services,Third Party Payments,430100,Rendered by Private Contractors,09-Apr-2015,2884960-2367,"1,451.35",HIGHWAY CONSTRUCTION SERVICES LTD.
Neighbourhood Services,Technical Services,Third Party Payments,430100,Rendered by Private Contractors,09-Apr-2015,2884960-2368,"8,084.26",HIGHWAY CONSTRUCTION SERVICES LTD.
Neighbourhood Services,Technical Services,Third Party Payments,430100,Rendered by Private Contractors,09-Apr-2015,2884960-2369,"3,527.10",HIGHWAY CONSTRUCTION SERVICES LTD.
Neighbourhood Services,Technical Services,Third Party Payments,430100,Rendered by Private Contractors,09-Apr-2015,2884960-2370,"5,197.20",HIGHWAY CONSTRUCTION SERVICES LTD.
Neighbourhood Services,Technical Services,Supplies and Services,304358,Equipment and Materials,09-Apr-2015,2884968-C233,"4,885.90",IAN WILSON.
Neighbourhood Services,Technical Services,Supplies and Services,304358,Equipment and Materials,09-Apr-2015,2884976-5304868,"1,462.27",JA GILSON (AGRICULTURAL CONTRACTORS) LTD.
Neighbourhood Services,Technical Services,Supplies and Services,304358,Equipment and Materials,09-Apr-2015,2884976-5304872,"1,462.27",JA GILSON (AGRICULTURAL CONTRACTORS) LTD.
Neighbourhood Services,Technical Services,Supplies and Services,304358,Equipment and Materials,09-Apr-2015,2884976-5304879,"1,188.10",JA GILSON (AGRICULTURAL CONTRACTORS) LTD.
Neighbourhood Services,Technical Services,Employees,080025,Agency Staff,09-Apr-2015,2884978-B225H003-009,"10,587.21",JACOBS UK LTD.
Neighbourhood Services,Direct Services,Supplies and Services,304221,Equipment and Materials,09-Apr-2015,2884987-BII156487,"2,438.64",JT DOVE LTD.
Neighbourhood Services,EnvironmentHealth & Consumer Protection,Supplies and Services,338045,Services,09-Apr-2015,2884988-307392/INVJCS,"1,550.00",JULIE CLEMITSON.
Neighbourhood Services,Direct Services,Supplies and Services,352001,Conference Expenses,09-Apr-2015,2884995-SI02-0058182,600.00,KILLGERM CHEMICALS LTD.
Neighbourhood Services,Technical Services,Stock,926900,Stock in hand-Inventory system,09-Apr-2015,2885022-0000896226,517.00,MAGDEN LTD.
Neighbourhood Services,Direct Services,Supplies and Services,304221,Equipment and Materials,09-Apr-2015,2885023-827/038638,670.43,MAGNET LTD.
Neighbourhood Services,Direct Services,Supplies and Services,304259,Equipment and Materials,09-Apr-2015,2885038-MJC1169,522.50,MJC AIR TOOL SERVICES.
Neighbourhood Services,Culture & Sport,Supplies and Services,384700,Miscellaneous Expenses,09-Apr-2015,2885051-NEI-EXP-03-2015-125,"1,164.00",MUAY THAI BOXING CLUB.
Neighbourhood Services,Technical Services,Supplies and Services,304221,Equipment and Materials,09-Apr-2015,2885059-DI20197272,"2,877.75",NORTHERN POWERGRID (NORTHEAST) LTD.
Neighbourhood Services,Technical Services,Supplies and Services,304221,Equipment and Materials,09-Apr-2015,2885059-DI20201940,"9,691.41",NORTHERN POWERGRID (NORTHEAST) LTD.
Neighbourhood Services,Direct Services,Construction Work,908105,Construction work,09-Apr-2015,2885059-NEI-EXP-03-2015-037,"3,088.00",NORTHERN POWERGRID (NORTHEAST) LTD.
Neighbourhood Services,Culture & Sport,Premises,135005,Water Services,09-Apr-2015,2885061-310297770018013,"4,554.00",NORTHUMBRIAN WATER LTD.
Neighbourhood Services,Technical Services,Third Party Payments,460350,Contract Payments,09-Apr-2015,2885070-85,"20,301.50",P & EB ROBSON.
Neighbourhood Services,Technical Services,Third Party Payments,430100,Rendered by Private Contractors,09-Apr-2015,2885082-133164,"42,281.68",PREMIER TRAFFIC MANAGEMENT LTD.
Neighbourhood Services,Direct Services,Supplies and Services,304221,Equipment and Materials,09-Apr-2015,2885084-75367,550.00,PROTECTOR SECURITY GROUP LTD.
Neighbourhood Services,Culture & Sport,Supplies and Services,304259,Equipment and Materials,09-Apr-2015,2885085-4669,"1,177.00",PURPLE MOON PROMOTIONAL PRODUCTS LTD.
Neighbourhood Services,Direct Services,Third Party Payments,430100,Rendered by Private Contractors,09-Apr-2015,2885087-25822,"4,209.90",R PARKER WALL & FLOOR TILING CONTRACTOR.
Neighbourhood Services,Direct Services,Third Party Payments,430100,Rendered by Private Contractors,09-Apr-2015,2885097-MAR03015,669.04,RW CHICKEN (SCAFFOLDING) LTD.
Neighbourhood Services,Direct Services,Third Party Payments,430100,Rendered by Private Contractors,09-Apr-2015,2885097-MAR03515,749.94,RW CHICKEN (SCAFFOLDING) LTD.
Neighbourhood Services,Direct Services,Debtors,930046,Debtor-leasing,09-Apr-2015,2885098-200322,"23,597.56",S JENNINGS LTD.
Neighbourhood Services,Direct Services,Debtors,930046,Debtor-leasing,09-Apr-2015,2885098-200324,"23,597.56",S JENNINGS LTD.
Neighbourhood Services,Technical Services,Third Party Payments,430100,Rendered by Private Contractors,09-Apr-2015,2885115-67376,725.13,SIMMONSIGNS LTD.
Neighbourhood Services,Culture & Sport,Premises,145023,Cleaning and Domestic Supplies,09-Apr-2015,2885116-270563,836.10,SIS CHEMICALS.
Neighbourhood Services,Culture & Sport,Supplies and Services,384199,Miscellaneous Expenses,09-Apr-2015,2885125-NTGENNOISEFEB-L5,550.00,STEPHEN SUMMERS T/A NOISY TOYS.
Neighbourhood Services,Technical Services,Supplies and Services,304221,Equipment and Materials,09-Apr-2015,2885129-070598,627.96,STONEGRAVE AGGREGATES LTD.
Neighbourhood Services,Projects and Business services,Third Party Payments,430103,Rendered by Private Contractors,09-Apr-2015,2885143-NEI-EXP-04-2015-001,"20,000.00",TEESDALE CONSERVATION VOLUNTEERS.
Neighbourhood Services,Direct Services,Supplies and Services,304221,Equipment and Materials,09-Apr-2015,2885155-102308,"4,112.00",TOMMY WARDLE.
Neighbourhood Services,Technical Services,Stock,926900,Stock in hand-Inventory system,09-Apr-2015,2885162-19671250,"1,276.00",VIATEC UK LTD.
Neighbourhood Services,Direct Services,Supplies and Services,304221,Equipment and Materials,09-Apr-2015,2885166-6890185760,"3,953.83",VIESSMANN LTD.
Neighbourhood Services,Direct Services,Supplies and Services,304259,Equipment and Materials,09-Apr-2015,2885168-28433,733.17,W CHRISTIE (INDUSTRIAL) LTD.
Neighbourhood Services,Technical Services,Supplies and Services,304358,Equipment and Materials,09-Apr-2015,2885187-4765,"1,892.00",YOULL CONSTRUCTION LTD.
Neighbourhood Services,Technical Services,Supplies and Services,304358,Equipment and Materials,09-Apr-2015,2885187-4778,590.00,YOULL CONSTRUCTION LTD.
Neighbourhood Services,Technical Services,Supplies and Services,304358,Equipment and Materials,09-Apr-2015,2885187-4787,842.75,YOULL CONSTRUCTION LTD.
Neighbourhood Services,Direct Services,Third Party Payments,430100,Rendered by Private Contractors,09-Apr-2015,2885188-33321,"1,945.42",YWC GROUP LTD.
RED HRA,HRA Capital,Construction Work,908105,Construction work,09-Apr-2015,2885169-B50403-7,"92,823.59",WATES CONSTRUCTION LTD.
Regeneration & Economic Development,Economic Development and Housing,Cap Exp on Grants & Other Financial Assistance (REFCUS),918401,Capital grants,09-Apr-2015,2884840-RED-04-2015-067,"2,000.00",AKK HEATING & PLUMBING SERVICES.
Regeneration & Economic Development,Economic Development and Housing,Cap Exp on Grants & Other Financial Assistance (REFCUS),918401,Capital grants,09-Apr-2015,2884843-RED-04-2015-064,"5,250.00",ALPHA CONSTRUCTION.
Regeneration & Economic Development,Economic Development and Housing,Supplies and Services,384700,Miscellaneous Expenses,09-Apr-2015,2884844-RED-04-2015-078,"1,000.00",ALSTON ROAD GARAGE.
Regeneration & Economic Development,Economic Development and Housing,Supplies and Services,384700,Miscellaneous Expenses,09-Apr-2015,2884853-RED-04-2014-076,"1,000.00",ANTHONY PATTERSON INSTALLATION SERVICES LTD.
Regeneration & Economic Development,Economic Development and Housing,Cap Exp on Grants & Other Financial Assistance (REFCUS),918401,Capital grants,09-Apr-2015,2884919-RED-04-2015-046,"5,596.77",EASIBATHE LTD.
Regeneration & Economic Development,Transport and Contracted Services,Supplies and Services,342051,Computers and Communications,09-Apr-2015,2884929-M15/51,"7,757.00",EXEGESIS SDM LTD.
Regeneration & Economic Development,Economic Development and Housing,Cap Exp on Grants & Other Financial Assistance (REFCUS),918401,Capital grants,09-Apr-2015,2884931-RED-04-2015-070,"2,790.00",F TIFFEN BUILDING SERVICES.
Regeneration & Economic Development,Economic Development and Housing,Cap Exp on Grants & Other Financial Assistance (REFCUS),918401,Capital grants,09-Apr-2015,2884931-RED-04-2015-072,"3,225.00",F TIFFEN BUILDING SERVICES.
Regeneration & Economic Development,Transport and Contracted Services,Supplies and Services,304259,Equipment and Materials,09-Apr-2015,2884956-INV1496,"3,540.00",HALLIDAY JAMES LTD.
Regeneration & Economic Development,Economic Development and Housing,Cap Exp on Grants & Other Financial Assistance (REFCUS),918401,Capital grants,09-Apr-2015,2884977-RED-04-2015-066,"3,750.00",JACKSON CONSTRUCTION & PROPERTY PROJECTS.
Regeneration & Economic Development,Spatial Policy Planning Assets & Environment,Third Party Payments,440999,Other Third Party Payments,09-Apr-2015,2885030-3759,"6,175.28",MICROCOPY SYSTEMS LTD.
Regeneration & Economic Development,Economic Development and Housing,Fees,901002,Professional fees,09-Apr-2015,2885058-3812/1237,"1,783.98",NORTHERN ARCHAELOGICAL ASSOCIATES LTD (NAA).
Regeneration & Economic Development,Transport and Contracted Services,Premises,135005,Water Services,09-Apr-2015,2885061-225545540028019,734.40,NORTHUMBRIAN WATER LTD.
Regeneration & Economic Development,Transport and Contracted Services,Premises,135005,Water Services,09-Apr-2015,2885061-225545540108023,"2,447.40",NORTHUMBRIAN WATER LTD.
Regeneration & Economic Development,Transport and Contracted Services,Premises,135005,Water Services,09-Apr-2015,2885061-225545540135031,734.40,NORTHUMBRIAN WATER LTD.
Regeneration & Economic Development,Transport and Contracted Services,Premises,135005,Water Services,09-Apr-2015,2885061-260100600056005,"2,447.40",NORTHUMBRIAN WATER LTD.
Regeneration & Economic Development,Transport and Contracted Services,Premises,135005,Water Services,09-Apr-2015,2885061-260100700014058,"7,515.68",NORTHUMBRIAN WATER LTD.
Regeneration & Economic Development,Transport and Contracted Services,Premises,135005,Water Services,09-Apr-2015,2885061-31083195001X008,734.40,NORTHUMBRIAN WATER LTD.
Regeneration & Economic Development,Transport and Contracted Services,Premises,135005,Water Services,09-Apr-2015,2885061-311979880013007,734.40,NORTHUMBRIAN WATER LTD.
Regeneration & Economic Development,Transport and Contracted Services,Third Party Payments,430100,Rendered by Private Contractors,09-Apr-2015,2885062-030764,"26,584.11",NSL LTD.
Regeneration & Economic Development,Transport and Contracted Services,Third Party Payments,430100,Rendered by Private Contractors,09-Apr-2015,2885062-030765,987.47,NSL LTD.
Regeneration & Economic Development,Transport and Contracted Services,Third Party Payments,430100,Rendered by Private Contractors,09-Apr-2015,2885062-030767,"45,406.27",NSL LTD.
Regeneration & Economic Development,Transport and Contracted Services,Third Party Payments,430100,Rendered by Private Contractors,09-Apr-2015,2885062-030768,"2,992.37",NSL LTD.
Regeneration & Economic Development,Transport and Contracted Services,Third Party Payments,430100,Rendered by Private Contractors,09-Apr-2015,2885062-030769,"6,008.90",NSL LTD.
Regeneration & Economic Development,Transport and Contracted Services,Third Party Payments,430100,Rendered by Private Contractors,09-Apr-2015,2885062-030770,"19,331.84",NSL LTD.
Regeneration & Economic Development,Transport and Contracted Services,Third Party Payments,430100,Rendered by Private Contractors,09-Apr-2015,2885062-030778,"3,569.09",NSL LTD.
Regeneration & Economic Development,Transport and Contracted Services,Third Party Payments,430100,Rendered by Private Contractors,09-Apr-2015,2885062-030779,"5,717.14",NSL LTD.
Regeneration & Economic Development,Economic Development and Housing,Employees,040149,Recruitment Instruction and Training,09-Apr-2015,2885067-T027,"2,550.00",OLDFIELD`S CONSULTANCY LTD.
Regeneration & Economic Development,Economic Development and Housing,Cap Exp on Grants & Other Financial Assistance (REFCUS),918401,Capital grants,09-Apr-2015,2885073-RED-04-2015-065,"3,600.00",PETER & STANLEY BEST.
Regeneration & Economic Development,Strategy Programmes and Performance,Employees,040149,Recruitment Instruction and Training,09-Apr-2015,2885086-ISL126577,"3,960.00",QA LTD.
Regeneration & Economic Development,Economic Development and Housing,Construction Work,908105,Construction work,09-Apr-2015,2885105-4100479156,"98,472.00",SCOTTISH GAS T/A WARM UP NORTH.
Regeneration & Economic Development,Economic Development and Housing,Employees,040149,Recruitment Instruction and Training,09-Apr-2015,2885106-26257,"1,200.00",SDS SHELTON DEVELOPMENT SERVICES.
Regeneration & Economic Development,Economic Development and Housing,Cap Exp on Grants & Other Financial Assistance (REFCUS),918401,Capital grants,09-Apr-2015,2885112-RED-04-2015-069,"3,245.00",SHAPE ADAPTATIONS LTD.
Regeneration & Economic Development,Spatial Policy Planning Assets & Environment,Supplies and Services,384199,Miscellaneous Expenses,09-Apr-2015,2885144-2015/0007,"2,450.00",TEESDALE ENVIRONMENTAL CONSULTING.
Regeneration & Economic Development,Economic Development and Housing,Supplies and Services,352001,Conference Expenses,09-Apr-2015,2885149-PF151090315,609.00,THE SALUTATION INN.
Resources,I.C.T. Services,Supplies and Services,332029,Printing Stationery and Gen Off Exps,09-Apr-2015,2884839-205649,"2,393.00",AGNE LTD T/A ALPHAGRAPHICS.
Resources,I.C.T. Services,Supplies and Services,332029,Printing Stationery and Gen Off Exps,09-Apr-2015,2884924-94403,"1,878.00",ELANDERS UK.
Resources,I.C.T. Services,Supplies and Services,332029,Printing Stationery and Gen Off Exps,09-Apr-2015,2884924-94404,"1,519.00",ELANDERS UK.
Resources,Legal & Democratic Services,Supplies and Services,338042,Services,09-Apr-2015,2885033-310697/INVCM54,"1,800.00",MISS CLAIRE MIDDLETON.
Resources,Legal & Democratic Services,Supplies and Services,338042,Services,09-Apr-2015,2885041-305972/INVMT134,540.00,MR MARTIN TODD.
Resources,Legal & Democratic Services,Supplies and Services,338042,Services,09-Apr-2015,2885041-311364/INVMT137,"1,020.00",MR MARTIN TODD.
Resources,I.C.T. Services,Supplies and Services,332029,Printing Stationery and Gen Off Exps,09-Apr-2015,2885081-614473,"1,138.00",POTTS PRINTERS LTD.
Resources,I.C.T. Services,Supplies and Services,332029,Printing Stationery and Gen Off Exps,09-Apr-2015,2885081-614563,"2,151.00",POTTS PRINTERS LTD.
Resources,I.C.T. Services,Debtors,930174,MFD - Paper Holdings,09-Apr-2015,2885136-7318161,528.00,SUPPLIES TEAM LTD.
Resources,I.C.T. Services,Supplies and Services,338099,Services,09-Apr-2015,2885159-39737,"1,305.54",UPNORTH ENGINEERING SERVICES LTD.
Resources,I.C.T. Services,Supplies and Services,304040,Equipment and Materials,09-Apr-2015,2885159-771,768.60,UPNORTH ENGINEERING SERVICES LTD.
Assistant Chief Executive,Policy & Communications Division,Supplies and Services,384199,Miscellaneous Expenses,10-Apr-2015,2885282-E0024867,"6,445.00",DODS PARLIAMENTARY COMMUNICATIONS.
Assistant Chief Executive,Planning & Performance Division,Employees,040149,Recruitment Instruction and Training,10-Apr-2015,2885436-PDPT-DPEK2-17430,745.00,PDP.
Children and Adult Services,Central Charges (CYPS),Supplies and Services,372009,Subscriptions,10-Apr-2015,2885502-3718,"3,135.00",THE ASSOCIATION OF DIRECTORS OF CHILDREN`S SERVICES LTD (ADCS).
Children and Adult Services,Childrens Services,Supplies and Services,364352,Grants to Voluntary Organisations,10-Apr-2015,2885509-98/SR/15,"1,371.12",THIRTEEN CARE & SUPPORT.
Children and Adult Services,Childrens Services,Supplies and Services,338505,Services,10-Apr-2015,2885416-7010100248,"115,065.00",NHS DDES CCG.
Children and Adult Services,Childrens Services,Third Party Payments,440037,Other Third Party Payments,10-Apr-2015,2885363-EV/02-05/15,533.00,JOANNE HARDY T/A DAYBREAK NURSERY.
Children and Adult Services,Childrens Services,Supplies and Services,384491,Miscellaneous Expenses,10-Apr-2015,2885213-228-MARCH15,"1,615.00",AUCKLAND YOUTH & COMMUNITY ASSOCIATION.
Children and Adult Services,Childrens Services,Supplies and Services,338099,Services,10-Apr-2015,2885295-SINV/00003603,761.00,EAST DURHAM HOMES.
Children and Adult Services,Childrens Services,Supplies and Services,384638,Miscellaneous Expenses,10-Apr-2015,2885315-18032015,"5,000.00",GATEWAY NORTH EAST.
Children and Adult Services,Childrens Services,Supplies and Services,384199,Miscellaneous Expenses,10-Apr-2015,2885519-LINV805353,"2,386.05",TRINITY MEDICAL PROPERTIES LTD.
Children and Adult Services,Childrens Services,Supplies and Services,338035,Services,10-Apr-2015,2885525-I01553,"2,328.00",UK YOUTH.
Children and Adult Services,Childrens Services,Premises,108135,Service Repairs and Maintenance,10-Apr-2015,2885528-177,660.00,VENTILATION HYGIENE SPECIALISTS (VHS) LTD.
Children and Adult Services,Childrens Services,Supplies and Services,338505,Services,10-Apr-2015,2885417-7010500191,"90,042.00",NHS NORTH DURHAM CCG.
Children and Adult Services,Childrens Services,Premises,108135,Service Repairs and Maintenance,10-Apr-2015,2885245-5131213,896.24,CHUBB ELECTRONIC SECURITY SYSTEMS LTD.
Children and Adult Services,Childrens Services,Supplies and Services,332047,Printing Stationery and Gen Off Exps,10-Apr-2015,2885551-497637475,534.41,YORKSHIRE PURCHASING ORGANISATION.
Dedicated Schools Grant,Dedicated Schools Grant,Supplies and Services,338089,Services,10-Apr-2015,2885205-18MAR2015,860.00,ANDREW LOCKETT.
Dedicated Schools Grant,Dedicated Schools Grant,Employees,080025,Agency Staff,10-Apr-2015,2885499-988773,"2,647.15",TEACHING PERSONNEL LTD.
Dedicated Schools Grant,Dedicated Schools Grant,Transport,230010,Contract Hire,10-Apr-2015,2885362-2015/02,"1,000.00",JM HUMBLE COACH HIRE.
Children and Adult Services,Education,Transport,230007,Contract Hire,10-Apr-2015,2885418-3688,"2,700.00",NIGHTINGALE COACHES.
Children and Adult Services,Education,Transport,230006,Contract Hire,10-Apr-2015,2885497-DCC/2015/11,"1,088.00",TAYLOR`S TAXIS.
Children and Adult Services,Education,Supplies and Services,352001,Conference Expenses,10-Apr-2015,2885205,"3,800.00",ANDREW LOCKETT.
Children and Adult Services,Education,Transport,230008,Contract Hire,10-Apr-2015,2885189-31502,"1,880.00",24/7 TAXI SERVICES LTD.
Children and Adult Services,Education,Transport,230008,Contract Hire,10-Apr-2015,2885189-31503,"1,460.00",24/7 TAXI SERVICES LTD.
Children and Adult Services,Education,Transport,230008,Contract Hire,10-Apr-2015,2885395-MCD2061,"2,150.00",MCDONALD TRAVEL.
Children and Adult Services,Education,Transport,230008,Contract Hire,10-Apr-2015,2885418-3701,"1,300.00",NIGHTINGALE COACHES.
Children and Adult Services,Education,Transport,230007,Contract Hire,10-Apr-2015,2885309-6040,720.00,FMR SILVA PITA.
Children and Adult Services,Education,Transport,230008,Contract Hire,10-Apr-2015,2885312-0315,"1,140.00",FRANK ATKINSON T/A FJ MINIBUS TRAVEL.
Children and Adult Services,Education,Transport,230008,Contract Hire,10-Apr-2015,2885326-W082/029,"1,592.00",GMC TAXIS NORTH EAST.
Children and Adult Services,Education,Transport,230008,Contract Hire,10-Apr-2015,2885326-W084-029,"1,640.00",GMC TAXIS NORTH EAST.
Children and Adult Services,Education,Transport,230008,Contract Hire,10-Apr-2015,2885345-INV67,"1,700.00",HORNDALE AJ`S TAXIS.
Children and Adult Services,Education,Transport,230009,Contract Hire,10-Apr-2015,2885309-0329,600.00,FMR SILVA PITA.
Children and Adult Services,Education,Supplies and Services,375001,Private Finance Initiative,10-Apr-2015,2885351-ISD0110,"2,368.48",INSPIREDSPACES DURHAM (PROJECTCO1) LTD.
Children and Adult Services,Education,Transport,230008,Contract Hire,10-Apr-2015,2885418-3690,"1,600.00",NIGHTINGALE COACHES.
Children and Adult Services,Education,Transport,230008,Contract Hire,10-Apr-2015,2885546-26315,798.00,WIL TRAVEL.
Children and Adult Services,Education,Transport,230007,Contract Hire,10-Apr-2015,2885264-5178,"1,245.30",CROFT BUSINESS SERVICES (UK) LTD T/A CROFT TAXIS.
Children and Adult Services,Education,Transport,230008,Contract Hire,10-Apr-2015,2885264-5273,739.84,CROFT BUSINESS SERVICES (UK) LTD T/A CROFT TAXIS.
Children and Adult Services,Education,Transport,230008,Contract Hire,10-Apr-2015,2885418-3700,"1,300.00",NIGHTINGALE COACHES.
Children and Adult Services,Education,Transport,230006,Contract Hire,10-Apr-2015,2885264-5267,990.00,CROFT BUSINESS SERVICES (UK) LTD T/A CROFT TAXIS.
Children and Adult Services,Education,Transport,230006,Contract Hire,10-Apr-2015,2885264-5269,985.60,CROFT BUSINESS SERVICES (UK) LTD T/A CROFT TAXIS.
Children and Adult Services,Education,Transport,230008,Contract Hire,10-Apr-2015,2885264-5277,972.00,CROFT BUSINESS SERVICES (UK) LTD T/A CROFT TAXIS.
Children and Adult Services,Education,Transport,230008,Contract Hire,10-Apr-2015,2885264-5278,658.56,CROFT BUSINESS SERVICES (UK) LTD T/A CROFT TAXIS.
Children and Adult Services,Education,Transport,230008,Contract Hire,10-Apr-2015,2885312-1503,"2,500.00",FRANK ATKINSON T/A FJ MINIBUS TRAVEL.
Children and Adult Services,Education,Transport,230008,Contract Hire,10-Apr-2015,2885410-7,880.00,NEIL PASSMOOR T/A NEIL`S TAXI.
Children and Adult Services,Education,Transport,230008,Contract Hire,10-Apr-2015,2885334-019A,"1,200.00",GS PEARSON.
Children and Adult Services,Education,Transport,230008,Contract Hire,10-Apr-2015,2885264-5255,"2,774.80",CROFT BUSINESS SERVICES (UK) LTD T/A CROFT TAXIS.
Children and Adult Services,Education,Supplies and Services,338094,Services,10-Apr-2015,2885503-3079,"1,213.00",THE DURHAM CENTRE LTD.
Children and Adult Services,Education,Third Party Payments,440999,Other Third Party Payments,10-Apr-2015,2885448-2-18MAR2015,"6,588.00",PRE SCHOOL LEARNING ALLIANCE.
Children and Adult Services,Education,Transport,230006,Contract Hire,10-Apr-2015,2885189-31506,944.00,24/7 TAXI SERVICES LTD.
Children and Adult Services,Education,Transport,230008,Contract Hire,10-Apr-2015,2885543-WESTLEA270315,"1,025.00",WESTLEA TAXIS.
Children and Adult Services,Education,Transport,230008,Contract Hire,10-Apr-2015,2885189-31504,855.00,24/7 TAXI SERVICES LTD.
Children and Adult Services,Education,Transport,230008,Contract Hire,10-Apr-2015,2885189-31507,"1,083.00",24/7 TAXI SERVICES LTD.
Children and Adult Services,Education,Transport,230008,Contract Hire,10-Apr-2015,2885400-00722,"1,800.00",MICHAELS TRAVEL.
Children and Adult Services,Education,Transport,230007,Contract Hire,10-Apr-2015,2885418-3687,"2,500.00",NIGHTINGALE COACHES.
Children and Adult Services,Head of Adults,Premises,106080,Centrally Controlled Rep and Maint,10-Apr-2015,2885209-904304,990.11,ARJO MED AB LTD T/A ARJOHUNTLEIGH LTD.
Children and Adult Services,Head of Adults,Supplies and Services,324117,Provisions,10-Apr-2015,2885210-18,885.60,ASHBARTON CATERING.
Children and Adult Services,Head of Adults,Supplies and Services,338366,Services,10-Apr-2015,2885236-23419,581.30,CARE ABILITY.
Children and Adult Services,Head of Adults,Supplies and Services,338366,Services,10-Apr-2015,2885236-23828,"1,574.70",CARE ABILITY.
Children and Adult Services,Head of Adults,Third Party Payments,478101,Purchase of Care,10-Apr-2015,2885253-300000001389,"34,099.60",COMMUNITY INTEGRATED CARE LTD.
Children and Adult Services,Head of Adults,Third Party Payments,473101,Purchase of Care,10-Apr-2015,2885271-INV65,"1,332.00",DAWDON YOUTH & COMMUNITY CENTRE.
Children and Adult Services,Head of Adults,Third Party Payments,473101,Purchase of Care,10-Apr-2015,2885271-INV71,"1,332.00",DAWDON YOUTH & COMMUNITY CENTRE.
Children and Adult Services,Head of Adults,Third Party Payments,472101,Purchase of Care,10-Apr-2015,2885275-6672,737.75,DCS & D LTD T/A HERITAGE HEALTHCARE.
Children and Adult Services,Head of Adults,Third Party Payments,472101,Purchase of Care,10-Apr-2015,2885275-6835,896.65,DCS & D LTD T/A HERITAGE HEALTHCARE.
Children and Adult Services,Head of Adults,Third Party Payments,472101,Purchase of Care,10-Apr-2015,2885275-6970,783.15,DCS & D LTD T/A HERITAGE HEALTHCARE.
Children and Adult Services,Head of Adults,Third Party Payments,472101,Purchase of Care,10-Apr-2015,2885275-7155,987.45,DCS & D LTD T/A HERITAGE HEALTHCARE.
Children and Adult Services,Head of Adults,Third Party Payments,472101,Purchase of Care,10-Apr-2015,2885275-7156,987.45,DCS & D LTD T/A HERITAGE HEALTHCARE.
Children and Adult Services,Head of Adults,Third Party Payments,472101,Purchase of Care,10-Apr-2015,2885275-7257,608.59,DCS & D LTD T/A HERITAGE HEALTHCARE.
Children and Adult Services,Head of Adults,Third Party Payments,472101,Purchase of Care,10-Apr-2015,2885275-7258,608.70,DCS & D LTD T/A HERITAGE HEALTHCARE.
Children and Adult Services,Head of Adults,Third Party Payments,478101,Purchase of Care,10-Apr-2015,2885311-SH361415,"1,401.44",FOUR HOUSING GROUP.
Children and Adult Services,Head of Adults,Premises,125009,Rents,10-Apr-2015,2885335-3200-185090,"3,297.26",GVA GRIMLEY LLP.
Children and Adult Services,Head of Adults,Third Party Payments,478101,Purchase of Care,10-Apr-2015,2885341-14/11/2012TO13/4/2014,"25,790.23",HIGHLEA CARE LTD.
Children and Adult Services,Head of Adults,Third Party Payments,478111,Purchase of Care,10-Apr-2015,2885398-2113048,"1,501.20",MENCAP.
Children and Adult Services,Head of Adults,Third Party Payments,473101,Purchase of Care,10-Apr-2015,2885423-0000020162,618.67,NORTH EAST AUTISM SOCIETY.
Children and Adult Services,Planning & Service Strategy,Supplies and Services,338089,Services,10-Apr-2015,2885223-NOR7937,650.00,BRITISH ASSOCIATION FOR ADOPTION & FOSTERING BAAF.
Children and Adult Services,Planning & Service Strategy,Supplies and Services,338094,Services,10-Apr-2015,2885503-3076,848.00,THE DURHAM CENTRE LTD.
Neighbourhood Services,Direct Services,Third Party Payments,430100,Rendered by Private Contractors,10-Apr-2015,2885192-2124,"1,539.00",A & J GUTHRIE.
Neighbourhood Services,Direct Services,Premises,106080,Centrally Controlled Rep and Maint,10-Apr-2015,2885195-IN678,"35,735.39",ACROL AIR CONDITIONING CO LTD.
Neighbourhood Services,Technical Services,Supplies and Services,304221,Equipment and Materials,10-Apr-2015,2885199-21047456,"2,400.00",AGGREGATE INDUSTRIES UK LTD.
Neighbourhood Services,Technical Services,Supplies and Services,304221,Equipment and Materials,10-Apr-2015,2885199-21161695,"2,111.02",AGGREGATE INDUSTRIES UK LTD.
Neighbourhood Services,Direct Services,Supplies and Services,304221,Equipment and Materials,10-Apr-2015,2885202-20002,"6,900.00",ALARM & COMMUNICATION SYSTEMS LTD.
Neighbourhood Services,Culture & Sport,Supplies and Services,312013,Newspapers Books and Periodicals,10-Apr-2015,2885211-4598592,578.27,ASKEWS & HOLTS LIBRARY SERVICES LTD.
Neighbourhood Services,Direct Services,Premises,106082,Centrally Controlled Rep and Maint,10-Apr-2015,2885215-27721,856.45,BARR & WRAY LTD.
Neighbourhood Services,Direct Services,Supplies and Services,304221,Equipment and Materials,10-Apr-2015,2885226-INV164675,759.00,BROXAP LTD.
Neighbourhood Services,Culture & Sport,Supplies and Services,342051,Computers and Communications,10-Apr-2015,2885234-408591,"1,211.39",BYTES SOFTWARE SERVICES LTD.
Neighbourhood Services,Direct Services,Third Party Payments,430100,Rendered by Private Contractors,10-Apr-2015,2885238-36472,988.74,CARPETTIME LTD.
Neighbourhood Services,Direct Services,Supplies and Services,304221,Equipment and Materials,10-Apr-2015,2885239-457597,"1,170.00",CARRS BILLINGTON AGRICULTURE.
Neighbourhood Services,Direct Services,Supplies and Services,304221,Equipment and Materials,10-Apr-2015,2885286-INV0090,"1,710.00",DURHAM ARB LTD.
Neighbourhood Services,Culture & Sport,Supplies and Services,338027,Services,10-Apr-2015,2885289-279131,"4,999.99",DURHAM UNIVERSITY.
Neighbourhood Services,Culture & Sport,Supplies and Services,304221,Equipment and Materials,10-Apr-2015,2885290-150404#EP,640.00,DUSK `TIL DAWN ENTERTAINMENT LTD.
Neighbourhood Services,Direct Services,Third Party Payments,430100,Rendered by Private Contractors,10-Apr-2015,2885291-5537,"5,868.80",DVC ROOFING & BUILDING LTD.
Neighbourhood Services,Technical Services,Employees,040149,Recruitment Instruction and Training,10-Apr-2015,2885294-0000035396,"2,040.00",EAST DURHAM COLLEGE.
Neighbourhood Services,Direct Services,Third Party Payments,430100,Rendered by Private Contractors,10-Apr-2015,2885295-SINV/00003604,"1,056.10",EAST DURHAM HOMES.
Neighbourhood Services,Technical Services,Stock,926900,Stock in hand-Inventory system,10-Apr-2015,2885316-SINV-080592,"3,360.15",GELPACK EXCELSIOR LTD.
Neighbourhood Services,Direct Services,Third Party Payments,430100,Rendered by Private Contractors,10-Apr-2015,2885319-106206,"4,231.60",GIACOMINI UK LTD.
Neighbourhood Services,Direct Services,Supplies and Services,304221,Equipment and Materials,10-Apr-2015,2885333-J4764,"1,880.40",GROVE REED.
Neighbourhood Services,Direct Services,Premises,106082,Centrally Controlled Rep and Maint,10-Apr-2015,2885339-55125,"1,320.00",HCL SAFETY LTD.
Neighbourhood Services,Technical Services,Third Party Payments,460350,Contract Payments,10-Apr-2015,2885348-2184,"1,071.00",IAN C LIDDLE.
Neighbourhood Services,Technical Services,Third Party Payments,460350,Contract Payments,10-Apr-2015,2885348-2187,623.50,IAN C LIDDLE.
Neighbourhood Services,Technical Services,Third Party Payments,460350,Contract Payments,10-Apr-2015,2885355-1290A,"1,342.00",J & JG GILL & SONS LTD.
Neighbourhood Services,Technical Services,Third Party Payments,460350,Contract Payments,10-Apr-2015,2885355-1291MARCH15,692.50,J & JG GILL & SONS LTD.
Neighbourhood Services,Technical Services,Employees,080025,Agency Staff,10-Apr-2015,2885358-B225H002-045,"10,837.14",JACOBS UK LTD.
Neighbourhood Services,Technical Services,Employees,080025,Agency Staff,10-Apr-2015,2885358-B225H002-046,"3,959.07",JACOBS UK LTD.
Neighbourhood Services,Technical Services,Employees,080025,Agency Staff,10-Apr-2015,2885358-B225H002-047,"3,981.92",JACOBS UK LTD.
Neighbourhood Services,Technical Services,Employees,080025,Agency Staff,10-Apr-2015,2885358-B225H002-048,"12,771.27",JACOBS UK LTD.
Neighbourhood Services,Technical Services,Employees,080025,Agency Staff,10-Apr-2015,2885358-B225H002-050,"10,689.37",JACOBS UK LTD.
Neighbourhood Services,Technical Services,Employees,080025,Agency Staff,10-Apr-2015,2885358-B225H002-051,"5,679.43",JACOBS UK LTD.
Neighbourhood Services,Technical Services,Employees,080025,Agency Staff,10-Apr-2015,2885358-B225H002-052,535.86,JACOBS UK LTD.
Neighbourhood Services,Technical Services,Employees,080025,Agency Staff,10-Apr-2015,2885358-B225H002-053,"16,962.74",JACOBS UK LTD.
Neighbourhood Services,Technical Services,Employees,080025,Agency Staff,10-Apr-2015,2885358-B225H002-055,"7,196.08",JACOBS UK LTD.
Neighbourhood Services,Technical Services,Employees,080025,Agency Staff,10-Apr-2015,2885358-B225H002-056,"1,820.53",JACOBS UK LTD.
Neighbourhood Services,Technical Services,Employees,080025,Agency Staff,10-Apr-2015,2885358-B225H002-057,"5,943.30",JACOBS UK LTD.
Neighbourhood Services,Technical Services,Employees,080025,Agency Staff,10-Apr-2015,2885358-B225H002-058,"1,603.71",JACOBS UK LTD.
Neighbourhood Services,Technical Services,Employees,080025,Agency Staff,10-Apr-2015,2885358-B225H002-059,"12,948.94",JACOBS UK LTD.
Neighbourhood Services,Technical Services,Employees,080025,Agency Staff,10-Apr-2015,2885358-B225H002-060,"2,250.55",JACOBS UK LTD.
Neighbourhood Services,Technical Services,Employees,080025,Agency Staff,10-Apr-2015,2885358-B225H002-061,655.08,JACOBS UK LTD.
Neighbourhood Services,Technical Services,Employees,080025,Agency Staff,10-Apr-2015,2885358-B225H002-062,"3,905.76",JACOBS UK LTD.
Neighbourhood Services,Technical Services,Employees,080025,Agency Staff,10-Apr-2015,2885358-B225H002-063,"8,089.11",JACOBS UK LTD.
Neighbourhood Services,Technical Services,Employees,080025,Agency Staff,10-Apr-2015,2885358-B225H002-064,"32,282.78",JACOBS UK LTD.
Neighbourhood Services,Technical Services,Employees,080025,Agency Staff,10-Apr-2015,2885358-B225H002-065,"1,746.88",JACOBS UK LTD.
Neighbourhood Services,Technical Services,Employees,080025,Agency Staff,10-Apr-2015,2885358-B225H002-065A,791.56,JACOBS UK LTD.
Neighbourhood Services,Technical Services,Employees,080025,Agency Staff,10-Apr-2015,2885358-B225H002-067,"1,047.25",JACOBS UK LTD.
Neighbourhood Services,Technical Services,Employees,080025,Agency Staff,10-Apr-2015,2885358-B225H002-070,"6,133.91",JACOBS UK LTD.
Neighbourhood Services,Technical Services,Employees,080025,Agency Staff,10-Apr-2015,2885358-B225H003,"3,704.58",JACOBS UK LTD.
Neighbourhood Services,Technical Services,Employees,080025,Agency Staff,10-Apr-2015,2885358-B225H003-005,977.65,JACOBS UK LTD.
Neighbourhood Services,Technical Services,Employees,080025,Agency Staff,10-Apr-2015,2885358-B225H003-006,"4,016.91",JACOBS UK LTD.
Neighbourhood Services,Technical Services,Employees,080025,Agency Staff,10-Apr-2015,2885358-B225H003-008,785.89,JACOBS UK LTD.
Neighbourhood Services,Technical Services,Employees,080025,Agency Staff,10-Apr-2015,2885358-B225H003-010,"1,160.04",JACOBS UK LTD.
Neighbourhood Services,Technical Services,Employees,080025,Agency Staff,10-Apr-2015,2885358-B225H003-011,"6,620.84",JACOBS UK LTD.
Neighbourhood Services,Technical Services,Employees,080025,Agency Staff,10-Apr-2015,2885358-B225H003-014,"1,936.70",JACOBS UK LTD.
Neighbourhood Services,Technical Services,Employees,080025,Agency Staff,10-Apr-2015,2885358-B225H003-015,"1,627.66",JACOBS UK LTD.
Neighbourhood Services,Technical Services,Employees,080025,Agency Staff,10-Apr-2015,2885358-B225H004-002,"2,046.00",JACOBS UK LTD.
Neighbourhood Services,Projects and Business services,Supplies and Services,304357,Equipment and Materials,10-Apr-2015,2885364-1438590,524.16,JOHN NIXON LTD.
Neighbourhood Services,Technical Services,Supplies and Services,304221,Equipment and Materials,10-Apr-2015,2885367-HE1588886,"1,557.23",JT DOVE LTD.
Neighbourhood Services,Technical Services,Stock,926900,Stock in hand-Inventory system,10-Apr-2015,2885367-STI416399,"1,657.79",JT DOVE LTD.
Neighbourhood Services,Technical Services,Third Party Payments,430100,Rendered by Private Contractors,10-Apr-2015,2885368-6276,"1,600.00",KAEFER C & D - KD SCAFFOLDING DIVISION.
Neighbourhood Services,Technical Services,Supplies and Services,304221,Equipment and Materials,10-Apr-2015,2885376-9032378857,690.80,LAFARGE TARMAC TRADING LTD.
Neighbourhood Services,Direct Services,Supplies and Services,304221,Equipment and Materials,10-Apr-2015,2885385-3515635,"1,066.92",LONDON GENERAL SALES LTD.
Neighbourhood Services,Culture & Sport,Premises,106082,Centrally Controlled Rep and Maint,10-Apr-2015,2885387-981,"5,950.00",LUMLEY ESTATES.
Neighbourhood Services,Direct Services,Supplies and Services,304221,Equipment and Materials,10-Apr-2015,2885390-827/038675,679.25,MAGNET LTD.
Neighbourhood Services,Direct Services,Supplies and Services,304221,Equipment and Materials,10-Apr-2015,2885390-827/038676,696.91,MAGNET LTD.
Neighbourhood Services,Technical Services,Third Party Payments,430100,Rendered by Private Contractors,10-Apr-2015,2885391-5074,"3,851.80",MAKEPEACE MOTORS.
Neighbourhood Services,Technical Services,Third Party Payments,430100,Rendered by Private Contractors,10-Apr-2015,2885391-5075,844.80,MAKEPEACE MOTORS.
Neighbourhood Services,Technical Services,Third Party Payments,430100,Rendered by Private Contractors,10-Apr-2015,2885391-5076,"2,327.20",MAKEPEACE MOTORS.
Neighbourhood Services,Technical Services,Third Party Payments,430100,Rendered by Private Contractors,10-Apr-2015,2885391-5077,952.80,MAKEPEACE MOTORS.
Neighbourhood Services,Technical Services,Third Party Payments,430100,Rendered by Private Contractors,10-Apr-2015,2885391-5078,517.40,MAKEPEACE MOTORS.
Neighbourhood Services,Technical Services,Third Party Payments,430100,Rendered by Private Contractors,10-Apr-2015,2885391-5080,"3,168.00",MAKEPEACE MOTORS.
Neighbourhood Services,Technical Services,Third Party Payments,430100,Rendered by Private Contractors,10-Apr-2015,2885391-5081,"4,200.00",MAKEPEACE MOTORS.
Neighbourhood Services,Technical Services,Third Party Payments,430100,Rendered by Private Contractors,10-Apr-2015,2885391-5082,"3,015.20",MAKEPEACE MOTORS.
Neighbourhood Services,Technical Services,Third Party Payments,430100,Rendered by Private Contractors,10-Apr-2015,2885391-5083,"2,933.20",MAKEPEACE MOTORS.
Neighbourhood Services,Direct Services,Supplies and Services,384194,Miscellaneous Expenses,10-Apr-2015,2885419-14820,"2,125.00",NIRAMAX GROUP LTD.
Neighbourhood Services,Projects and Business services,Third Party Payments,430119,Rendered by Private Contractors,10-Apr-2015,2885429-314891340033020,574.69,NORTHUMBRIAN WATER LTD.
Neighbourhood Services,Technical Services,Supplies and Services,338027,Services,10-Apr-2015,2885435-193239,"14,000.71",PARSONS BRINCKERHOFF.
Neighbourhood Services,Culture & Sport,Supplies and Services,338047,Services,10-Apr-2015,2885441-PHENT112695,759.25,PICTUREHOUSE ENTERTAINMENT LTD.
Neighbourhood Services,Direct Services,Supplies and Services,304221,Equipment and Materials,10-Apr-2015,2885443-217349,"6,625.95",PLUMBING TRADE SUPPLIES LTD.
Neighbourhood Services,Direct Services,Supplies and Services,304221,Equipment and Materials,10-Apr-2015,2885443-217377,"1,780.01",PLUMBING TRADE SUPPLIES LTD.
Neighbourhood Services,Direct Services,Supplies and Services,304221,Equipment and Materials,10-Apr-2015,2885445-49752,506.12,POLLOCK LIFTS.
Neighbourhood Services,Technical Services,Third Party Payments,430100,Rendered by Private Contractors,10-Apr-2015,2885454-2580/150328,"61,574.04",RAINTON CONSTRUCTION LTD.
Neighbourhood Services,Technical Services,Supplies and Services,372009,Subscriptions,10-Apr-2015,2885460-082847,755.00,RICS BOOKS.
Neighbourhood Services,Technical Services,Stock,926900,Stock in hand-Inventory system,10-Apr-2015,2885462-233117,561.48,RITHERDON & CO LTD.
Neighbourhood Services,Direct Services,Premises,106082,Centrally Controlled Rep and Maint,10-Apr-2015,2885467-143645,925.00,SAFE & SURE FIRE PROTECTION LTD.
Neighbourhood Services,Culture & Sport,Income,715699,Sales,10-Apr-2015,2885479-GBD000084,929.66,SOCIETY OF LONDON THEATRE.
Neighbourhood Services,Direct Services,Supplies and Services,304221,Equipment and Materials,10-Apr-2015,2885493-7320955,"1,947.82",SUPPLIES TEAM LTD.
Neighbourhood Services,Technical Services,Supplies and Services,304221,Equipment and Materials,10-Apr-2015,2885518-25889,"2,100.00",TODDS HIGHWAY MAINTENANCE LTD.
Neighbourhood Services,Direct Services,Supplies and Services,304221,Equipment and Materials,10-Apr-2015,2885521-139808,"3,878.51",TUDOR (UK) LTD T/A TUDOR ENVIRONMENTAL.
Neighbourhood Services,Culture & Sport,Supplies and Services,338047,Services,10-Apr-2015,2885522-GB15B0042365,675.00,TWENTIETH CENTURY FOX FILM COMPANY LTD.
Neighbourhood Services,Culture & Sport,Supplies and Services,338047,Services,10-Apr-2015,2885522-GB15B0042366,"1,012.25",TWENTIETH CENTURY FOX FILM COMPANY LTD.
Neighbourhood Services,Culture & Sport,Supplies and Services,338047,Services,10-Apr-2015,2885522-GB15B0042368,613.37,TWENTIETH CENTURY FOX FILM COMPANY LTD.
Neighbourhood Services,Direct Services,Premises,106082,Centrally Controlled Rep and Maint,10-Apr-2015,2885523-750939,"1,939.00",TYCO FIRE & INTEGRATED SOLUTIONS (UK) LTD.
